Workbook

Sheet Intro, notes
A1: Implicit volatility (IV) patterns and implicit PDF's from options on S&P 500 futures, 1983 - 2020
A2: © Copyright 2021 David S. Bates; all rights reserved. | F2: Last revised: October 28, 2021
A4: Please note that it is necessary to respond YES to the "Enable macros" question when first loading the spreadsheet,
A5: or to "Enable this content" using the "Options" button on the Security Warning, or the PDF graphs will not be displayed.
A6: It may be necessary to lower macro security (on the Developer tab) to get the graphs to display.
A8: GRAPHS
A9: Two sets of graphs were estimated:
A10: 1) ISD's and associated PDF's based on FIXED X/F ratios over a range of [-20%, + 20%] around 1; and
A11: 2) ISD's and associated PDF's based on RELATIVE X/F ratios, over a range of -4 to +3 standard deviations (ISD-ATM * sqrt[T])
A12: The former shows shifts in implicit PDF's from all causes: volatility shifts, maturity shifts, and higher-moment shifts.
A13: The latter shows how implicit PDF's shift RELATIVE to the benchmark normal distribution, to emphasize higher-moment phenomena.
A15: Color shifts indicate a shift in the option' maturity date. In the IV graphs, call and put data are colored differently.
A16: The implicit PDF from the jump-diffusion model is colored differently over the domain of data availability,
A17: and changes color when the option maturity date shifts.
A19: DATA
A20: The data for these graphs are based upon daily settlement price data for S&P 500 futures and futures options,
A21: for the shortest maturity >= 12 calendar days.
A22: Prior to 7/7/1987, only quarterly maturities were available; thereafter; serial options were also available.
A23: Pit-traded SP futures options were used for 1983-2006. Electronically traded "E-mini" futures options (originally ES; later EZ and EW3) were used for 2007-2020.
A25: The options used typically mature on the 3rd Friday; a day earlier when that happens to be Good Friday or a holiday.
A26: IV's are computed on a business day basis, using T (in years) = #business days/252.
A27: The number of business days (N) is typically until the 3rd Friday of the month for serial options; a day earlier if Good Friday or a holiday.
A28: For quarterly options after July 1987 that are settled at the open, the number of business days is N - 1 + .266,
A29: given estimates in Bates (JF, 2019) that the time span from Thursday close to Friday open represents 0.266 business days.
A30: LIBOR interest rates from the Federal Reserve Bank of St. Louis (FRED) were used for the discount rate; LIBID + 0.125% prior to 1986.
A32: For each day, an at-the-money implicit standard deviation (sigATM) was computed from near-the-money calls and puts.
A33: and used as a criterion for selecting put and call data, as follows:
A34: 1) Put options with ln[strike price/futures price] within roughly [-5, +1] * sigATM * Sqrt[T]
A35: 2) Call options with ln[strike price/futures price] within roughly [-1, 3] * sigATM * Sqrt[T]
A36: Options outside this moneyness range had relatively low recorded volume on average over the post-'87 period, and were ignored.
A38: From these data were computed two separate fits:
A39: 1) Constrained cubic splines were fitted separately to call data and to put data, using the methodology of
A40: Bates (J.Finance, 1991). Interpolated option prices were computed at desired X/F ratios,
A41: while the associated ISD's were computed accurate to 1e-5 using an Omberg's (JFQA, 1988) American-option trinomial tree (comment: option tick size = .05).
A42: 2) The 4-parameter American-option jump-diffusion model of Bates (J.Finance 1991) was fitted to the pooled call and put data
A43: via nonlinear OLS, and the implicit parameters were used to generate the implicit probability density functions (PDF's).
A44: A benchmark "Black-Scholes" fit (Baroni-Adesi & Whaley) without jump risk was also estimated.
A46: All data and estimates are stored in the final three worksheets, which are hidden.
A47: To see the underlying data, right-click on the name of the last worksheet, and click Unhide.

Sheet Graphs (fixed X)
A1: S&P ISD patterns, 1983-2013 | K1: Date= | L1: =HLOOKUP("Date",data_fix,$B$9+1) -> 2020-03-02 | M1: =+DATE(INT(B18/100),MOD(B18,100),1) -> 2020-03-01 | N1: =+B19*365 -> 19.21464286 | O1: days
A8: Date #: | B8: 9336
A9: (row #): | B9: =2*(B8-1)+1 -> 18671
A11: Date search tool
A12: 1) Enter desired date: | B12: 2020-03-23 | L12: =IF(1=1,#N/A,0) -> 
A13: Date #: | B13: =VLOOKUP(B12,data_fix,2) -> 9351
A14: 2) Enter value into cell A8 above
A17: Estimates for: | B17: =HLOOKUP("Date",JDparam,$B$8+1) -> 2020-03-02
A18: maturity: | B18: =HLOOKUP("mat",JDparam,$B$8+1) -> 202003
A19: T (years) = | B19: =HLOOKUP("T",JDparam,$B$8+1,FALSE)/252 -> 0.05264285714
A20: Xmin/F - 1 | B20: =HLOOKUP("Xmin",JDparam,$B$8+1,FALSE)-1 -> -0.292
A21: Xmax/F -1 | B21: =HLOOKUP("Xmax",JDparam,$B$8+1,FALSE)-1 -> 0.2235
A22: BS: sigma = | B22: =HLOOKUP("sigBS",JDparam,$B$8+1,FALSE) -> 0.30351
A23: JD: sigma = | B23: =HLOOKUP("sigJD",JDparam,$B$8+1,FALSE) -> 0.13438
A24: JD: lambda = | B24: =HLOOKUP("lambda",JDparam,$B$8+1,FALSE) -> 6.4736
A25: JD: avgk = | B25: =HLOOKUP("avgk",JDparam,$B$8+1,FALSE) -> -0.09582
A26: JD: delta = | B26: =HLOOKUP("delta",JDparam,$B$8+1,FALSE) -> 0.074037 | G26: Moneyness: | J26: -0.2 | K26: -0.19 | L26: -0.18 | M26: -0.17 | N26: -0.16 | O26: -0.15 | P26: -0.14 | Q26: -0.13 | R26: -0.12 | S26: -0.11 | T26: -0.1 | U26: -0.09 | V26: -0.08 | W26: -0.07 | X26: -0.06 | Y26: -0.05 | Z26: -0.04 | AA26: -0.03 | AB26: -0.02 | AC26: -0.01 | AD26: 1.42247325e-16 | AE26: 0.01 | AF26: 0.02 | AG26: 0.03 | AH26: 0.04 | AI26: 0.05 | AJ26: 0.06 | AK26: 0.07 | AL26: 0.08 | AM26: 0.09 | AN26: 0.1 | AO26: 0.11 | AP26: 0.12 | AQ26: 0.13 | AR26: 0.14 | AS26: 0.15 | AT26: 0.16 | AU26: 0.17 | AV26: 0.18 | AW26: 0.19 | AX26: 0.2
H27: 0 | I27: =+I29 -> P | J27: =IF($G$31=$H$27,IF(J31>0,J$31,NA()),NA()) -> 
H28: 0 | I28: =+I30 -> C | J28: =IF($G$32=$H$28,IF(J32>0,J$32,NA()),NA()) -> 
H29: 1 | I29: =+I31 -> P | J29: =IF($G$31=$H$29,IF(J31>0,J$31,NA()),NA()) ->  | K29: 0.5447 | L29: 0.5235 | M29: 0.5132 | N29: 0.5039 | O29: 0.4954 | P29: 0.4867 | Q29: 0.4772 | R29: 0.4669 | S29: 0.4669 | T29: 0.4445 | U29: 0.4311 | V29: 0.4189 | W29: 0.4079 | X29: 0.3953 | Y29: 0.3809 | Z29: 0.3663 | AA29: 0.3511 | AB29: 0.3355 | AC29: 0.3198 | AD29: 0.3034 | AE29: 0.2869 | AF29: 0.27 | AG29: 0.253 | AH29: 0.2365 | AI29: 0.2213 | AJ29: 0.2087 | AK29: 0.2003
H30: 1 | I30: =+I32 -> C | J30: =IF($G$32=$H$30,IF(J32>0,J$32,NA()),NA()) ->  | X30: 0.3952 | Y30: 0.3809 | Z30: 0.3664 | AA30: 0.3511 | AB30: 0.3355 | AC30: 0.3196 | AD30: 0.3033 | AE30: 0.287 | AF30: 0.2699 | AG30: 0.2531 | AH30: 0.2364 | AI30: 0.2213 | AJ30: 0.2088 | AK30: 0.2006 | AL30: 0.1979 | AM30: 0.1973 | AN30: 0.1973 | AO30: 0.2017 | AP30: 0.2037 | AQ30: 0.2144 | AR30: 0.22 | AS30: 0.2294 | AT30: 0.2393 | AU30: 0.2491 | AV30: 0.2578 | AW30: 0.2662 | AX30: 0.2732
D31: =HLOOKUP("Date",data_fix,$B$9+$H31,FALSE) -> 43892 | E31: =HLOOKUP("v",data_fix,$B$9+$H31,FALSE) -> 202003 | F31: =HLOOKUP("T",data_fix,$B$9+$H31,FALSE) -> 13 | G31: =HLOOKUP("i",data_fix,$B$9+$H31,FALSE) -> 1 | H31: 1 | I31: =HLOOKUP("w",data_fix,$B$9+$H31,FALSE) -> P | J31: =HLOOKUP(J$26,data_fix,$B$9+$H31,TRUE) ->  | K31: 0.5447 | L31: 0.5235 | M31: 0.5132 | N31: 0.5039 | O31: 0.4954 | P31: 0.4867 | Q31: 0.4772 | R31: 0.4669 | S31: 0.4669 | T31: =HLOOKUP(T$26,data_fix,$B$9+$H31,TRUE) -> 0.4445 | U31: 0.4311 | V31: 0.4189 | W31: 0.4079 | X31: 0.3953 | Y31: 0.3809 | Z31: 0.3663 | AA31: 0.3511 | AB31: 0.3355 | AC31: 0.3198 | AD31: =HLOOKUP(AD$26,data_fix,$B$9+$H31,TRUE) -> 0.3034 | AE31: 0.2869 | AF31: 0.27 | AG31: 0.253 | AH31: 0.2365 | AI31: 0.2213 | AJ31: 0.2087 | AK31: 0.2003 | AL31: 0 | AM31: 0 | AN31: =HLOOKUP(AN$26,data_fix,$B$9+$H31,TRUE) -> 0 | AO31: 0 | AP31: 0 | AQ31: 0 | AR31: 0 | AS31: 0 | AT31: 0 | AU31: 0 | AV31: 0 | AW31: 0 | AX31: 0
D32: =HLOOKUP("Date",data_fix,$B$9+$H32,FALSE) -> 43892 | E32: =HLOOKUP("v",data_fix,$B$9+$H32,FALSE) -> 202003 | F32: =HLOOKUP("T",data_fix,$B$9+$H32,FALSE) -> 13 | G32: =HLOOKUP("i",data_fix,$B$9+$H32,FALSE) -> 1 | H32: 2 | I32: =HLOOKUP("w",data_fix,$B$9+$H32,FALSE) -> C | K32: 0 | L32: 0 | M32: 0 | N32: 0 | O32: 0 | P32: 0 | Q32: 0 | R32: 0 | S32: 0 | T32: 0 | U32: 0 | V32: 0 | W32: 0 | X32: 0.3952 | Y32: 0.3809 | Z32: 0.3664 | AA32: 0.3511 | AB32: 0.3355 | AC32: 0.3196 | AD32: 0.3033 | AE32: 0.287 | AF32: 0.2699 | AG32: 0.2531 | AH32: 0.2364 | AI32: 0.2213 | AJ32: 0.2088 | AK32: 0.2006 | AL32: 0.1979 | AM32: 0.1973 | AN32: 0.1973 | AO32: 0.2017 | AP32: 0.2037 | AQ32: 0.2144 | AR32: 0.22 | AS32: 0.2294 | AT32: 0.2393 | AU32: 0.2491 | AV32: 0.2578 | AW32: 0.2662 | AX32: 0.2732
J34: -0.2 | K34: -0.19 | L34: -0.18 | M34: -0.17 | N34: -0.16 | O34: -0.15 | P34: -0.14 | Q34: -0.13 | R34: -0.12 | S34: -0.11 | T34: -0.1 | U34: -0.09 | V34: -0.08 | W34: -0.07 | X34: -0.06 | Y34: -0.05 | Z34: -0.04 | AA34: -0.03 | AB34: -0.02 | AC34: -0.01 | AD34: 1.42247325e-16 | AE34: 0.01 | AF34: 0.02 | AG34: 0.03 | AH34: 0.04 | AI34: 0.05 | AJ34: 0.06 | AK34: 0.07 | AL34: 0.08 | AM34: 0.09 | AN34: 0.1 | AO34: 0.11 | AP34: 0.12 | AQ34: 0.13 | AR34: 0.14 | AS34: 0.15 | AT34: 0.16 | AU34: 0.17 | AV34: 0.18 | AW34: 0.19 | AX34: 0.2
I35: BS | J35: =pdf_bs(J$34,$B$19,$B$22) -> 0.04715359225 | K35: 0.08067967734 | L35: 0.1329182139 | M35: 0.2111239817 | N35: 0.3237136723 | O35: 0.4797000884 | P35: 0.6877919862 | Q35: 0.9552032134 | R35: 1.286290767 | S35: 1.681210774 | T35: 2.134824679 | U35: 2.636088951 | V35: 3.168112792 | W35: 3.708974213 | X35: 4.233261969 | Y35: 4.71418402 | Z35: 5.125979635 | AA35: 5.446314203 | AB35: 5.658335263 | AC35: 5.752124145 | AD35: 5.725376856 | AE35: 5.583268918 | AF35: 5.337577895 | AG35: 5.00523309 | AH35: 4.606520502 | AI35: 4.163187483 | AJ35: 3.696669444 | AK35: 3.226610352 | AL35: 2.769782878 | AM35: 2.33944618 | AN35: 1.945120182 | AO35: 1.592711681 | AP35: 1.284902501 | AQ35: 1.02170216 | AR35: 0.8010738776 | AS35: 0.6195585091 | AT35: 0.4728414728 | AU35: 0.356228839 | AV35: 0.265017582 | AW35: 0.1947598486 | AX35: 0.1414313629
H36: 0 | I36: JD (est) | J36: =IF($H36=$G$31,IF(J$34>$B$20,IF(J$34<$B$21,J38,NA()),NA()),NA()) -> 
H37: 1 | I37: JD (est) | J37: =IF($H37=$G$31,IF(J$34>$B$20,IF(J$34<$B$21,J38,NA()),NA()),NA()) -> 0.439039153 | K37: 0.5209758168 | L37: 0.6131512329 | M37: 0.7140370163 | N37: 0.8211230673 | O37: 0.9309822251 | P37: 1.039451124 | Q37: 1.141914552 | R37: 1.233668093 | S37: 1.310340582 | T37: 1.368422631 | U37: 1.406155082 | V37: 1.42548701 | W37: 1.436436438 | X37: 1.465251236 | Y37: 1.565643262 | Z37: 1.826707005 | AA37: 2.364111304 | AB37: 3.280808795 | AC37: 4.598968927 | AD37: 6.193533889 | AE37: 7.777739868 | AF37: 8.975115417 | AG37: 9.459476496 | AH37: 9.091372891 | AI37: 7.972884195 | AJ37: 6.392537173 | AK37: 4.69948004 | AL37: 3.17984322 | AM37: 1.990657698 | AN37: 1.161655312 | AO37: 0.639197702 | AP37: 0.3376909351 | AQ37: 0.1760527747 | AR37: 0.09393458055 | AS37: 0.05318900635 | AT37: 0.03257655593 | AU37: 0.02142546424 | AV37: 0.0147814442 | AW37: 0.0104489846 | AX37: 0.007449533948
I38: JD | J38: =pdf_JD(J$34,$B$19,$B$23,$B$24,$B$25,$B$26) -> 0.439039153 | K38: 0.5209758168 | L38: 0.6131512329 | M38: 0.7140370163 | N38: 0.8211230673 | O38: 0.9309822251 | P38: 1.039451124 | Q38: 1.141914552 | R38: 1.233668093 | S38: 1.310340582 | T38: 1.368422631 | U38: 1.406155082 | V38: 1.42548701 | W38: 1.436436438 | X38: 1.465251236 | Y38: 1.565643262 | Z38: 1.826707005 | AA38: 2.364111304 | AB38: 3.280808795 | AC38: 4.598968927 | AD38: 6.193533889 | AE38: 7.777739868 | AF38: 8.975115417 | AG38: 9.459476496 | AH38: 9.091372891 | AI38: 7.972884195 | AJ38: 6.392537173 | AK38: 4.69948004 | AL38: 3.17984322 | AM38: 1.990657698 | AN38: 1.161655312 | AO38: 0.639197702 | AP38: 0.3376909351 | AQ38: 0.1760527747 | AR38: 0.09393458055 | AS38: 0.05318900635 | AT38: 0.03257655593 | AU38: 0.02142546424 | AV38: 0.0147814442 | AW38: 0.0104489846 | AX38: 0.007449533948

Sheet Graphs (relative X)
A1: S&P ISD patterns, 1983-2013 | D1: Date= | I1: =HLOOKUP("Date",data_rel,$B$9+1) -> 2020-03-02 | J1: =+DATE(INT(B17/100),MOD(B17,100),1) -> 2020-03-01 | L1: =+B18*252 -> 13.266 | M1: business days
A8: Date #: | B8: 9336
A9: (row #): | B9: =2*(B8-1)+1 -> 18671
A11: Date search tool
A12: 1) Enter desired date: | B12: 2020-03-23 | L12: =IF(1=1,#N/A,0) -> 
A13: Date #: | B13: =VLOOKUP(B12,data_rel,2) -> 9351
A14: 2) Enter value into cell A8 above
A16: Estimates for: | B16: =HLOOKUP("Date",JDparam,$B$8+1) -> 2020-03-02
A17: maturity: | B17: =HLOOKUP("mat",JDparam,$B$8+1) -> 202003
A18: T (years) = | B18: =HLOOKUP("T",JDparam,$B$8+1,FALSE)/252 -> 0.05264285714
A19: ln(Xmin/F) | B19: =LN(HLOOKUP("Xmin",JDparam,$B$8+1,FALSE)) -> -0.3453111853 | F19: Moneyness: | J19: -4 | K19: -3.75 | L19: -3 | M19: -2.75 | N19: -2.5 | O19: -2.25 | P19: -2 | Q19: -1.75 | R19: -1.5 | S19: -1.25 | T19: -1 | U19: -0.75 | V19: -0.5 | W19: -0.25 | X19: 0 | Y19: 0.25 | Z19: 0.5 | AA19: 0.75 | AB19: 1 | AC19: 1.25 | AD19: 1.5 | AE19: 1.75 | AF19: 2
A20: ln(Xmax/F) | B20: =LN(HLOOKUP("Xmax",JDparam,$B$8+1,FALSE)) -> 0.2017156039 | H20: 0 | I20: =+I22 -> P | J20: =IF($H20=$G$24,IF(J24>0,J24,NA()),NA()) ->  | K20: =IF($H20=$G$24,IF(K24>0,K24,NA()),NA()) -> 
A21: sigATM: | B21: =HLOOKUP("sigATM",JDparam,$B$8+1,FALSE) -> 0.30335 | H21: 0 | I21: =+I23 -> C | J21: =IF($H21=$G$25,IF(J25>0,J25,NA()),NA()) ->  | K21: =IF($H21=$G$25,IF(K25>0,K25,NA()),NA()) -> 
A22: BS: sigma = | B22: =HLOOKUP("sigBS",JDparam,$B$8+1,FALSE) -> 0.30351 | H22: 1 | I22: =+I24 -> P | J22: =IF($H22=$G$24,IF(J24>0,J24,NA()),NA()) -> 0.6337 | K22: =IF($H22=$G$24,IF(K24>0,K24,NA()),NA()) -> 0.6096 | L22: 0.5529 | M22: 0.5356 | N22: 0.5173 | O22: 0.501 | P22: 0.486 | Q22: 0.4687 | R22: 0.4499 | S22: 0.4272 | T22: 0.4075 | U22: 0.3841 | V22: 0.3585 | W22: 0.3315 | X22: 0.3034 | Y22: 0.2744 | Z22: 0.245
A23: JD: sigma = | B23: =HLOOKUP("sigJD",JDparam,$B$8+1,FALSE) -> 0.13438 | H23: 1 | I23: =+I25 -> C | J23: =IF($H23=$G$25,IF(J25>0,J25,NA()),NA()) ->  | K23: =IF($H23=$G$25,IF(K25>0,K25,NA()),NA()) ->  | V23: 0.3584 | W23: 0.3313 | X23: 0.3033 | Y23: 0.2744 | Z23: 0.245 | AA23: 0.2185 | AB23: 0.2009 | AC23: 0.1973 | AD23: 0.203 | AE23: 0.2087 | AF23: 0.2194
A24: JD: lambda = | B24: =HLOOKUP("lambda",JDparam,$B$8+1,FALSE) -> 6.4736 | D24: =HLOOKUP("Date",data_rel,$B$9+$H24,FALSE) -> 43892 | E24: =HLOOKUP("v",data_rel,$B$9+$H24,FALSE) -> 202003 | F24: =HLOOKUP("T",data_rel,$B$9+$H24,FALSE) -> 13.266 | G24: =HLOOKUP("i",data_rel,$B$9+$H24,FALSE) -> 1 | H24: 1 | I24: =HLOOKUP("w",data_rel,$B$9+$H24,FALSE) -> P | J24: =HLOOKUP(J$19,data_rel,$B$9+$H24,TRUE) -> 0.6337 | K24: =HLOOKUP(K$19,data_rel,$B$9+$H24,TRUE) -> 0.6096 | L24: 0.5529 | M24: 0.5356 | N24: 0.5173 | O24: 0.501 | P24: 0.486 | Q24: 0.4687 | R24: 0.4499 | S24: 0.4272 | T24: 0.4075 | U24: 0.3841 | V24: 0.3585 | W24: 0.3315 | X24: 0.3034 | Y24: 0.2744 | Z24: 0.245 | AA24: 0 | AB24: 0 | AC24: 0 | AD24: 0 | AE24: 0 | AF24: 0
A25: JD: avgk = | B25: =HLOOKUP("avgk",JDparam,$B$8+1,FALSE) -> -0.09582 | D25: =HLOOKUP("Date",data_rel,$B$9+$H25,FALSE) -> 43892 | E25: =HLOOKUP("v",data_rel,$B$9+$H25,FALSE) -> 202003 | F25: =HLOOKUP("T",data_rel,$B$9+$H25,FALSE) -> 13.266 | G25: =HLOOKUP("i",data_rel,$B$9+$H25,FALSE) -> 1 | H25: 2 | I25: =HLOOKUP("w",data_rel,$B$9+$H25,FALSE) -> C | J25: =HLOOKUP(J$19,data_rel,$B$9+$H25,TRUE) -> 0 | K25: 0 | L25: 0 | M25: 0 | N25: 0 | O25: 0 | P25: 0 | Q25: 0 | R25: 0 | S25: 0 | T25: 0 | U25: 0 | V25: 0.3584 | W25: 0.3313 | X25: 0.3033 | Y25: 0.2744 | Z25: 0.245 | AA25: 0.2185 | AB25: 0.2009 | AC25: 0.1973 | AD25: 0.203 | AE25: 0.2087 | AF25: 0.2194
A26: JD: delta = | B26: =HLOOKUP("delta",JDparam,$B$8+1,FALSE) -> 0.074037
I28: ln(X/F): | J28: =+J29*$B$29 -> -0.2784028756 | K28: =+K29*$B$29 -> -0.2610026958 | L28: -0.2088021567 | M28: -0.191401977 | N28: -0.1740017972 | O28: -0.1566016175 | P28: -0.1392014378 | Q28: -0.1218012581 | R28: -0.1044010783 | S28: -0.08700089861 | T28: -0.06960071889 | U28: -0.05220053917 | V28: -0.03480035945 | W28: -0.01740017972 | X28: 0 | Y28: 0.01740017972 | Z28: 0.03480035945 | AA28: 0.05220053917 | AB28: 0.06960071889 | AC28: 0.08700089861 | AD28: 0.1044010783 | AE28: 0.1218012581 | AF28: 0.1392014378 | AG28: 0.1566016175 | AH28: 0.1740017972 | AI28: 0.191401977 | AJ28: 0.2088021567
A29: sigATM * Sqrt(T) | B29: =+B21*SQRT(B18) -> 0.06960071889 | I29: #SD: | J29: -4 | K29: -3.75 | L29: -3 | M29: -2.75 | N29: -2.5 | O29: -2.25 | P29: -2 | Q29: -1.75 | R29: -1.5 | S29: -1.25 | T29: -1 | U29: -0.75 | V29: -0.5 | W29: -0.25 | X29: 0 | Y29: 0.25 | Z29: 0.5 | AA29: 0.75 | AB29: 1 | AC29: 1.25 | AD29: 1.5 | AE29: 1.75 | AF29: 2 | AG29: =+AF29+0.25 -> 2.25 | AH29: =+AG29+0.25 -> 2.5 | AI29: 2.75 | AJ29: 3
B30: =+B19/$B$29 -> -4.96131636 | I30: BS | J30: =pdf_lbs(J$28,$B$18,$B$22)*$B$29 -> 0.0001549453403 | K30: =pdf_lbs(K$28,$B$18,$B$22)*$B$29 -> 0.0004042773723 | L30: 0.004937344258 | M30: 0.01003541058 | N30: 0.01916293768 | O30: 0.03437749553 | P30: 0.05793907891 | Q30: 0.09173903017 | R30: 0.1364651975 | S30: 0.1907106195 | T30: 0.2503877349 | U30: 0.3088420533 | V30: 0.3578862528 | W30: 0.3896178157 | X30: 0.3984903451 | Y30: 0.3828970366 | Z30: 0.3456459021 | AA30: 0.2931338858 | AB30: 0.2335532113 | AC30: 0.1748198997 | AD30: 0.1229365711 | AE30: 0.08121879286 | AF30: 0.0504100549 | AG30: 0.0293942928 | AH30: 0.01610252814 | AI30: 0.008287247766 | AJ30: 0.004006930274
B31: =+B20/$B$29 -> 2.898182765 | H31: 0 | I31: JD (est) | J31: =IF($H$31=$G$24,IF(J$28>$B$19,IF(J$28<$B$20,J$33,NA()),NA()),NA()) ->  | K31: =IF($H$31=$G$24,IF(K$28>$B$19,IF(K$28<$B$20,K$33,NA()),NA()),NA()) -> 
H32: 1 | I32: JD (est) | J32: =IF($H$32=$G$24,IF(J$28>$B$19,IF(J$28<$B$20,J$33,NA()),NA()),NA()) -> 0.01073105109 | K32: =IF($H$32=$G$24,IF(K$28>$B$19,IF(K$28<$B$20,K$33,NA()),NA()),NA()) -> 0.01383738761 | L32: 0.03020082091 | M32: 0.03855216265 | N32: 0.0482120892 | O32: 0.05868790793 | P32: 0.06918137331 | Q32: =IF($H$32=$G$24,IF(Q$28>$B$19,IF(Q$28<$B$20,Q$33,NA()),NA()),NA()) -> 0.07866424732 | R32: 0.08605625343 | S32: 0.09064397203 | T32: 0.0935471602 | U32: 0.1025382468 | V32: 0.1409638466 | W32: 0.2466182136 | X32: 0.4310744112 | Y32: 0.6188270509 | Z32: 0.6748939891 | AA32: 0.5456391171 | AB32: 0.3254670635 | AC32: 0.1444055323 | AD32: 0.04924468477 | AE32: 0.01426819362 | AF32: 0.004403603706 | AG32: 0.001776483555 | AH32: 0.0008637780285 | AI32: 0.0004334689393
I33: JD | J33: =pdf_LJD(J$28,$B$18,$B$23,$B$24,$B$25,$B$26)*$B$29 -> 0.01073105109 | K33: =pdf_LJD(K$28,$B$18,$B$23,$B$24,$B$25,$B$26)*$B$29 -> 0.01383738761 | L33: 0.03020082091 | M33: 0.03855216265 | N33: 0.0482120892 | O33: 0.05868790793 | P33: 0.06918137331 | Q33: 0.07866424732 | R33: 0.08605625343 | S33: 0.09064397203 | T33: 0.0935471602 | U33: 0.1025382468 | V33: 0.1409638466 | W33: 0.2466182136 | X33: 0.4310744112 | Y33: 0.6188270509 | Z33: 0.6748939891 | AA33: 0.5456391171 | AB33: 0.3254670635 | AC33: 0.1444055323 | AD33: 0.04924468477 | AE33: 0.01426819362 | AF33: 0.004403603706 | AG33: 0.001776483555 | AH33: 0.0008637780285 | AI33: 0.0004334689393 | AJ33: 0.0002115525807

Sheet data (fixed) (hidden)
A1: ISD's from option prices with X/F - 1 at fixed intervals
A2: Date | C2: T | D2: V | E2: W | F2: I | G2: -0.2 | H2: -0.19 | I2: -0.18 | J2: -0.17 | K2: -0.16 | L2: -0.15 | M2: -0.14 | N2: -0.13 | O2: -0.12 | P2: -0.11 | Q2: -0.1 | R2: -0.09 | S2: -0.08 | T2: -0.07 | U2: -0.06 | V2: -0.05 | W2: -0.04 | X2: -0.03 | Y2: -0.02 | Z2: -0.01 | AA2: 0 | AB2: 0.01 | AC2: 0.02 | AD2: 0.03 | AE2: 0.04 | AF2: 0.05 | AG2: 0.06 | AH2: 0.07 | AI2: 0.08 | AJ2: 0.09 | AK2: 0.1 | AL2: 0.11 | AM2: 0.12 | AN2: 0.13 | AO2: 0.14 | AP2: 0.15 | AQ2: 0.16 | AR2: 0.17 | AS2: 0.18 | AT2: 0.19 | AU2: 0.2
A3: 1983-01-28 | B3: 1 | C3: 34 | D3: 198303 | E3: P | F3: 1 | X3: 0.213 | Y3: 0.2107 | Z3: 0.2099 | AA3: 0.2103 | AB3: 0.212 | AC3: 0.2152 | AD3: 0.2203
A4: 1983-01-28 | B4: 1 | C4: 34 | D4: 198303 | E4: C | F4: 1 | X4: 0.2184 | Y4: 0.2157 | Z4: 0.2137 | AA4: 0.2123 | AB4: 0.2113 | AC4: 0.2105 | AD4: 0.2095 | AE4: 0.2083 | AF4: 0.2068 | AG4: 0.2049
A5: 1983-01-31 | B5: =+B3+1 -> 2 | C5: 33 | D5: 198303 | E5: P | F5: 1 | W5: 0.2147 | X5: 0.2095 | Y5: 0.2067 | Z5: 0.2059 | AA5: 0.2067 | AB5: 0.2085 | AC5: 0.2111 | AD5: 0.2144 | AE5: 0.2187 | AF5: 0.2244
A6: 1983-01-31 | B6: =+B4+1 -> 2 | C6: 33 | D6: 198303 | E6: C | F6: 1 | W6: 0.2213 | X6: 0.2191 | Y6: 0.2162 | Z6: 0.2125 | AA6: 0.2082 | AB6: 0.2037 | AC6: 0.1995 | AD6: 0.196 | AE6: 0.1937 | AF6: 0.1931
A7: 1983-02-01 | B7: 3 | C7: 32 | D7: 198303 | E7: P | F7: 1 | V7: 0.2112 | W7: 0.2175 | X7: 0.2199 | Y7: 0.2189 | Z7: 0.2153 | AA7: 0.2102 | AB7: 0.2046 | AC7: 0.1993 | AD7: 0.1948 | AE7: 0.1915
A8: 1983-02-01 | B8: 3 | C8: 32 | D8: 198303 | E8: C | F8: 1 | Y8: 0.2219 | Z8: 0.2164 | AA8: 0.212 | AB8: 0.2083 | AC8: 0.2055 | AD8: 0.2034 | AE8: 0.2022 | AF8: 0.2022 | AG8: 0.2041 | AH8: 0.2087 | AI8: 0.2175
A9: 1983-02-02 | B9: 4 | C9: 31 | D9: 198303 | E9: P | F9: 1 | U9: 0.2203 | V9: 0.2186 | W9: 0.2166 | X9: 0.2143 | Y9: 0.2113 | Z9: 0.2077 | AA9: 0.2035 | AB9: 0.1986 | AC9: 0.1929 | AD9: 0.1862 | AE9: 0.1781
A10: 1983-02-02 | B10: 4 | C10: 31 | D10: 198303 | E10: C | F10: 1 | Y10: 0.2118 | Z10: 0.2073 | AA10: 0.2028 | AB10: 0.1984 | AC10: 0.1941 | AD10: 0.1901 | AE10: 0.1865 | AF10: 0.1841 | AG10: 0.1839 | AH10: 0.1873
A11: 1983-02-03 | B11: 5 | C11: 30 | D11: 198303 | E11: P | F11: 1 | U11: 0.2157 | V11: 0.2123 | W11: 0.2105 | X11: 0.2097 | Y11: 0.2092 | Z11: 0.2086 | AA11: 0.2075 | AB11: 0.2058 | AC11: 0.2032 | AD11: 0.1996
A12: 1983-02-03 | B12: 5 | C12: 30 | D12: 198303 | E12: C | F12: 1 | X12: 0.211 | Y12: 0.2082 | Z12: 0.2054 | AA12: 0.2026 | AB12: 0.1995 | AC12: 0.1964 | AD12: 0.1935 | AE12: 0.1912 | AF12: 0.1902 | AG12: 0.1916
A13: 1983-02-04 | B13: 6 | C13: 29 | D13: 198303 | E13: P | F13: 1 | R13: 0.2242 | S13: 0.2098 | T13: 0.2027 | U13: 0.2003 | V13: 0.2005 | W13: 0.2018 | X13: 0.2032 | Y13: 0.2042 | Z13: 0.2046 | AA13: 0.2042 | AB13: 0.2029
A14: 1983-02-04 | B14: 6 | C14: 29 | D14: 198303 | E14: C | F14: 1 | V14: 0.1724 | W14: 0.1762 | X14: 0.178 | Y14: 0.1782 | Z14: 0.1772 | AA14: 0.1757 | AB14: 0.1743 | AC14: 0.1738 | AD14: 0.1747 | AE14: 0.1783
A15: 1983-02-07 | B15: 7 | C15: 28 | D15: 198303 | E15: P | F15: 1 | R15: 0.2041 | S15: 0.1999 | T15: 0.1971 | U15: 0.1947 | V15: 0.1919 | W15: 0.1888 | X15: 0.1852 | Y15: 0.1811 | Z15: 0.1764 | AA15: 0.1708
A16: 1983-02-07 | B16: 7 | C16: 28 | D16: 198303 | E16: C | F16: 1 | Y16: 0.1834 | Z16: 0.1762 | AA16: 0.1715 | AB16: 0.1687 | AC16: 0.1679 | AD16: 0.1698 | AE16: 0.1755
A17: 1983-02-08 | B17: 8 | C17: 27 | D17: 198303 | E17: P | F17: 1 | T17: 0.1843 | U17: 0.1816 | V17: 0.1811 | W17: 0.1811 | X17: 0.181 | Y17: 0.1801 | Z17: 0.1779 | AA17: 0.1739 | AB17: 0.1677 | AC17: 0.1587
A18: 1983-02-08 | B18: 8 | C18: 27 | D18: 198303 | E18: C | F18: 1 | W18: 0.2133 | X18: 0.1963 | Y18: 0.1845 | Z18: 0.1763 | AA18: 0.1708 | AB18: 0.167 | AC18: 0.1648 | AD18: 0.1642 | AE18: 0.166 | AF18: 0.172 | AG18: 0.1845
A19: 1983-02-09 | B19: 9 | C19: 26 | D19: 198303 | E19: P | F19: 1 | T19: 0.1877 | U19: 0.1833 | V19: 0.1799 | W19: 0.1765 | X19: 0.1727 | Y19: 0.1687 | Z19: 0.1649 | AA19: 0.1613 | AB19: 0.1581 | AC19: 0.1552
A20: 1983-02-09 | B20: 9 | C20: 26 | D20: 198303 | E20: C | F20: 1 | W20: 0.1726 | X20: 0.1718 | Y20: 0.1712 | Z20: 0.1702 | AA20: 0.1689 | AB20: 0.1673 | AC20: 0.1654 | AD20: 0.1638 | AE20: 0.1631 | AF20: 0.1646 | AG20: 0.1708
A21: 1983-02-10 | B21: 10 | C21: 25 | D21: 198303 | E21: P | F21: 1 | Q21: 0.2247 | R21: 0.2108 | S21: 0.2044 | T21: 0.2024 | U21: 0.2025 | V21: 0.2029 | W21: 0.2028 | X21: 0.2016 | Y21: 0.1989 | Z21: 0.1943 | AA21: 0.1871
A22: 1983-02-10 | B22: 10 | C22: 25 | D22: 198303 | E22: C | F22: 1 | X22: 0.2016 | Y22: 0.1881 | Z22: 0.1784 | AA22: 0.1711 | AB22: 0.1655 | AC22: 0.1611 | AD22: 0.1583
A23: 1983-02-11 | B23: 11 | C23: 24 | D23: 198303 | E23: P | F23: 1 | R23: 0.2132 | S23: 0.2057 | T23: 0.2002 | U23: 0.1954 | V23: 0.1904 | W23: 0.1852 | X23: 0.18 | Y23: 0.1746 | Z23: 0.1689 | AA23: 0.1626 | AB23: 0.1554 | AC23: 0.1467 | AD23: 0.1355 | AE23: 0.1189
A24: 1983-02-11 | B24: 11 | C24: 24 | D24: 198303 | E24: C | F24: 1 | Y24: 0.1872 | Z24: 0.1775 | AA24: 0.171 | AB24: 0.1669 | AC24: 0.1653 | AD24: 0.1667 | AE24: 0.1729
A25: 1983-02-14 | B25: 12 | C25: 23 | D25: 198303 | E25: P | F25: 1 | Q25: 0.2223 | R25: 0.2191 | S25: 0.2157 | T25: 0.2115 | U25: 0.206 | V25: 0.1991 | W25: 0.1904 | X25: 0.1801 | Y25: 0.1698 | Z25: 0.1609 | AA25: 0.1543 | AB25: 0.1504 | AC25: 0.1498
A26: 1983-02-14 | B26: 12 | C26: 23 | D26: 198303 | E26: C | F26: 1 | X26: 0.1727 | Y26: 0.1675 | Z26: 0.1647 | AA26: 0.1633 | AB26: 0.1631 | AC26: 0.1644
A27: 1983-02-15 | B27: 13 | C27: 22 | D27: 198303 | E27: P | F27: 1 | R27: 0.2451 | S27: 0.2379 | T27: 0.229 | U27: 0.2186 | V27: 0.2072 | W27: 0.1963 | X27: 0.187 | Y27: 0.1793 | Z27: 0.1726 | AA27: 0.1663 | AB27: 0.1598 | AC27: 0.1526 | AD27: 0.144
A28: 1983-02-15 | B28: 13 | C28: 22 | D28: 198303 | E28: C | F28: 1 | Y28: 0.1725 | Z28: 0.1641 | AA28: 0.159 | AB28: 0.1565 | AC28: 0.1567 | AD28: 0.1611
A29: 1983-02-16 | B29: 14 | C29: 21 | D29: 198303 | E29: P | F29: 1 | S29: 0.2193 | T29: 0.2155 | U29: 0.2117 | V29: 0.2071 | W29: 0.2019 | X29: 0.1962 | Y29: 0.1902 | Z29: 0.1841 | AA29: 0.1783 | AB29: 0.1735 | AC29: 0.1706 | AD29: 0.1708 | AE29: 0.1763
A30: 1983-02-16 | B30: 14 | C30: 21 | D30: 198303 | E30: C | F30: 1 | Y30: 0.1903 | Z30: 0.1807 | AA30: 0.1742 | AB30: 0.1698 | AC30: 0.1675 | AD30: 0.1682 | AE30: 0.1737
A31: 1983-02-17 | B31: 15 | C31: 20 | D31: 198303 | E31: P | F31: 1 | R31: 0.2323 | S31: 0.2212 | T31: 0.2154 | U31: 0.2118 | V31: 0.2086 | W31: 0.2044 | X31: 0.1983 | Y31: 0.1898 | Z31: 0.1804 | AA31: 0.1719 | AB31: 0.1662 | AC31: 0.1651 | AD31: 0.1712
A32: 1983-02-17 | B32: 15 | C32: 20 | D32: 198303 | E32: C | F32: 1 | Y32: 0.1874 | Z32: 0.1806 | AA32: 0.1758 | AB32: 0.1725 | AC32: 0.1705 | AD32: 0.1707
A33: 1983-02-18 | B33: 16 | C33: 19 | D33: 198303 | E33: P | F33: 1 | R33: 0.2304 | S33: 0.2218 | T33: 0.2174 | U33: 0.2144 | V33: 0.2111 | W33: 0.2065 | X33: 0.1995 | Y33: 0.1901 | Z33: 0.1798 | AA33: 0.1703 | AB33: 0.1633 | AC33: 0.1601 | AD33: 0.1629
A34: 1983-02-18 | B34: 16 | C34: 19 | D34: 198303 | E34: C | F34: 1 | Y34: 0.1906 | Z34: 0.186 | AA34: 0.1828 | AB34: 0.1806 | AC34: 0.1795 | AD34: 0.1803
A35: 1983-02-22 | B35: 17 | C35: 18 | D35: 198303 | E35: P | F35: 1 | T35: 0.2197 | U35: 0.2148 | V35: 0.2099 | W35: 0.2041 | X35: 0.1973 | Y35: 0.1905 | Z35: 0.1841 | AA35: 0.1784 | AB35: 0.1734 | AC35: 0.1689
A36: 1983-02-22 | B36: 17 | C36: 18 | D36: 198303 | E36: C | F36: 1 | W36: 0.2096 | X36: 0.1998 | Y36: 0.1919 | Z36: 0.1847 | AA36: 0.1772 | AB36: 0.1699 | AC36: 0.1639 | AD36: 0.1614 | AE36: 0.1646 | AF36: 0.175
A37: 1983-02-23 | B37: 18 | C37: 17 | D37: 198303 | E37: P | F37: 1 | R37: 0.2324 | S37: 0.2312 | T37: 0.2243 | U37: 0.2135 | V37: 0.1996 | W37: 0.185 | X37: 0.1716 | Y37: 0.1601 | Z37: 0.1509 | AA37: 0.1453
A38: 1983-02-23 | B38: 18 | C38: 17 | D38: 198303 | E38: C | F38: 1 | Y38: 0.1801 | Z38: 0.1714 | AA38: 0.1655 | AB38: 0.1613 | AC38: 0.1588 | AD38: 0.1592 | AE38: 0.1656
A39: 1983-02-24 | B39: 19 | C39: 16 | D39: 198303 | E39: P | F39: 1 | P39: 0.2655 | Q39: 0.2594 | R39: 0.2495 | S39: 0.237 | T39: 0.2222 | U39: 0.2071 | V39: 0.193 | W39: 0.1803 | X39: 0.1698 | Y39: 0.1625 | Z39: 0.1588 | AA39: 0.1579 | AB39: 0.1559 | AC39: 0.1481
A40: 1983-02-24 | B40: 19 | C40: 16 | D40: 198303 | E40: C | F40: 1 | Z40: 0.1649 | AA40: 0.1737 | AB40: 0.1731 | AC40: 0.1628
A41: 1983-02-25 | B41: 20 | C41: 15 | D41: 198303 | E41: P | F41: 1 | Q41: 0.2316 | R41: 0.2384 | S41: 0.2369 | T41: 0.2307 | U41: 0.221 | V41: 0.2085 | W41: 0.1937 | X41: 0.1772 | Y41: 0.1623 | Z41: 0.1511 | AA41: 0.1444 | AB41: 0.1426 | AC41: 0.1477
A42: 1983-02-25 | B42: 20 | C42: 15 | D42: 198303 | E42: C | F42: 1 | AA42: 0.1572 | AB42: 0.1667 | AC42: 0.1665
A43: 1983-02-28 | B43: 21 | C43: 14 | D43: 198303 | E43: P | F43: 1 | R43: 0.2193 | S43: 0.2275 | T43: 0.2261 | U43: 0.2193 | V43: 0.2093 | W43: 0.1985 | X43: 0.1883 | Y43: 0.1786 | Z43: 0.1684 | AA43: 0.1562
A44: 1983-02-28 | B44: 21 | C44: 14 | D44: 198303 | E44: C | F44: 1 | Y44: 0.1751 | Z44: 0.1622 | AA44: 0.1545 | AB44: 0.15 | AC44: 0.1488 | AD44: 0.154
A45: 1983-03-01 | B45: 22 | C45: 13 | D45: 198303 | E45: P | F45: 1 | P45: 0.2466 | Q45: 0.2433 | R45: 0.2427 | S45: 0.2395 | T45: 0.2327 | U45: 0.2221 | V45: 0.2078 | W45: 0.1905 | X45: 0.1736 | Y45: 0.1594 | Z45: 0.1484 | AA45: 0.1435 | AB45: 0.1514
A46: 1983-03-01 | B46: 22 | C46: 13 | D46: 198303 | E46: C | F46: 1 | Z46: 0.1602 | AA46: 0.1646 | AB46: 0.1672 | AC46: 0.1692 | AD46: 0.1724 | AE46: 0.1802
A47: 1983-03-02 | B47: 23 | C47: 12 | D47: 198303 | E47: P | F47: 1 | P47: 0.2562 | Q47: 0.2471 | R47: 0.2411 | S47: 0.235 | T47: 0.227 | U47: 0.2162 | V47: 0.2022 | W47: 0.1857 | X47: 0.1711 | Y47: 0.1608 | Z47: 0.1548 | AA47: 0.1519 | AB47: 0.1517
A48: 1983-03-02 | B48: 23 | C48: 12 | D48: 198303 | E48: C | F48: 1 | Z48: 0.1534 | AA48: 0.1489 | AB48: 0.1477 | AC48: 0.1511 | AD48: 0.1618 | AE48: 0.181
A49: 1983-03-03 | B49: 24 | C49: 11 | D49: 198303 | E49: P | F49: 1 | P49: 0.2651 | Q49: 0.2491 | R49: 0.2403 | S49: 0.2362 | T49: 0.2329 | U49: 0.2278 | V49: 0.22 | W49: 0.2102 | X49: 0.1992 | Y49: 0.1872 | Z49: 0.1746 | AA49: 0.1638 | AB49: 0.1572
A50: 1983-03-03 | B50: 24 | C50: 11 | D50: 198303 | E50: C | F50: 1 | Y50: 0.1866 | Z50: 0.1682 | AA50: 0.158 | AB50: 0.1526 | AC50: 0.1523 | AD50: 0.1583 | AE50: 0.1745
A51: 1983-03-04 | B51: 25 | C51: 10 | D51: 198303 | E51: P | F51: 1 | O51: 0.3001 | P51: 0.2789 | Q51: 0.264 | R51: 0.2565 | S51: 0.2528 | T51: 0.2474 | U51: 0.2377 | V51: 0.2234 | W51: 0.2081 | X51: 0.1952 | Y51: 0.1855 | Z51: 0.178 | AA51: 0.1708
A52: 1983-03-04 | B52: 25 | C52: 10 | D52: 198303 | E52: C | F52: 1 | Y52: 0.1842 | Z52: 0.1748 | AA52: 0.17 | AB52: 0.1678 | AC52: 0.169 | AD52: 0.1762 | AE52: 0.1957
A53: 1983-03-07 | B53: 26 | C53: 72 | D53: 198306 | E53: P | F53: 1 | O53: 0.2263 | P53: 0.2202 | Q53: 0.2178 | R53: 0.2173 | S53: 0.2174 | T53: 0.2171 | U53: 0.2156 | V53: 0.2129 | W53: 0.2103 | X53: 0.2085 | Y53: 0.2081 | Z53: 0.2082 | AA53: 0.2078 | AB53: 0.2062 | AC53: 0.2031 | AD53: 0.1984
A54: 1983-03-07 | B54: 26 | C54: 72 | D54: 198306 | E54: C | F54: 1 | R54: 0.1915 | S54: 0.1972 | T54: 0.1998 | U54: 0.2001 | V54: 0.1988 | W54: 0.1969 | X54: 0.1953 | Y54: 0.1943 | Z54: 0.1931 | AA54: 0.1911 | AB54: 0.1875 | AC54: 0.183 | AD54: 0.1787 | AE54: 0.1757 | AF54: 0.1756 | AG54: 0.1808
A55: 1983-03-08 | B55: 27 | C55: 71 | D55: 198306 | E55: P | F55: 1 | P55: 0.2158 | Q55: 0.211 | R55: 0.2081 | S55: 0.2066 | T55: 0.2061 | U55: 0.2059 | V55: 0.2057 | W55: 0.205 | X55: 0.2036 | Y55: 0.2011 | Z55: 0.1972 | AA55: 0.1923 | AB55: 0.1872 | AC55: 0.183 | AD55: 0.1804 | AE55: 0.1801 | AF55: 0.1826
A56: 1983-03-08 | B56: 27 | C56: 71 | D56: 198306 | E56: C | F56: 1 | S56: 0.2226 | T56: 0.2217 | U56: 0.2192 | V56: 0.215 | W56: 0.2095 | X56: 0.2032 | Y56: 0.1967 | Z56: 0.1906 | AA56: 0.1855 | AB56: 0.1818 | AC56: 0.1801 | AD56: 0.1806 | AE56: 0.1822 | AF56: 0.1837 | AG56: 0.184 | AH56: 0.1842 | AI56: 0.1866
A57: 1983-03-09 | B57: 28 | C57: 70 | D57: 198306 | E57: P | F57: 1 | O57: 0.2248 | P57: 0.2222 | Q57: 0.2189 | R57: 0.2151 | S57: 0.2108 | T57: 0.2067 | U57: 0.2036 | V57: 0.2018 | W57: 0.2009 | X57: 0.2001 | Y57: 0.1989 | Z57: 0.1972 | AA57: 0.1956 | AB57: 0.1948 | AC57: 0.1952 | AD57: 0.1972 | AE57: 0.2012
A58: 1983-03-09 | B58: 28 | C58: 70 | D58: 198306 | E58: C | F58: 1 | S58: 0.2099 | T58: 0.2078 | U58: 0.209 | V58: 0.2097 | W58: 0.2087 | X58: 0.2061 | Y58: 0.2019 | Z58: 0.1967 | AA58: 0.1916 | AB58: 0.1878 | AC58: 0.1859 | AD58: 0.185 | AE58: 0.1843 | AF58: 0.1827 | AG58: 0.1798 | AH58: 0.175
A59: 1983-03-10 | B59: 29 | C59: 69 | D59: 198306 | E59: P | F59: 1 | Q59: 0.2198 | R59: 0.2122 | S59: 0.2071 | T59: 0.204 | U59: 0.2023 | V59: 0.2015 | W59: 0.2011 | X59: 0.2009 | Y59: 0.2004 | Z59: 0.1995 | AA59: 0.1978 | AB59: 0.1953 | AC59: 0.1918
A60: 1983-03-10 | B60: 29 | C60: 69 | D60: 198306 | E60: C | F60: 1 | T60: 0.2173 | U60: 0.2041 | V60: 0.1956 | W60: 0.1922 | X60: 0.1929 | Y60: 0.1954 | Z60: 0.1976 | AA60: 0.1984 | AB60: 0.198 | AC60: 0.1973 | AD60: 0.1971 | AE60: 0.1971 | AF60: 0.197 | AG60: 0.1962 | AH60: 0.1943 | AI60: 0.1908
A61: 1983-03-11 | B61: 30 | C61: 68 | D61: 198306 | E61: P | F61: 1 | P61: 0.2263 | Q61: 0.2146 | R61: 0.2074 | S61: 0.2043 | T61: 0.2044 | U61: 0.2061 | V61: 0.2076 | W61: 0.2077 | X61: 0.2059 | Y61: 0.2024 | Z61: 0.1972 | AA61: 0.1919 | AB61: 0.1916 | AC61: 0.2019
A62: 1983-03-11 | B62: 30 | C62: 68 | D62: 198306 | E62: C | F62: 1 | T62: 0.2127 | U62: 0.1974 | V62: 0.1869 | W62: 0.1829 | X62: 0.1845 | Y62: 0.1883 | Z62: 0.1918 | AA62: 0.1936 | AB62: 0.1936 | AC62: 0.1922 | AD62: 0.1897 | AE62: 0.1867 | AF62: 0.1841 | AG62: 0.1828 | AH62: 0.1829 | AI62: 0.1834
A63: 1983-03-14 | B63: 31 | C63: 67 | D63: 198306 | E63: P | F63: 1 | P63: 0.2269 | Q63: 0.2191 | R63: 0.2137 | S63: 0.2102 | T63: 0.208 | U63: 0.2064 | V63: 0.2046 | W63: 0.2022 | X63: 0.1994 | Y63: 0.1965 | Z63: 0.1937 | AA63: 0.1911 | AB63: 0.1888
A64: 1983-03-14 | B64: 31 | C64: 67 | D64: 198306 | E64: C | F64: 1 | S64: 0.2229 | T64: 0.213 | U64: 0.2061 | V64: 0.2018 | W64: 0.1993 | X64: 0.1978 | Y64: 0.196 | Z64: 0.193 | AA64: 0.1889 | AB64: 0.1849 | AC64: 0.182 | AD64: 0.181 | AE64: 0.1812 | AF64: 0.1817 | AG64: 0.1816 | AH64: 0.1804 | AI64: 0.1777
A65: 1983-03-15 | B65: 32 | C65: 66 | D65: 198306 | E65: P | F65: 1 | P65: 0.2272 | Q65: 0.2208 | R65: 0.2154 | S65: 0.2107 | T65: 0.2066 | U65: 0.2031 | V65: 0.2005 | W65: 0.1987 | X65: 0.1974 | Y65: 0.1963 | Z65: 0.1951 | AA65: 0.1937 | AB65: 0.1919
A66: 1983-03-15 | B66: 32 | C66: 66 | D66: 198306 | E66: C | F66: 1 | S66: 0.2149 | T66: 0.2052 | U66: 0.2028 | V66: 0.2035 | W66: 0.2039 | X66: 0.2031 | Y66: 0.201 | Z66: 0.1971 | AA66: 0.1922 | AB66: 0.1874 | AC66: 0.1837 | AD66: 0.1817 | AE66: 0.1809 | AF66: 0.1806 | AG66: 0.1802 | AH66: 0.179 | AI66: 0.1765
A67: 1983-03-16 | B67: 33 | C67: 65 | D67: 198306 | E67: P | F67: 1 | R67: 0.197 | S67: 0.1901 | T67: 0.1868 | U67: 0.1863 | V67: 0.1875 | W67: 0.1893 | X67: 0.1906 | Y67: 0.1908 | Z67: 0.19 | AA67: 0.1889 | AB67: 0.1879 | AC67: 0.1874 | AD67: 0.1875
A68: 1983-03-16 | B68: 33 | C68: 65 | D68: 198306 | E68: C | F68: 1 | U68: 0.2045 | V68: 0.2014 | W68: 0.1996 | X68: 0.1986 | Y68: 0.1984 | Z68: 0.1984 | AA68: 0.1983 | AB68: 0.1976 | AC68: 0.1962 | AD68: 0.1943 | AE68: 0.1921 | AF68: 0.1897 | AG68: 0.1876 | AH68: 0.186 | AI68: 0.1855 | AJ68: 0.1866 | AK68: 0.1901
A69: 1983-03-17 | B69: 34 | C69: 64 | D69: 198306 | E69: P | F69: 1 | R69: 0.2021 | S69: 0.1981 | T69: 0.1952 | U69: 0.1931 | V69: 0.1914 | W69: 0.19 | X69: 0.1888 | Y69: 0.1877 | Z69: 0.1867 | AA69: 0.1858 | AB69: 0.1853 | AC69: 0.1851 | AD69: 0.1855
A70: 1983-03-17 | B70: =+B68+1 -> 34 | C70: 64 | D70: 198306 | E70: C | F70: 1 | U70: 0.189 | V70: 0.1897 | W70: 0.191 | X70: 0.1929 | Y70: 0.1953 | Z70: 0.1979 | AA70: 0.1999 | AB70: 0.2009 | AC70: 0.2007 | AD70: 0.1993 | AE70: 0.1966 | AF70: 0.1928 | AG70: 0.1888 | AH70: 0.1859 | AI70: 0.1853 | AJ70: 0.187 | AK70: 0.1897
A71: 1983-03-18 | B71: 35 | C71: 63 | D71: 198306 | E71: P | F71: 1 | Q71: 0.2089 | R71: 0.2105 | S71: 0.2098 | T71: 0.2071 | U71: 0.2028 | V71: 0.1979 | W71: 0.1933 | X71: 0.19 | Y71: 0.1878 | Z71: 0.1864 | AA71: 0.1857 | AB71: 0.1851 | AC71: 0.1839 | AD71: 0.1814
A72: 1983-03-18 | B72: 35 | C72: 63 | D72: 198306 | E72: C | F72: 1 | U72: 0.1956 | V72: 0.1918 | W72: 0.1898 | X72: 0.189 | Y72: 0.1888 | Z72: 0.188 | AA72: 0.1857 | AB72: 0.1818 | AC72: 0.1773 | AD72: 0.1733 | AE72: 0.1711 | AF72: 0.1706 | AG72: 0.1716 | AH72: 0.1736 | AI72: 0.1764 | AJ72: 0.1792
A73: 1983-03-21 | B73: 36 | C73: 62 | D73: 198306 | E73: P | F73: 1 | P73: 0.1988 | Q73: 0.1902 | R73: 0.1866 | S73: 0.1865 | T73: 0.1883 | U73: 0.1903 | V73: 0.1911 | W73: 0.19 | X73: 0.1868 | Y73: 0.182 | Z73: 0.1758 | AA73: 0.1706 | AB73: 0.1709
A74: 1983-03-21 | B74: 36 | C74: 62 | D74: 198306 | E74: C | F74: 1 | S74: 0.179 | T74: 0.1757 | U74: 0.1741 | V74: 0.1735 | W74: 0.1736 | X74: 0.1742 | Y74: 0.1749 | Z74: 0.1755 | AA74: 0.1757 | AB74: 0.175 | AC74: 0.1727 | AD74: 0.1686 | AE74: 0.1638 | AF74: 0.1592 | AG74: 0.1564 | AH74: 0.1566 | AI74: 0.1617
A75: 1983-03-22 | B75: 37 | C75: 61 | D75: 198306 | E75: P | F75: 1 | T75: 0.1878 | U75: 0.1889 | V75: 0.1891 | W75: 0.1885 | X75: 0.1873 | Y75: 0.1853 | Z75: 0.1827 | AA75: 0.1795 | AB75: 0.1756 | AC75: 0.1709
A76: 1983-03-22 | B76: 37 | C76: 61 | D76: 198306 | E76: C | F76: 1 | T76: 0.2232 | U76: 0.2105 | V76: 0.2002 | W76: 0.192 | X76: 0.1853 | Y76: 0.1797 | Z76: 0.175 | AA76: 0.171 | AB76: 0.1677 | AC76: 0.165 | AD76: 0.1631 | AE76: 0.1619 | AF76: 0.1612 | AG76: 0.1606 | AH76: 0.1597 | AI76: 0.1585 | AJ76: 0.1569
A77: 1983-03-23 | B77: 38 | C77: 60 | D77: 198306 | E77: P | F77: 1 | O77: 0.1952 | P77: 0.1919 | Q77: 0.1901 | R77: 0.1889 | S77: 0.188 | T77: 0.1868 | U77: 0.1851 | V77: 0.1828 | W77: 0.1799 | X77: 0.1763 | Y77: 0.1721 | Z77: 0.168 | AA77: 0.1646 | AB77: 0.1624 | AC77: 0.162 | AD77: 0.1636
A78: 1983-03-23 | B78: 38 | C78: 60 | D78: 198306 | E78: C | F78: 1 | U78: 0.1877 | V78: 0.1811 | W78: 0.1759 | X78: 0.1717 | Y78: 0.1681 | Z78: 0.1651 | AA78: 0.1626 | AB78: 0.1605 | AC78: 0.1588 | AD78: 0.1572 | AE78: 0.1557 | AF78: 0.1543 | AG78: 0.1532
A79: 1983-03-24 | B79: 39 | C79: 59 | D79: 198306 | E79: P | F79: 1 | O79: 0.1951 | P79: 0.1908 | Q79: 0.1891 | R79: 0.189 | S79: 0.1894 | T79: 0.1892 | U79: 0.1881 | V79: 0.1856 | W79: 0.182 | X79: 0.1772 | Y79: 0.1714 | Z79: 0.1657 | AA79: 0.1613 | AB79: 0.1591 | AC79: 0.1597 | AD79: 0.1638
A80: 1983-03-24 | B80: 39 | C80: 59 | D80: 198306 | E80: C | F80: 1 | U80: 0.1851 | V80: 0.1829 | W80: 0.1808 | X80: 0.1784 | Y80: 0.1759 | Z80: 0.173 | AA80: 0.1698 | AB80: 0.1661 | AC80: 0.1623 | AD80: 0.1587 | AE80: 0.1561 | AF80: 0.1548 | AG80: 0.1556
A81: 1983-03-25 | B81: 40 | C81: 58 | D81: 198306 | E81: P | F81: 1 | P81: 0.1917 | Q81: 0.1885 | R81: 0.1864 | S81: 0.1849 | T81: 0.1836 | U81: 0.1824 | V81: 0.1811 | W81: 0.1796 | X81: 0.1778 | Y81: 0.1753 | Z81: 0.1722 | AA81: 0.1689 | AB81: 0.1658 | AC81: 0.1634 | AD81: 0.162 | AE81: 0.1619
A82: 1983-03-25 | B82: 40 | C82: 58 | D82: 198306 | E82: C | F82: 1 | V82: 0.1933 | W82: 0.1926 | X82: 0.1901 | Y82: 0.1859 | Z82: 0.1804 | AA82: 0.1748 | AB82: 0.1702 | AC82: 0.1678 | AD82: 0.1674 | AE82: 0.1681 | AF82: 0.1689 | AG82: 0.1694 | AH82: 0.169
A83: 1983-03-28 | B83: 41 | C83: 57 | D83: 198306 | E83: P | F83: 1 | P83: 0.1907 | Q83: 0.189 | R83: 0.1878 | S83: 0.1867 | T83: 0.1856 | U83: 0.1842 | V83: 0.1826 | W83: 0.1807 | X83: 0.1787 | Y83: 0.1769 | Z83: 0.1752 | AA83: 0.1737 | AB83: 0.1722 | AC83: 0.1709 | AD83: 0.1696 | AE83: 0.1684
A84: 1983-03-28 | B84: 41 | C84: 57 | D84: 198306 | E84: C | F84: 1 | V84: 0.1842 | W84: 0.1843 | X84: 0.183 | Y84: 0.1804 | Z84: 0.1768 | AA84: 0.1729 | AB84: 0.1697 | AC84: 0.1679 | AD84: 0.1674 | AE84: 0.1677 | AF84: 0.1683 | AG84: 0.1688 | AH84: 0.1692
A85: 1983-03-29 | B85: 42 | C85: 56 | D85: 198306 | E85: P | F85: 1 | P85: 0.1851 | Q85: 0.1798 | R85: 0.1781 | S85: 0.1785 | T85: 0.1798 | U85: 0.1811 | V85: 0.1818 | W85: 0.1815 | X85: 0.1803 | Y85: 0.1784 | Z85: 0.1761 | AA85: 0.1733 | AB85: 0.1702 | AC85: 0.1666 | AD85: 0.1626 | AE85: 0.1581 | AF85: 0.1528
A86: 1983-03-29 | B86: 42 | C86: 56 | D86: 198306 | E86: C | F86: 1 | W86: 0.1834 | X86: 0.1808 | Y86: 0.1791 | Z86: 0.1782 | AA86: 0.1778 | AB86: 0.1774 | AC86: 0.1766 | AD86: 0.1752 | AE86: 0.1733 | AF86: 0.1715 | AG86: 0.1699 | AH86: 0.1692 | AI86: 0.1699
A87: 1983-03-30 | B87: 43 | C87: 55 | D87: 198306 | E87: P | F87: 1 | O87: 0.1992 | P87: 0.1942 | Q87: 0.1937 | R87: 0.1953 | S87: 0.1973 | T87: 0.1983 | U87: 0.1974 | V87: 0.1945 | W87: 0.1902 | X87: 0.1851 | Y87: 0.1798 | Z87: 0.1755 | AA87: 0.1735 | AB87: 0.175 | AC87: 0.1793 | AD87: 0.1847
A88: 1983-03-30 | B88: 43 | C88: 55 | D88: 198306 | E88: C | F88: 1 | U88: 0.1794 | V88: 0.1804 | W88: 0.1803 | X88: 0.179 | Y88: 0.1768 | Z88: 0.1743 | AA88: 0.1722 | AB88: 0.171 | AC88: 0.1702 | AD88: 0.1687 | AE88: 0.1651 | AF88: 0.1599 | AG88: 0.1557
A89: 1983-03-31 | B89: 44 | C89: 54 | D89: 198306 | E89: P | F89: 1 | P89: 0.1867 | Q89: 0.1793 | R89: 0.1786 | S89: 0.181 | T89: 0.1845 | U89: 0.1873 | V89: 0.1886 | W89: 0.1876 | X89: 0.1847 | Y89: 0.1811 | Z89: 0.1775 | AA89: 0.1744 | AB89: 0.1712 | AC89: 0.1675 | AD89: 0.1627 | AE89: 0.1558 | AF89: 0.1455
A90: 1983-03-31 | B90: 44 | C90: 54 | D90: 198306 | E90: C | F90: 1 | W90: 0.192 | X90: 0.1813 | Y90: 0.1737 | Z90: 0.1689 | AA90: 0.1662 | AB90: 0.1652 | AC90: 0.1657 | AD90: 0.1674 | AE90: 0.1697 | AF90: 0.1721 | AG90: 0.1735 | AH90: 0.1734 | AI90: 0.1713
A91: 1983-04-04 | B91: 45 | C91: 53 | D91: 198306 | E91: P | F91: 1 | P91: 0.1962 | Q91: 0.192 | R91: 0.1914 | S91: 0.1921 | T91: 0.1925 | U91: 0.1917 | V91: 0.189 | W91: 0.1846 | X91: 0.18 | Y91: 0.1763 | Z91: 0.1741 | AA91: 0.1732 | AB91: 0.1734 | AC91: 0.1744 | AD91: 0.1755 | AE91: 0.1757
A92: 1983-04-04 | B92: 45 | C92: 53 | D92: 198306 | E92: C | F92: 1 | V92: 0.1755 | W92: 0.1768 | X92: 0.1763 | Y92: 0.1741 | Z92: 0.1707 | AA92: 0.1669 | AB92: 0.1638 | AC92: 0.1624 | AD92: 0.1623 | AE92: 0.1628 | AF92: 0.1631 | AG92: 0.1625 | AH92: 0.1606
A93: 1983-04-05 | B93: 46 | C93: 52 | D93: 198306 | E93: P | F93: 1 | P93: 0.1998 | Q93: 0.19 | R93: 0.1864 | S93: 0.186 | T93: 0.1867 | U93: 0.1873 | V93: 0.187 | W93: 0.1853 | X93: 0.1826 | Y93: 0.1803 | Z93: 0.1795 | AA93: 0.1807 | AB93: 0.1825 | AC93: 0.1836 | AD93: 0.1824 | AE93: 0.1785 | AF93: 0.1714
A94: 1983-04-05 | B94: 46 | C94: 52 | D94: 198306 | E94: C | F94: 1 | W94: 0.1725 | X94: 0.1692 | Y94: 0.1681 | Z94: 0.1689 | AA94: 0.1711 | AB94: 0.1735 | AC94: 0.1749 | AD94: 0.1742 | AE94: 0.1716 | AF94: 0.168 | AG94: 0.1643 | AH94: 0.1617 | AI94: 0.1612
A95: 1983-04-06 | B95: 47 | C95: 51 | D95: 198306 | E95: P | F95: 1 | Q95: 0.1949 | R95: 0.1912 | S95: 0.1883 | T95: 0.1858 | U95: 0.1833 | V95: 0.1809 | W95: 0.1783 | X95: 0.1759 | Y95: 0.1742 | Z95: 0.1741 | AA95: 0.176 | AB95: 0.179 | AC95: 0.1819 | AD95: 0.1833 | AE95: 0.1827 | AF95: 0.1795
A96: 1983-04-06 | B96: 47 | C96: 51 | D96: 198306 | E96: C | F96: 1 | T96: 0.17 | U96: 0.1703 | V96: 0.1709 | W96: 0.1715 | X96: 0.1722 | Y96: 0.1727 | Z96: 0.173 | AA96: 0.1731 | AB96: 0.1728 | AC96: 0.1718 | AD96: 0.1698 | AE96: 0.1669 | AF96: 0.1633 | AG96: 0.1595 | AH96: 0.1561 | AI96: 0.1538 | AJ96: 0.1541
A97: 1983-04-07 | B97: 48 | C97: 50 | D97: 198306 | E97: P | F97: 1 | P97: 0.195 | Q97: 0.1928 | R97: 0.1905 | S97: 0.1877 | T97: 0.1846 | U97: 0.1813 | V97: 0.1783 | W97: 0.176 | X97: 0.1743 | Y97: 0.1728 | Z97: 0.1715 | AA97: 0.1701 | AB97: 0.1688 | AC97: 0.1676 | AD97: 0.1667 | AE97: 0.1661 | AF97: 0.1663
A98: 1983-04-07 | B98: 48 | C98: 50 | D98: 198306 | E98: C | F98: 1 | W98: 0.1801 | X98: 0.1783 | Y98: 0.1763 | Z98: 0.1741 | AA98: 0.1718 | AB98: 0.1696 | AC98: 0.1679 | AD98: 0.1672 | AE98: 0.167 | AF98: 0.1668 | AG98: 0.166 | AH98: 0.1639 | AI98: 0.1599
A99: 1983-04-08 | B99: 49 | C99: 49 | D99: 198306 | E99: P | F99: 1 | P99: 0.197 | Q99: 0.1929 | R99: 0.1897 | S99: 0.1868 | T99: 0.1838 | U99: 0.1805 | V99: 0.1768 | W99: 0.1725 | X99: 0.1681 | Y99: 0.1645 | Z99: 0.1623 | AA99: 0.1618 | AB99: 0.1626 | AC99: 0.1643 | AD99: 0.1665 | AE99: 0.1694 | AF99: 0.1731
A100: 1983-04-08 | B100: 49 | C100: 49 | D100: 198306 | E100: C | F100: 1 | W100: 0.1802 | X100: 0.1785 | Y100: 0.1767 | Z100: 0.1747 | AA100: 0.1725 | AB100: 0.1704 | AC100: 0.1688 | AD100: 0.1681 | AE100: 0.168 | AF100: 0.1679 | AG100: 0.167 | AH100: 0.1649 | AI100: 0.1609
A101: 1983-04-11 | B101: 50 | C101: 48 | D101: 198306 | E101: P | F101: 1 | O101: 0.2014 | P101: 0.1967 | Q101: 0.1929 | R101: 0.1895 | S101: 0.1863 | T101: 0.1835 | U101: 0.1812 | V101: 0.1791 | W101: 0.1769 | X101: 0.1744 | Y101: 0.1715 | Z101: 0.1684 | AA101: 0.1652 | AB101: 0.162 | AC101: 0.1588 | AD101: 0.1556
A102: 1983-04-11 | B102: 50 | C102: 48 | D102: 198306 | E102: C | F102: 1 | U102: 0.1647 | V102: 0.1637 | W102: 0.1632 | X102: 0.1629 | Y102: 0.1625 | Z102: 0.1615 | AA102: 0.1597 | AB102: 0.1568 | AC102: 0.1532 | AD102: 0.1491 | AE102: 0.1451 | AF102: 0.1413 | AG102: 0.1386
A103: 1983-04-12 | B103: 51 | C103: 47 | D103: 198306 | E103: P | F103: 1 | N103: 0.2046 | O103: 0.1991 | P103: 0.1959 | Q103: 0.1938 | R103: 0.1921 | S103: 0.19 | T103: 0.1872 | U103: 0.1835 | V103: 0.1792 | W103: 0.1746 | X103: 0.1699 | Y103: 0.1655 | Z103: 0.1621 | AA103: 0.1603 | AB103: 0.1605 | AC103: 0.1632
A104: 1983-04-12 | B104: 51 | C104: 47 | D104: 198306 | E104: C | F104: 1 | X104: 0.1623 | Y104: 0.1611 | Z104: 0.159 | AA104: 0.1559 | AB104: 0.1521 | AC104: 0.1481 | AD104: 0.1448 | AE104: 0.1429 | AF104: 0.1437 | AG104: 0.1488
A105: 1983-04-13 | B105: 52 | C105: 46 | D105: 198306 | E105: P | F105: 1 | N105: 0.2024 | O105: 0.198 | P105: 0.1945 | Q105: 0.1914 | R105: 0.1884 | S105: 0.1857 | T105: 0.1835 | U105: 0.1813 | V105: 0.1786 | W105: 0.1749 | X105: 0.1699 | Y105: 0.1644 | Z105: 0.1587 | AA105: 0.1533 | AB105: 0.1483 | AC105: 0.1435
A106: 1983-04-13 | B106: 52 | C106: 46 | D106: 198306 | E106: C | F106: 1 | W106: 0.1736 | X106: 0.1686 | Y106: 0.1639 | Z106: 0.1592 | AA106: 0.1544 | AB106: 0.1496 | AC106: 0.1454 | AD106: 0.1426 | AE106: 0.1419 | AF106: 0.1447
A107: 1983-04-14 | B107: 53 | C107: 45 | D107: 198306 | E107: P | F107: 1 | M107: 0.2163 | N107: 0.2161 | O107: 0.2132 | P107: 0.2083 | Q107: 0.2028 | R107: 0.1979 | S107: 0.1942 | T107: 0.1912 | U107: 0.1879 | V107: 0.1832 | W107: 0.1773 | X107: 0.171 | Y107: 0.1651 | Z107: 0.1599 | AA107: 0.1554 | AB107: 0.1515
A108: 1983-04-14 | B108: 53 | C108: 45 | D108: 198306 | E108: C | F108: 1 | V108: 0.1791 | W108: 0.1715 | X108: 0.1656 | Y108: 0.1609 | Z108: 0.1568 | AA108: 0.1534 | AB108: 0.1508 | AC108: 0.1491 | AD108: 0.1487 | AE108: 0.1502
A109: 1983-04-15 | B109: 54 | C109: 44 | D109: 198306 | E109: P | F109: 1 | M109: 0.2161 | N109: 0.2126 | O109: 0.2072 | P109: 0.2003 | Q109: 0.1934 | R109: 0.1883 | S109: 0.1859 | T109: 0.1854 | U109: 0.1851 | V109: 0.184 | W109: 0.1814 | X109: 0.177 | Y109: 0.1708 | Z109: 0.1627 | AA109: 0.1545 | AB109: 0.1476 | AC109: 0.1437 | AD109: 0.1414 | AE109: 0.1383
A110: 1983-04-15 | B110: 54 | C110: 44 | D110: 198306 | E110: C | F110: 1 | V110: 0.1837 | W110: 0.1816 | X110: 0.1785 | Y110: 0.1743 | Z110: 0.169 | AA110: 0.1635 | AB110: 0.1584 | AC110: 0.1547 | AD110: 0.1529 | AE110: 0.1538
A111: 1983-04-18 | B111: 55 | C111: 43 | D111: 198306 | E111: P | F111: 1 | L111: 0.2175 | M111: 0.2147 | N111: 0.2098 | O111: 0.2033 | P111: 0.196 | Q111: 0.1898 | R111: 0.1862 | S111: 0.1853 | T111: 0.1856 | U111: 0.1856 | V111: 0.1845 | W111: 0.182 | X111: 0.1777 | Y111: 0.1715 | Z111: 0.1642 | AA111: 0.1576 | AB111: 0.1532 | AC111: 0.1512 | AD111: 0.1493
A112: 1983-04-18 | B112: 55 | C112: 43 | D112: 198306 | E112: C | F112: 1 | V112: 0.1892 | W112: 0.1838 | X112: 0.179 | Y112: 0.1744 | Z112: 0.17 | AA112: 0.166 | AB112: 0.1627 | AC112: 0.1603 | AD112: 0.1592
A113: 1983-04-20 | B113: 56 | C113: 41 | D113: 198306 | E113: P | F113: 1 | L113: 0.2185 | M113: 0.2136 | N113: 0.2112 | O113: 0.2096 | P113: 0.2082 | Q113: 0.2068 | R113: 0.2051 | S113: 0.2029 | T113: 0.2 | U113: 0.196 | V113: 0.1911 | W113: 0.1852 | X113: 0.1785 | Y113: 0.1713 | Z113: 0.165 | AA113: 0.1607 | AB113: 0.1595 | AC113: 0.1619
A114: 1983-04-20 | B114: 56 | C114: 41 | D114: 198306 | E114: C | F114: 1 | X114: 0.1722 | Y114: 0.1666 | Z114: 0.1623 | AA114: 0.1588 | AB114: 0.1559 | AC114: 0.1536
A115: 1983-04-21 | B115: 57 | C115: 40 | D115: 198306 | E115: P | F115: 1 | L115: 0.2252 | M115: 0.224 | N115: 0.2202 | O115: 0.2146 | P115: 0.2083 | Q115: 0.203 | R115: 0.1994 | S115: 0.1973 | T115: 0.196 | U115: 0.1949 | V115: 0.1934 | W115: 0.1911 | X115: 0.1873 | Y115: 0.182 | Z115: 0.1762 | AA115: 0.171 | AB115: 0.1675 | AC115: 0.1662 | AD115: 0.1679
A116: 1983-04-21 | B116: 57 | C116: 40 | D116: 198306 | E116: C | F116: 1 | U116: 0.1915 | V116: 0.1886 | W116: 0.185 | X116: 0.1806 | Y116: 0.1754 | Z116: 0.17 | AA116: 0.165 | AB116: 0.1608 | AC116: 0.1574 | AD116: 0.1543 | AE116: 0.1511 | AF116: 0.1478 | AG116: 0.1446
A117: 1983-04-22 | B117: 58 | C117: 39 | D117: 198306 | E117: P | F117: 1 | L117: 0.224 | M117: 0.2219 | N117: 0.2211 | O117: 0.2187 | P117: 0.214 | Q117: 0.208 | R117: 0.2011 | S117: 0.1943 | T117: 0.189 | U117: 0.1861 | V117: 0.1852 | W117: 0.1841 | X117: 0.1811 | Y117: 0.1755 | Z117: 0.1686 | AA117: 0.1621 | AB117: 0.1573 | AC117: 0.1546 | AD117: 0.1543 | AE117: 0.1572 | AF117: 0.1631 | AG117: 0.1703
A118: 1983-04-22 | B118: 58 | C118: 39 | D118: 198306 | E118: C | F118: 1 | U118: 0.192 | V118: 0.1928 | W118: 0.1905 | X118: 0.1857 | Y118: 0.1789 | Z118: 0.1717 | AA118: 0.1658 | AB118: 0.1627 | AC118: 0.1617 | AD118: 0.1615 | AE118: 0.161 | AF118: 0.1596 | AG118: 0.1566
A119: 1983-04-25 | B119: 59 | C119: 38 | D119: 198306 | E119: P | F119: 1 | M119: 0.2178 | N119: 0.2151 | O119: 0.2116 | P119: 0.2071 | Q119: 0.2021 | R119: 0.1973 | S119: 0.1931 | T119: 0.1896 | U119: 0.1874 | V119: 0.1869 | W119: 0.1874 | X119: 0.1873 | Y119: 0.185 | Z119: 0.1799 | AA119: 0.1731 | AB119: 0.1661 | AC119: 0.16 | AD119: 0.1547 | AE119: 0.1492
A120: 1983-04-25 | B120: 59 | C120: 38 | D120: 198306 | E120: C | F120: 1 | V120: 0.1857 | W120: 0.1856 | X120: 0.1828 | Y120: 0.1777 | Z120: 0.1708 | AA120: 0.1638 | AB120: 0.1585 | AC120: 0.1566 | AD120: 0.1579 | AE120: 0.1609 | AF120: 0.1645 | AG120: 0.1677 | AH120: 0.1701
A121: 1983-04-26 | B121: 60 | C121: 37 | D121: 198306 | E121: P | F121: 1 | K121: 0.2265 | L121: 0.2229 | M121: 0.2214 | N121: 0.2192 | O121: 0.2155 | P121: 0.2101 | Q121: 0.2031 | R121: 0.1961 | S121: 0.1911 | T121: 0.1889 | U121: 0.188 | V121: 0.1862 | W121: 0.1819 | X121: 0.1755 | Y121: 0.1691 | Z121: 0.164 | AA121: 0.1609 | AB121: 0.1592 | AC121: 0.1589 | AD121: 0.1593 | AE121: 0.1592
A122: 1983-04-26 | B122: 60 | C122: 37 | D122: 198306 | E122: C | F122: 1 | W122: 0.172 | X122: 0.1666 | Y122: 0.1624 | Z122: 0.1588 | AA122: 0.1556 | AB122: 0.1529 | AC122: 0.151 | AD122: 0.1505 | AE122: 0.1521
A123: 1983-04-27 | B123: 61 | C123: 36 | D123: 198306 | E123: P | F123: 1 | K123: 0.2282 | L123: 0.2248 | M123: 0.2241 | N123: 0.2229 | O123: 0.2202 | P123: 0.2155 | Q123: 0.2091 | R123: 0.2021 | S123: 0.1967 | T123: 0.1938 | U123: 0.1926 | V123: 0.1906 | W123: 0.1864 | X123: 0.18 | Y123: 0.1737 | Z123: 0.1695 | AA123: 0.1681 | AB123: 0.1679 | AC123: 0.1672 | AD123: 0.1647 | AE123: 0.159 | AF123: 0.1481
A124: 1983-04-27 | B124: 61 | C124: 36 | D124: 198306 | E124: C | F124: 1 | W124: 0.172 | X124: 0.1668 | Y124: 0.1627 | Z124: 0.1592 | AA124: 0.156 | AB124: 0.1531 | AC124: 0.1509 | AD124: 0.15 | AE124: 0.1511 | AF124: 0.1557
A125: 1983-04-28 | B125: 62 | C125: 35 | D125: 198306 | E125: P | F125: 1 | J125: 0.2246 | K125: 0.2233 | L125: 0.2225 | M125: 0.2213 | N125: 0.2192 | O125: 0.2158 | P125: 0.2111 | Q125: 0.2056 | R125: 0.2006 | S125: 0.197 | T125: 0.1944 | U125: 0.1914 | V125: 0.1871 | W125: 0.181 | X125: 0.1741 | Y125: 0.1669 | Z125: 0.1602 | AA125: 0.1561 | AB125: 0.1571 | AC125: 0.1656 | AD125: 0.181 | AE125: 0.2013
A126: 1983-04-28 | B126: 62 | C126: 35 | D126: 198306 | E126: C | F126: 1 | V126: 0.193 | W126: 0.181 | X126: 0.1724 | Y126: 0.166 | Z126: 0.1611 | AA126: 0.1574 | AB126: 0.1546 | AC126: 0.1531 | AD126: 0.1533 | AE126: 0.1561
A127: 1983-04-29 | B127: 63 | C127: 34 | D127: 198306 | E127: P | F127: 1 | J127: 0.2317 | K127: 0.2258 | L127: 0.2184 | M127: 0.2103 | N127: 0.2034 | O127: 0.1995 | P127: 0.1983 | Q127: 0.1978 | R127: 0.1964 | S127: 0.1938 | T127: 0.1899 | U127: 0.1854 | V127: 0.1804 | W127: 0.1752 | X127: 0.1701 | Y127: 0.1655 | Z127: 0.1612 | AA127: 0.1573 | AB127: 0.1539 | AC127: 0.1518 | AD127: 0.1532
A128: 1983-04-29 | B128: 63 | C128: 34 | D128: 198306 | E128: C | F128: 1 | Y128: 0.1666 | Z128: 0.16 | AA128: 0.1562 | AB128: 0.155 | AC128: 0.1566 | AD128: 0.1617
A129: 1983-05-02 | B129: 64 | C129: 33 | D129: 198306 | E129: P | F129: 1 | J129: 0.2286 | K129: 0.2209 | L129: 0.2156 | M129: 0.2112 | N129: 0.2072 | O129: 0.2038 | P129: 0.201 | Q129: 0.1983 | R129: 0.1954 | S129: 0.1918 | T129: 0.1877 | U129: 0.184 | V129: 0.1813 | W129: 0.1796 | X129: 0.1784 | Y129: 0.1771 | Z129: 0.1754 | AA129: 0.173 | AB129: 0.1696 | AC129: 0.1651 | AD129: 0.159 | AE129: 0.1509
A130: 1983-05-02 | B130: 64 | C130: 33 | D130: 198306 | E130: C | F130: 1 | W130: 0.1817 | X130: 0.1791 | Y130: 0.1744 | Z130: 0.1677 | AA130: 0.1608 | AB130: 0.1557 | AC130: 0.1542 | AD130: 0.1554 | AE130: 0.1566
A131: 1983-05-03 | B131: 65 | C131: 32 | D131: 198306 | E131: P | F131: 1 | J131: 0.2279 | K131: 0.2149 | L131: 0.202 | M131: 0.1892 | N131: 0.1788 | O131: 0.1753 | P131: 0.1779 | Q131: 0.1825 | R131: 0.1855 | S131: 0.1861 | T131: 0.184 | U131: 0.1797 | V131: 0.1733 | W131: 0.1655 | X131: 0.1591 | Y131: 0.1566 | Z131: 0.1589 | AA131: 0.1631 | AB131: 0.1662 | AC131: 0.1655 | AD131: 0.162 | AE131: 0.1577
A132: 1983-05-03 | B132: 65 | C132: 32 | D132: 198306 | E132: C | F132: 1 | V132: 0.1833 | W132: 0.175 | X132: 0.1701 | Y132: 0.1673 | Z132: 0.1657 | AA132: 0.1647 | AB132: 0.1636 | AC132: 0.162 | AD132: 0.1599 | AE132: 0.1573
A133: 1983-05-04 | B133: 66 | C133: 31 | D133: 198306 | E133: P | F133: 1 | J133: 0.2312 | K133: 0.2197 | L133: 0.2108 | M133: 0.2048 | N133: 0.2007 | O133: 0.1973 | P133: 0.1941 | Q133: 0.1912 | R133: 0.1889 | S133: 0.1869 | T133: 0.1849 | U133: 0.1826 | V133: 0.1798 | W133: 0.1761 | X133: 0.1708 | Y133: 0.1637 | Z133: 0.156 | AA133: 0.1501 | AB133: 0.1481 | AC133: 0.1507 | AD133: 0.1569
A134: 1983-05-04 | B134: =+B132+1 -> 66 | C134: 31 | D134: 198306 | E134: C | F134: 1 | Y134: 0.1637 | Z134: 0.1591 | AA134: 0.156 | AB134: 0.1538 | AC134: 0.1526 | AD134: 0.1528
A135: 1983-05-05 | B135: 67 | C135: 30 | D135: 198306 | E135: P | F135: 1 | I135: 0.2511 | J135: 0.2376 | K135: 0.2249 | L135: 0.2133 | M135: 0.2032 | N135: 0.1958 | O135: 0.1911 | P135: 0.1882 | Q135: 0.1861 | R135: 0.1842 | S135: 0.1823 | T135: 0.1801 | U135: 0.1777 | V135: 0.1749 | W135: 0.171 | X135: 0.1657 | Y135: 0.1589 | Z135: 0.1524 | AA135: 0.148 | AB135: 0.1471 | AC135: 0.1476 | AD135: 0.1466
A136: 1983-05-05 | B136: 67 | C136: 30 | D136: 198306 | E136: C | F136: 1 | Y136: 0.1584 | Z136: 0.1521 | AA136: 0.148 | AB136: 0.1456 | AC136: 0.1448 | AD136: 0.1464
A137: 1983-05-06 | B137: 68 | C137: 29 | D137: 198306 | E137: P | F137: 1 | H137: 0.2674 | I137: 0.2541 | J137: 0.2428 | K137: 0.2336 | L137: 0.2261 | M137: 0.2186 | N137: 0.2105 | O137: 0.2026 | P137: 0.1965 | Q137: 0.1926 | R137: 0.1902 | S137: 0.1885 | T137: 0.1871 | U137: 0.1848 | V137: 0.1804 | W137: 0.1733 | X137: 0.1645 | Y137: 0.156 | Z137: 0.1492 | AA137: 0.1429 | AB137: 0.1341
A138: 1983-05-06 | B138: 68 | C138: 29 | D138: 198306 | E138: C | F138: 1 | W138: 0.17 | X138: 0.1578 | Y138: 0.1482 | Z138: 0.1398 | AA138: 0.1323 | AB138: 0.1264 | AC138: 0.1234 | AD138: 0.125 | AE138: 0.1338
A139: 1983-05-09 | B139: 69 | C139: 28 | D139: 198306 | E139: P | F139: 1 | H139: 0.2723 | I139: 0.2586 | J139: 0.2464 | K139: 0.2365 | L139: 0.2284 | M139: 0.2208 | N139: 0.2131 | O139: 0.2053 | P139: 0.1984 | Q139: 0.193 | R139: 0.1886 | S139: 0.1847 | T139: 0.181 | U139: 0.1771 | V139: 0.1726 | W139: 0.1673 | X139: 0.1614 | Y139: 0.1559 | Z139: 0.1515 | AA139: 0.1478 | AB139: 0.142
A140: 1983-05-09 | B140: 69 | C140: 28 | D140: 198306 | E140: C | F140: 1 | W140: 0.1629 | X140: 0.1547 | Y140: 0.1482 | Z140: 0.1422 | AA140: 0.1365 | AB140: 0.1323 | AC140: 0.1315 | AD140: 0.1356 | AE140: 0.1432
A141: 1983-05-10 | B141: 70 | C141: 27 | D141: 198306 | E141: P | F141: 1 | H141: 0.2781 | I141: 0.2655 | J141: 0.2543 | K141: 0.2438 | L141: 0.2333 | M141: 0.2224 | N141: 0.211 | O141: 0.2003 | P141: 0.1926 | Q141: 0.1885 | R141: 0.1863 | S141: 0.1833 | T141: 0.1783 | U141: 0.1718 | V141: 0.1658 | W141: 0.1611 | X141: 0.1576 | Y141: 0.1548 | Z141: 0.1522 | AA141: 0.1489 | AB141: 0.1427
A142: 1983-05-10 | B142: 70 | C142: 27 | D142: 198306 | E142: C | F142: 1 | W142: 0.164 | X142: 0.1597 | Y142: 0.1552 | Z142: 0.1496 | AA142: 0.1434 | AB142: 0.1381 | AC142: 0.136 | AD142: 0.1386 | AE142: 0.1442
A143: 1983-05-11 | B143: 71 | C143: 26 | D143: 198306 | E143: P | F143: 1 | I143: 0.2691 | J143: 0.2551 | K143: 0.2425 | L143: 0.2316 | M143: 0.2229 | N143: 0.2164 | O143: 0.2114 | P143: 0.207 | Q143: 0.2025 | R143: 0.1973 | S143: 0.1914 | T143: 0.1846 | U143: 0.177 | V143: 0.1698 | W143: 0.1643 | X143: 0.1611 | Y143: 0.1594 | Z143: 0.1583 | AA143: 0.1572 | AB143: 0.155 | AC143: 0.1497
A144: 1983-05-11 | B144: 71 | C144: 26 | D144: 198306 | E144: C | F144: 1 | X144: 0.1541 | Y144: 0.1493 | Z144: 0.1468 | AA144: 0.1458 | AB144: 0.1454 | AC144: 0.1449 | AD144: 0.1438 | AE144: 0.1406 | AF144: 0.1322
A145: 1983-05-12 | B145: 72 | C145: 25 | D145: 198306 | E145: P | F145: 1 | I145: 0.2739 | J145: 0.2594 | K145: 0.2467 | L145: 0.2361 | M145: 0.2272 | N145: 0.2186 | O145: 0.2091 | P145: 0.1995 | Q145: 0.1919 | R145: 0.1872 | S145: 0.184 | T145: 0.1802 | U145: 0.1748 | V145: 0.1679 | W145: 0.1613 | X145: 0.156 | Y145: 0.1522 | Z145: 0.1499 | AA145: 0.1494 | AB145: 0.1506 | AC145: 0.1514
A146: 1983-05-12 | B146: 72 | C146: 25 | D146: 198306 | E146: C | F146: 1 | X146: 0.158 | Y146: 0.1549 | Z146: 0.153 | AA146: 0.1517 | AB146: 0.1506 | AC146: 0.1493 | AD146: 0.1471 | AE146: 0.1434 | AF146: 0.1379
A147: 1983-05-13 | B147: 73 | C147: 24 | D147: 198306 | E147: P | F147: 1 | I147: 0.2794 | J147: 0.265 | K147: 0.2524 | L147: 0.2421 | M147: 0.2333 | N147: 0.2253 | O147: 0.2173 | P147: 0.2094 | Q147: 0.2015 | R147: 0.1937 | S147: 0.1863 | T147: 0.1797 | U147: 0.1739 | V147: 0.1685 | W147: 0.1633 | X147: 0.1579 | Y147: 0.153 | Z147: 0.1495 | AA147: 0.1482 | AB147: 0.1482 | AC147: 0.1462
A148: 1983-05-13 | B148: 73 | C148: 24 | D148: 198306 | E148: C | F148: 1 | X148: 0.1595 | Y148: 0.1551 | Z148: 0.1523 | AA148: 0.1504 | AB148: 0.1485 | AC148: 0.1461 | AD148: 0.1426 | AE148: 0.1375 | AF148: 0.1304
A149: 1983-05-16 | B149: 74 | C149: 23 | D149: 198306 | E149: P | F149: 1 | J149: 0.2691 | K149: 0.2538 | L149: 0.2386 | M149: 0.2236 | N149: 0.2103 | O149: 0.2001 | P149: 0.1929 | Q149: 0.189 | R149: 0.1873 | S149: 0.1866 | T149: 0.1844 | U149: 0.1792 | V149: 0.1706 | W149: 0.1613 | X149: 0.154 | Y149: 0.15 | Z149: 0.1484 | AA149: 0.1478 | AB149: 0.1477 | AC149: 0.1468 | AD149: 0.1423
A150: 1983-05-16 | B150: 74 | C150: 23 | D150: 198306 | E150: C | F150: 1 | Y150: 0.1457 | Z150: 0.1441 | AA150: 0.143 | AB150: 0.1419 | AC150: 0.1408 | AD150: 0.1393 | AE150: 0.1373 | AF150: 0.1352 | AG150: 0.1355
A151: 1983-05-17 | B151: 75 | C151: 22 | D151: 198306 | E151: P | F151: 1 | J151: 0.2759 | K151: 0.2602 | L151: 0.2446 | M151: 0.2294 | N151: 0.2157 | O151: 0.2048 | P151: 0.1964 | Q151: 0.1896 | R151: 0.1835 | S151: 0.1773 | T151: 0.1712 | U151: 0.1651 | V151: 0.1589 | W151: 0.1532 | X151: 0.1483 | Y151: 0.1443 | Z151: 0.1411 | AA151: 0.1388 | AB151: 0.1383 | AC151: 0.1421 | AD151: 0.1553
A152: 1983-05-17 | B152: 75 | C152: 22 | D152: 198306 | E152: C | F152: 1 | Y152: 0.1323 | Z152: 0.1326 | AA152: 0.133 | AB152: 0.1334 | AC152: 0.1337 | AD152: 0.1336 | AE152: 0.1328 | AF152: 0.1324 | AG152: 0.1355
A153: 1983-05-18 | B153: 76 | C153: 21 | D153: 198306 | E153: P | F153: 1 | J153: 0.2833 | K153: 0.2672 | L153: 0.2512 | M153: 0.2353 | N153: 0.2198 | O153: 0.2058 | P153: 0.1941 | Q153: 0.1848 | R153: 0.1777 | S153: 0.172 | T153: 0.1668 | U153: 0.1613 | V153: 0.155 | W153: 0.148 | X153: 0.1427 | Y153: 0.1401 | Z153: 0.1404 | AA153: 0.1402 | AB153: 0.1356
A154: 1983-05-18 | B154: 76 | C154: 21 | D154: 198306 | E154: C | F154: 1 | Z154: 0.1405 | AA154: 0.1379 | AB154: 0.1362 | AC154: 0.1357 | AD154: 0.1362 | AE154: 0.1375 | AF154: 0.1395 | AG154: 0.1437 | AH154: 0.1533
A155: 1983-05-19 | B155: 77 | C155: 20 | D155: 198306 | E155: P | F155: 1 | K155: 0.2727 | L155: 0.2564 | M155: 0.2402 | N155: 0.2241 | O155: 0.2095 | P155: 0.1977 | Q155: 0.189 | R155: 0.1829 | S155: 0.1789 | T155: 0.1755 | U155: 0.1714 | V155: 0.1655 | W155: 0.1573 | X155: 0.1486 | Y155: 0.1424 | Z155: 0.1402 | AA155: 0.1409 | AB155: 0.14
A156: 1983-05-19 | B156: 77 | C156: 20 | D156: 198306 | E156: C | F156: 1 | Z156: 0.1377 | AA156: 0.1364 | AB156: 0.1353 | AC156: 0.1347 | AD156: 0.1352 | AE156: 0.1366 | AF156: 0.1385 | AG156: 0.1404 | AH156: 0.1435
A157: 1983-05-20 | B157: 78 | C157: 19 | D157: 198306 | E157: P | F157: 1 | K157: 0.2816 | L157: 0.2649 | M157: 0.2485 | N157: 0.2325 | O157: 0.2182 | P157: 0.2065 | Q157: 0.1974 | R157: 0.1891 | S157: 0.1796 | T157: 0.1682 | U157: 0.1568 | V157: 0.1483 | W157: 0.1431 | X157: 0.1402 | Y157: 0.139 | Z157: 0.1396 | AA157: 0.1411 | AB157: 0.1401
A158: 1983-05-20 | B158: 78 | C158: 19 | D158: 198306 | E158: C | F158: 1 | Z158: 0.1367 | AA158: 0.1346 | AB158: 0.1331 | AC158: 0.1328 | AD158: 0.1348 | AE158: 0.1389 | AF158: 0.1446 | AG158: 0.1501 | AH158: 0.1545 | AI158: 0.1561
A159: 1983-05-23 | B159: 79 | C159: 18 | D159: 198306 | E159: P | F159: 1 | M159: 0.2545 | N159: 0.2378 | O159: 0.2224 | P159: 0.2084 | Q159: 0.1963 | R159: 0.186 | S159: 0.1771 | T159: 0.1695 | U159: 0.1632 | V159: 0.1574 | W159: 0.1527 | X159: 0.1495 | Y159: 0.1478 | Z159: 0.1465 | AA159: 0.1435 | AB159: 0.1374 | AC159: 0.1289 | AD159: 0.1249
A160: 1983-05-23 | B160: 79 | C160: 18 | D160: 198306 | E160: C | F160: 1 | Y160: 0.144 | Z160: 0.1405 | AA160: 0.1381 | AB160: 0.1362 | AC160: 0.1344 | AD160: 0.1323 | AE160: 0.13 | AF160: 0.1284 | AG160: 0.1308
A161: 1983-05-24 | B161: 80 | C161: 17 | D161: 198306 | E161: P | F161: 1 | L161: 0.2752 | M161: 0.2577 | N161: 0.2404 | O161: 0.2233 | P161: 0.2088 | Q161: 0.1988 | R161: 0.1922 | S161: 0.1857 | T161: 0.1772 | U161: 0.1663 | V161: 0.1555 | W161: 0.1467 | X161: 0.1399 | Y161: 0.1359 | Z161: 0.1355 | AA161: 0.14 | AB161: 0.1471 | AC161: 0.1526
A162: 1983-05-24 | B162: 80 | C162: 17 | D162: 198306 | E162: C | F162: 1 | AA162: 0.1327 | AB162: 0.1332 | AC162: 0.1318 | AD162: 0.1292 | AE162: 0.1276 | AF162: 0.1328
A163: 1983-05-25 | B163: 81 | C163: 16 | D163: 198306 | E163: P | F163: 1 | N163: 0.248 | O163: 0.2307 | P163: 0.2157 | Q163: 0.204 | R163: 0.1946 | S163: 0.1859 | T163: 0.1766 | U163: 0.1667 | V163: 0.1572 | W163: 0.148 | X163: 0.1398 | Y163: 0.1348 | Z163: 0.1338 | AA163: 0.1361 | AB163: 0.1368
A164: 1983-05-25 | B164: 81 | C164: 16 | D164: 198306 | E164: C | F164: 1 | Z164: 0.1345 | AA164: 0.1352 | AB164: 0.1338 | AC164: 0.1305 | AD164: 0.1257 | AE164: 0.1212
A165: 1983-05-26 | B165: 82 | C165: 15 | D165: 198306 | E165: P | F165: 1 | L165: 0.2989 | M165: 0.28 | N165: 0.2612 | O165: 0.2424 | P165: 0.2238 | Q165: 0.2051 | R165: 0.1869 | S165: 0.1724 | T165: 0.1637 | U165: 0.1588 | V165: 0.1561 | W165: 0.1541 | X165: 0.1521 | Y165: 0.1496 | Z165: 0.1463 | AA165: 0.1424 | AB165: 0.1385 | AC165: 0.1364
A166: 1983-05-26 | B166: 82 | C166: 15 | D166: 198306 | E166: C | F166: 1 | AA166: 0.142 | AB166: 0.1402 | AC166: 0.1369 | AD166: 0.1326 | AE166: 0.129 | AF166: 0.1325
A167: 1983-05-27 | B167: 83 | C167: 14 | D167: 198306 | E167: P | F167: 1 | O167: 0.2484 | P167: 0.2299 | Q167: 0.2128 | R167: 0.1979 | S167: 0.186 | T167: 0.178 | U167: 0.1721 | V167: 0.1659 | W167: 0.157 | X167: 0.1447 | Y167: 0.132 | Z167: 0.1237 | AA167: 0.122 | AB167: 0.1261 | AC167: 0.1307
A168: 1983-05-27 | B168: 83 | C168: 14 | D168: 198306 | E168: C | F168: 1 | AA168: 0.1251 | AB168: 0.1302 | AC168: 0.1308 | AD168: 0.1281 | AE168: 0.1228 | AF168: 0.1174
A169: 1983-05-31 | B169: 84 | C169: 13 | D169: 198306 | E169: P | F169: 1 | N169: 0.2787 | O169: 0.2587 | P169: 0.2387 | Q169: 0.2189 | R169: 0.2 | S169: 0.183 | T169: 0.1685 | U169: 0.1589 | V169: 0.1545 | W169: 0.1524 | X169: 0.149 | Y169: 0.1418 | Z169: 0.1293 | AA169: 0.1153 | AB169: 0.1104
A170: 1983-05-31 | B170: 84 | C170: 13 | D170: 198306 | E170: C | F170: 1 | Z170: 0.1367 | AA170: 0.1324 | AB170: 0.1289 | AC170: 0.1265 | AD170: 0.127 | AE170: 0.1312 | AF170: 0.1391 | AG170: 0.1478 | AH170: 0.1572
A171: 1983-06-01 | B171: 85 | C171: 12 | D171: 198306 | E171: P | F171: 1 | P171: 0.2466 | Q171: 0.2263 | R171: 0.2078 | S171: 0.1918 | T171: 0.1787 | U171: 0.1694 | V171: 0.1627 | W171: 0.156 | X171: 0.1464 | Y171: 0.1321 | Z171: 0.1132 | AA171: 0.1001 | AB171: 0.1063
A172: 1983-06-01 | B172: 85 | C172: 12 | D172: 198306 | E172: C | F172: 1 | Z172: 0.1366 | AA172: 0.1316 | AB172: 0.1237 | AC172: 0.118 | AD172: 0.1166 | AE172: 0.1201 | AF172: 0.1275 | AG172: 0.138 | AH172: 0.1535
A173: 1983-06-02 | B173: 86 | C173: 11 | D173: 198306 | E173: P | F173: 1 | S173: 0.2035 | T173: 0.1884 | U173: 0.171 | V173: 0.1524 | W173: 0.1386 | X173: 0.1306 | Y173: 0.1254 | Z173: 0.122 | AA173: 0.1209
A174: 1983-06-02 | B174: 86 | C174: 11 | D174: 198306 | E174: C | F174: 1 | AB174: 0.1192 | AC174: 0.1211 | AD174: 0.1227 | AE174: 0.1245 | AF174: 0.1298 | AG174: 0.1437
A175: 1983-06-03 | B175: 87 | C175: 10 | D175: 198306 | E175: P | F175: 1 | S175: 0.2058 | T175: 0.1829 | U175: 0.1599 | V175: 0.1386 | W175: 0.1283 | X175: 0.1253 | Y175: 0.1231 | Z175: 0.118 | AA175: 0.1079
A176: 1983-06-03 | B176: 87 | C176: 10 | D176: 198306 | E176: C | F176: 1 | AB176: 0.1162 | AC176: 0.1275 | AD176: 0.1331 | AE176: 0.1359 | AF176: 0.1398 | AG176: 0.151
A177: 1983-06-06 | B177: 88 | C177: 72 | D177: 198309 | E177: P | F177: 1 | L177: 0.1914 | M177: 0.1861 | N177: 0.18 | O177: 0.1734 | P177: 0.1679 | Q177: 0.1645 | R177: 0.1631 | S177: 0.1623 | T177: 0.1606 | U177: 0.1576 | V177: 0.1548 | W177: 0.1537 | X177: 0.1549 | Y177: 0.1568 | Z177: 0.1578 | AA177: 0.1569 | AB177: 0.1537 | AC177: 0.148 | AD177: 0.1399 | AE177: 0.1295 | AF177: 0.1169
A178: 1983-06-06 | B178: 88 | C178: 72 | D178: 198309 | E178: C | F178: 1 | U178: 0.1465 | V178: 0.1492 | W178: 0.149 | X178: 0.1467 | Y178: 0.1438 | Z178: 0.1416 | AA178: 0.1411 | AB178: 0.1415 | AC178: 0.1416 | AD178: 0.1405 | AE178: 0.1376 | AF178: 0.1321
A179: 1983-06-07 | B179: 89 | C179: 71 | D179: 198309 | E179: P | F179: 1 | N179: 0.1691 | O179: 0.1621 | P179: 0.1545 | Q179: 0.1467 | R179: 0.141 | S179: 0.139 | T179: 0.1407 | U179: 0.1436 | V179: 0.1455 | W179: 0.1451 | X179: 0.1433 | Y179: 0.1413 | Z179: 0.1403 | AA179: 0.1405 | AB179: 0.1415 | AC179: 0.1432 | AD179: 0.1454 | AE179: 0.1469 | AF179: 0.1468 | AG179: 0.1442 | AH179: 0.1383
A180: 1983-06-07 | B180: 89 | C180: 71 | D180: 198309 | E180: C | F180: 1 | W180: 0.1513 | X180: 0.1546 | Y180: 0.1551 | Z180: 0.1533 | AA180: 0.1504 | AB180: 0.148 | AC180: 0.1477 | AD180: 0.1495 | AE180: 0.152 | AF180: 0.1534 | AG180: 0.1528 | AH180: 0.1499
A181: 1983-06-08 | B181: 90 | C181: 70 | D181: 198309 | E181: P | F181: 1 | N181: 0.1655 | O181: 0.1583 | P181: 0.1546 | Q181: 0.1529 | R181: 0.1519 | S181: 0.1502 | T181: 0.1471 | U181: 0.1429 | V181: 0.1397 | W181: 0.1393 | X181: 0.1422 | Y181: 0.1462 | Z181: 0.1496 | AA181: 0.1507 | AB181: 0.1494 | AC181: 0.1457 | AD181: 0.1396 | AE181: 0.1342 | AF181: 0.135
A182: 1983-06-08 | B182: 90 | C182: 70 | D182: 198309 | E182: C | F182: 1 | T182: 0.1733 | U182: 0.1586 | V182: 0.1477 | W182: 0.1419 | X182: 0.1411 | Y182: 0.1427 | Z182: 0.1442 | AA182: 0.1441 | AB182: 0.1433 | AC182: 0.143 | AD182: 0.1447 | AE182: 0.148 | AF182: 0.1515 | AG182: 0.1537 | AH182: 0.1542 | AI182: 0.1524
A183: 1983-06-09 | B183: 91 | C183: 69 | D183: 198309 | E183: P | F183: 1 | N183: 0.1745 | O183: 0.1723 | P183: 0.1693 | Q183: 0.165 | R183: 0.1604 | S183: 0.1565 | T183: 0.1538 | U183: 0.1522 | V183: 0.1517 | W183: 0.1522 | X183: 0.1526 | Y183: 0.1519 | Z183: 0.1494 | AA183: 0.1455 | AB183: 0.1419 | AC183: 0.14 | AD183: 0.14 | AE183: 0.1407 | AF183: 0.1409 | AG183: 0.1394 | AH183: 0.1354
A184: 1983-06-09 | B184: 91 | C184: 69 | D184: 198309 | E184: C | F184: 1 | W184: 0.1471 | X184: 0.1456 | Y184: 0.1452 | Z184: 0.1456 | AA184: 0.1464 | AB184: 0.1469 | AC184: 0.1467 | AD184: 0.1457 | AE184: 0.1443 | AF184: 0.1432 | AG184: 0.143 | AH184: 0.1446
A185: 1983-06-10 | B185: 92 | C185: 68 | D185: 198309 | E185: P | F185: 1 | M185: 0.1788 | N185: 0.1734 | O185: 0.1718 | P185: 0.1704 | Q185: 0.1679 | R185: 0.1644 | S185: 0.16 | T185: 0.1555 | U185: 0.1525 | V185: 0.1526 | W185: 0.1557 | X185: 0.1596 | Y185: 0.1625 | Z185: 0.1633 | AA185: 0.1621 | AB185: 0.1595 | AC185: 0.1559 | AD185: 0.1526 | AE185: 0.1514 | AF185: 0.1541 | AG185: 0.1603 | AH185: 0.1681
A186: 1983-06-10 | B186: 92 | C186: 68 | D186: 198309 | E186: C | F186: 1 | V186: 0.1526 | W186: 0.1567 | X186: 0.1577 | Y186: 0.1562 | Z186: 0.1527 | AA186: 0.1487 | AB186: 0.1458 | AC186: 0.1453 | AD186: 0.1464 | AE186: 0.1478 | AF186: 0.1478 | AG186: 0.1459 | AH186: 0.1414
A187: 1983-06-13 | B187: 93 | C187: 67 | D187: 198309 | E187: P | F187: 1 | L187: 0.1939 | M187: 0.1879 | N187: 0.1827 | O187: 0.1781 | P187: 0.1743 | Q187: 0.1713 | R187: 0.1692 | S187: 0.1673 | T187: 0.1649 | U187: 0.1619 | V187: 0.1589 | W187: 0.1566 | X187: 0.1555 | Y187: 0.1551 | Z187: 0.1546 | AA187: 0.1535 | AB187: 0.1517 | AC187: 0.149 | AD187: 0.1453 | AE187: 0.1404 | AF187: 0.134
A188: 1983-06-13 | B188: 93 | C188: 67 | D188: 198309 | E188: C | F188: 1 | U188: 0.1505 | V188: 0.1468 | W188: 0.1432 | X188: 0.1398 | Y188: 0.137 | Z188: 0.1356 | AA188: 0.1363 | AB188: 0.1385 | AC188: 0.1415 | AD188: 0.1445 | AE188: 0.1472 | AF188: 0.1497
A189: 1983-06-14 | B189: 94 | C189: 66 | D189: 198309 | E189: P | F189: 1 | L189: 0.1944 | M189: 0.1889 | N189: 0.1825 | O189: 0.1755 | P189: 0.1685 | Q189: 0.1623 | R189: 0.1573 | S189: 0.1535 | T189: 0.1508 | U189: 0.1489 | V189: 0.1475 | W189: 0.1461 | X189: 0.1445 | Y189: 0.1429 | Z189: 0.1417 | AA189: 0.1411 | AB189: 0.1403 | AC189: 0.1383 | AD189: 0.134 | AE189: 0.1292 | AF189: 0.1281
A190: 1983-06-14 | B190: 94 | C190: 66 | D190: 198309 | E190: C | F190: 1 | U190: 0.1484 | V190: 0.1409 | W190: 0.1386 | X190: 0.14 | Y190: 0.1432 | Z190: 0.1462 | AA190: 0.1477 | AB190: 0.1477 | AC190: 0.1467 | AD190: 0.1455 | AE190: 0.1445 | AF190: 0.1448
A191: 1983-06-15 | B191: 95 | C191: 65 | D191: 198309 | E191: P | F191: 1 | J191: 0.2113 | K191: 0.2023 | L191: 0.1931 | M191: 0.1838 | N191: 0.1748 | O191: 0.1676 | P191: 0.1629 | Q191: 0.161 | R191: 0.1617 | S191: 0.1649 | T191: 0.169 | U191: 0.1722 | V191: 0.1732 | W191: 0.1718 | X191: 0.1683 | Y191: 0.1627 | Z191: 0.156 | AA191: 0.1497 | AB191: 0.1454 | AC191: 0.1453 | AD191: 0.153
A192: 1983-06-15 | B192: 95 | C192: 65 | D192: 198309 | E192: C | F192: 1 | V192: 0.1529 | W192: 0.144 | X192: 0.141 | Y192: 0.1413 | Z192: 0.1429 | AA192: 0.144 | AB192: 0.1432 | AC192: 0.1396 | AD192: 0.1329
A193: 1983-06-16 | B193: 96 | C193: 64 | D193: 198309 | E193: P | F193: 1 | I193: 0.1906 | J193: 0.1846 | K193: 0.1783 | L193: 0.1716 | M193: 0.1659 | N193: 0.1633 | O193: 0.1644 | P193: 0.1673 | Q193: 0.17 | R193: 0.1713 | S193: 0.171 | T193: 0.1691 | U193: 0.1656 | V193: 0.1612 | W193: 0.1573 | X193: 0.1548 | Y193: 0.1531 | Z193: 0.1511 | AA193: 0.1475 | AB193: 0.1417 | AC193: 0.1332
A194: 1983-06-16 | B194: 96 | C194: 64 | D194: 198309 | E194: C | F194: 1 | U194: 0.1433 | V194: 0.1339 | W194: 0.1303 | X194: 0.1313 | Y194: 0.1346 | Z194: 0.138 | AA194: 0.1394 | AB194: 0.1384 | AC194: 0.1346
A195: 1983-06-17 | B195: 97 | C195: 63 | D195: 198309 | E195: P | F195: 1 | G195: 0.2006 | H195: 0.196 | I195: 0.1911 | J195: 0.1865 | K195: 0.1827 | L195: 0.18 | M195: 0.1777 | N195: 0.1745 | O195: 0.1702 | P195: 0.1657 | Q195: 0.163 | R195: 0.1624 | S195: 0.1628 | T195: 0.1621 | U195: 0.1596 | V195: 0.1559 | W195: 0.1523 | X195: 0.1498 | Y195: 0.1483 | Z195: 0.1474 | AA195: 0.147 | AB195: 0.1461 | AC195: 0.1436
A196: 1983-06-17 | B196: 97 | C196: 63 | D196: 198309 | E196: C | F196: 1 | U196: 0.1523 | V196: 0.1439 | W196: 0.14 | X196: 0.1391 | Y196: 0.1394 | Z196: 0.1394 | AA196: 0.1381 | AB196: 0.136 | AC196: 0.1339 | AD196: 0.133 | AE196: 0.1343
A197: 1983-06-20 | B197: 98 | C197: 62 | D197: 198309 | E197: P | F197: 1 | G197: 0.199 | H197: 0.1945 | I197: 0.1911 | J197: 0.1888 | K197: 0.1874 | L197: 0.1863 | M197: 0.1852 | N197: 0.1832 | O197: 0.1798 | P197: 0.1754 | Q197: 0.1715 | R197: 0.1693 | S197: 0.1683 | T197: 0.167 | U197: 0.1643 | V197: 0.1601 | W197: 0.1562 | X197: 0.1539 | Y197: 0.1532 | Z197: 0.1528 | AA197: 0.1516 | AB197: 0.1486 | AC197: 0.1435
A198: 1983-06-20 | B198: =+B196+1 -> 98 | C198: 62 | D198: 198309 | E198: C | F198: 1 | U198: 0.1541 | V198: 0.147 | W198: 0.1471 | X198: 0.1492 | Y198: 0.1507 | Z198: 0.1506 | AA198: 0.1484 | AB198: 0.144 | AC198: 0.1387 | AD198: 0.1335 | AE198: 0.1307 | AF198: 0.1341
A199: 1983-06-21 | B199: 99 | C199: 61 | D199: 198309 | E199: P | F199: 1 | G199: 0.2048 | H199: 0.2023 | I199: 0.2014 | J199: 0.2004 | K199: 0.1981 | L199: 0.1942 | M199: 0.1891 | N199: 0.1828 | O199: 0.1764 | P199: 0.1717 | Q199: 0.17 | R199: 0.1705 | S199: 0.1707 | T199: 0.1692 | U199: 0.1661 | V199: 0.1626 | W199: 0.1597 | X199: 0.1574 | Y199: 0.1547 | Z199: 0.1507 | AA199: 0.1449 | AB199: 0.1367
A200: 1983-06-21 | B200: 99 | C200: 61 | D200: 198309 | E200: C | F200: 1 | W200: 0.1577 | X200: 0.157 | Y200: 0.1554 | Z200: 0.1531 | AA200: 0.15 | AB200: 0.1467 | AC200: 0.1434 | AD200: 0.1403 | AE200: 0.1375
... 2050 more rows

Sheet data (rel.) (hidden)
A1: ISD's from option prices with ln(X/F) in fixed ISD-ATM * Sqrt(T) multiples
A2: Date | C2: T | E2: V | F2: W | G2: I | H2: -4 | I2: -3.75 | J2: -3.5 | K2: -3.25 | L2: -3 | M2: -2.75 | N2: -2.5 | O2: -2.25 | P2: -2 | Q2: -1.75 | R2: -1.5 | S2: -1.25 | T2: -1 | U2: -0.75 | V2: -0.5 | W2: -0.25 | X2: 0 | Y2: 0.25 | Z2: 0.5 | AA2: 0.75 | AB2: 1 | AC2: 1.25 | AD2: 1.5 | AE2: 1.75 | AF2: 2
A3: 1983-01-28 | B3: 1 | C3: 34 | E3: 198303 | F3: P | G3: 1 | W3: 0.2106 | X3: 0.2103 | Y3: 0.215
A4: 1983-01-28 | B4: 1 | C4: 34 | E4: 198303 | F4: C | G4: =IF(E4=E3,G3,ABS(G3-1)) -> 1 | W4: 0.2156 | X4: 0.2123 | Y4: 0.2105 | Z4: 0.2085 | AA4: 0.2052
A5: 1983-01-31 | B5: =IF(A5=A4,B4,B4+1) -> 2 | C5: 33 | E5: 198303 | F5: P | G5: =IF(E5=E4,G4,ABS(G4-1)) -> 1 | V5: 0.2132 | W5: 0.2065 | X5: 0.2067 | Y5: 0.2108 | Z5: 0.2176
A6: 1983-01-31 | B6: =IF(A6=A5,B5,B5+1) -> 2 | C6: 33 | E6: 198303 | F6: C | G6: 1 | V6: 0.2209 | W6: 0.2158 | X6: 0.2082 | Y6: 0.2 | Z6: 0.1941
A7: 1983-02-01 | B7: 3 | C7: 32 | E7: 198303 | F7: P | G7: 1 | U7: 0.2043 | V7: 0.2184 | W7: 0.2186 | X7: 0.2102 | Y7: 0.1999 | Z7: 0.1922
A8: 1983-02-01 | B8: 3 | C8: 32 | E8: 198303 | F8: C | G8: 1 | W8: 0.2212 | X8: 0.212 | Y8: 0.2058 | Z8: 0.2024 | AA8: 0.2031 | AB8: 0.2127
A9: 1983-02-02 | B9: 4 | C9: 31 | E9: 198303 | F9: P | G9: 1 | U9: 0.2192 | V9: 0.2157 | W9: 0.2106 | X9: 0.2035 | Y9: 0.1942 | Z9: 0.1819
A10: 1983-02-02 | B10: 4 | C10: 31 | E10: 198303 | F10: C | G10: 1 | W10: 0.2108 | X10: 0.2028 | Y10: 0.1951 | Z10: 0.188 | AA10: 0.1837 | AB10: 0.188
A11: 1983-02-03 | B11: 5 | C11: 30 | E11: 198303 | F11: P | G11: 1 | U11: 0.2132 | V11: 0.2101 | W11: 0.2091 | X11: 0.2075 | Y11: 0.2039
A12: 1983-02-03 | B12: 5 | C12: 30 | E12: 198303 | F12: C | G12: 1 | W12: 0.2075 | X12: 0.2026 | Y12: 0.1971 | Z12: 0.1921 | AA12: 0.1904
A13: 1983-02-04 | B13: 6 | C13: 29 | E13: 198303 | F13: P | G13: 1 | S13: 0.2101 | T13: 0.2009 | U13: 0.2007 | V13: 0.2029 | W13: 0.2044 | X13: 0.2042
A14: 1983-02-04 | B14: 6 | C14: 29 | E14: 198303 | F14: C | G14: 1 | V14: 0.1777 | W14: 0.1779 | X14: 0.1757 | Y14: 0.1738 | Z14: 0.1752
A15: 1983-02-07 | B15: 7 | C15: 28 | E15: 198303 | F15: P | G15: 1 | R15: 0.2021 | S15: 0.1975 | T15: 0.194 | U15: 0.1898 | V15: 0.1846 | W15: 0.1785 | X15: 0.1708
A16: 1983-02-07 | B16: 7 | C16: 28 | E16: 198303 | F16: C | G16: 1 | W16: 0.179 | X16: 0.1715 | Y16: 0.1681 | Z16: 0.1693 | AA16: 0.1782
A17: 1983-02-08 | B17: 8 | C17: 27 | E17: 198303 | F17: P | G17: 1 | S17: 0.1845 | T17: 0.1813 | U17: 0.1811 | V17: 0.181 | W17: 0.179 | X17: 0.1739 | Y17: 0.1644
A18: 1983-02-08 | B18: 8 | C18: 27 | E18: 198303 | F18: C | G18: 1 | V18: 0.1937 | W18: 0.1793 | X18: 0.1708 | Y18: 0.166 | Z18: 0.1642 | AA18: 0.1669 | AB18: 0.1788
A19: 1983-02-09 | B19: 9 | C19: 26 | E19: 198303 | F19: P | G19: 1 | S19: 0.1859 | T19: 0.1809 | U19: 0.1765 | V19: 0.1713 | W19: 0.1661 | X19: 0.1613 | Y19: 0.1571
A20: 1983-02-09 | B20: 9 | C20: 26 | E20: 198303 | F20: C | G20: 1 | V20: 0.1716 | W20: 0.1706 | X20: 0.1689 | Y20: 0.1667 | Z20: 0.1643 | AA20: 0.1631 | AB20: 0.1659
A21: 1983-02-10 | B21: 10 | C21: 25 | E21: 198303 | F21: P | G21: 1 | Q21: 0.2224 | R21: 0.2066 | S21: 0.2025 | T21: 0.2026 | U21: 0.2029 | V21: 0.2012 | W21: 0.1964 | X21: 0.1871
A22: 1983-02-10 | B22: 10 | C22: 25 | E22: 198303 | F22: C | G22: 1 | V22: 0.1988 | W22: 0.182 | X22: 0.1711 | Y22: 0.1635 | Z22: 0.1587
A23: 1983-02-11 | B23: 11 | C23: 24 | E23: 198303 | F23: P | G23: 1 | Q23: 0.2138 | R23: 0.2043 | S23: 0.1977 | T23: 0.1913 | U23: 0.1846 | V23: 0.1778 | W23: 0.1706 | X23: 0.1626 | Y23: 0.153 | Z23: 0.1405
A24: 1983-02-11 | B24: 11 | C24: 24 | E24: 198303 | F24: C | G24: 1 | W24: 0.18 | X24: 0.171 | Y24: 0.1662 | Z24: 0.1656 | AA24: 0.1718
A25: 1983-02-14 | B25: 12 | C25: 23 | E25: 198303 | F25: P | G25: 1 | P25: 0.2214 | Q25: 0.2175 | R25: 0.2128 | S25: 0.2064 | T25: 0.1979 | U25: 0.1868 | V25: 0.1741 | W25: 0.1626 | X25: 0.1543 | Y25: 0.15 | Z25: 0.1509
A26: 1983-02-14 | B26: 12 | C26: 23 | E26: 198303 | F26: C | G26: 1 | V26: 0.1694 | W26: 0.1652 | X26: 0.1633 | Y26: 0.1633 | Z26: 0.1656
A27: 1983-02-15 | B27: 13 | C27: 22 | E27: 198303 | F27: P | G27: 1 | Q27: 0.2415 | R27: 0.2315 | S27: 0.2191 | T27: 0.2054 | U27: 0.1927 | V27: 0.1824 | W27: 0.174 | X27: 0.1663 | Y27: 0.1584 | Z27: 0.1492
A28: 1983-02-15 | B28: 13 | C28: 22 | E28: 198303 | F28: C | G28: 1 | V28: 0.1774 | W28: 0.1655 | X28: 0.159 | Y28: 0.1563 | Z28: 0.1579 | AA28: 0.167
A29: 1983-02-16 | B29: 14 | C29: 21 | E29: 198303 | F29: P | G29: 1 | R29: 0.2182 | S29: 0.2134 | T29: 0.2079 | U29: 0.2011 | V29: 0.1937 | W29: 0.1858 | X29: 0.1783 | Y29: 0.1724 | Z29: 0.1702
A30: 1983-02-16 | B30: 14 | C30: 21 | E30: 198303 | F30: C | G30: 1 | W30: 0.1831 | X30: 0.1742 | Y30: 0.1689 | Z30: 0.1675 | AA30: 0.1726
A31: 1983-02-17 | B31: 15 | C31: 20 | E31: 198303 | F31: P | G31: 1 | Q31: 0.2276 | R31: 0.2173 | S31: 0.2123 | T31: 0.2084 | U31: 0.2029 | V31: 0.1941 | W31: 0.1826 | X31: 0.1719 | Y31: 0.1655 | Z31: 0.1669
A32: 1983-02-17 | B32: 15 | C32: 20 | E32: 198303 | F32: C | G32: 1 | V32: 0.1916 | W32: 0.182 | X32: 0.1758 | Y32: 0.1719 | Z32: 0.1703 | AA32: 0.173
A33: 1983-02-18 | B33: 16 | C33: 19 | E33: 198303 | F33: P | G33: 1 | Q33: 0.2256 | R33: 0.2185 | S33: 0.2146 | T33: 0.2106 | U33: 0.2044 | V33: 0.1945 | W33: 0.182 | X33: 0.1703 | Y33: 0.1622 | Z33: 0.1603
A34: 1983-02-18 | B34: 16 | C34: 19 | E34: 198303 | F34: C | G34: 1 | V34: 0.1932 | W34: 0.1869 | X34: 0.1828 | Y34: 0.1802 | Z34: 0.1796 | AA34: 0.1826
A35: 1983-02-22 | B35: 17 | C35: 18 | E35: 198303 | F35: P | G35: 1 | R35: 0.2205 | S35: 0.2147 | T35: 0.2087 | U35: 0.2013 | V35: 0.1931 | W35: 0.1853 | X35: 0.1784 | Y35: 0.1724 | Z35: 0.1675
A36: 1983-02-22 | B36: 17 | C36: 18 | E36: 198303 | F36: C | G36: 1 | V36: 0.1948 | W36: 0.1861 | X36: 0.1772 | Y36: 0.1686 | Z36: 0.1623 | AA36: 0.1625 | AB36: 0.172 | AC36: 0.1924
A37: 1983-02-23 | B37: 18 | C37: 17 | E37: 198303 | F37: P | G37: 1 | P37: 0.2322 | Q37: 0.2264 | R37: 0.216 | S37: 0.2021 | T37: 0.187 | U37: 0.173 | V37: 0.1608 | W37: 0.1512 | X37: 0.1453
A38: 1983-02-23 | B38: 18 | C38: 17 | E38: 198303 | F38: C | G38: 1 | V38: 0.1809 | W38: 0.1717 | X38: 0.1655 | Y38: 0.1611 | Z38: 0.1587 | AA38: 0.1595 | AB38: 0.1672
A39: 1983-02-24 | B39: 19 | C39: 16 | E39: 198303 | F39: P | G39: 1 | M39: 0.2654 | N39: 0.2591 | O39: 0.2492 | P39: 0.2366 | Q39: 0.2219 | R39: 0.2068 | S39: 0.1928 | T39: 0.1801 | U39: 0.1697 | V39: 0.1624 | W39: 0.1588 | X39: 0.1579 | Y39: 0.1559 | Z39: 0.1481
A40: 1983-02-24 | B40: 19 | C40: 16 | E40: 198303 | F40: C | G40: 1 | W40: 0.165 | X40: 0.1737 | Y40: 0.1731 | Z40: 0.1629
A41: 1983-02-25 | B41: 20 | C41: 15 | E41: 198303 | F41: P | G41: 1 | M41: 0.2316 | N41: 0.2381 | O41: 0.2376 | P41: 0.2328 | Q41: 0.2249 | R41: 0.2145 | S41: 0.2021 | T41: 0.1878 | U41: 0.1729 | V41: 0.16 | W41: 0.1502 | X41: 0.1444 | Y41: 0.1425 | Z41: 0.146
A42: 1983-02-25 | B42: 20 | C42: 15 | E42: 198303 | F42: C | G42: 1 | X42: 0.1572 | Y42: 0.1662 | Z42: 0.1672
A43: 1983-02-28 | B43: 21 | C43: 14 | E43: 198303 | F43: P | G43: 1 | N43: 0.2152 | O43: 0.2264 | P43: 0.2274 | Q43: 0.2229 | R43: 0.2147 | S43: 0.205 | T43: 0.1952 | U43: 0.1859 | V43: 0.177 | W43: 0.1675 | X43: 0.1562
A44: 1983-02-28 | B44: 21 | C44: 14 | E44: 198303 | F44: C | G44: 1 | V44: 0.1725 | W44: 0.1614 | X44: 0.1545 | Y44: 0.1502 | Z44: 0.1487 | AA44: 0.1519 | AB44: 0.1648
A45: 1983-03-01 | B45: 22 | C45: 13 | E45: 198303 | F45: P | G45: 1 | L45: 0.2471 | M45: 0.2434 | N45: 0.2429 | O45: 0.2408 | P45: 0.2356 | Q45: 0.2273 | R45: 0.2157 | S45: 0.2011 | T45: 0.1849 | U45: 0.17 | V45: 0.1575 | W45: 0.1477 | X45: 0.1435 | Y45: 0.15
A46: 1983-03-01 | B46: 22 | C46: 13 | E46: 198303 | F46: C | G46: 1 | W46: 0.1606 | X46: 0.1646 | Y46: 0.1671 | Z46: 0.1688 | AA46: 0.1713 | AB46: 0.1769 | AC46: 0.1896
A47: 1983-03-02 | B47: 23 | C47: 12 | E47: 198303 | F47: P | G47: 1 | K47: 0.2562 | L47: 0.2481 | M47: 0.2428 | N47: 0.2379 | O47: 0.2322 | P47: 0.2248 | Q47: 0.2152 | R47: 0.2033 | S47: 0.1894 | T47: 0.1762 | U47: 0.1658 | V47: 0.1585 | W47: 0.1542 | X47: 0.1519 | Y47: 0.1515
A48: 1983-03-02 | B48: 23 | C48: 12 | E48: 198303 | F48: C | G48: 1 | W48: 0.1525 | X48: 0.1489 | Y48: 0.1476 | Z48: 0.1493 | AA48: 0.1558 | AB48: 0.1681 | AC48: 0.1864
A49: 1983-03-03 | B49: 24 | C49: 11 | E49: 198303 | F49: P | G49: 1 | K49: 0.2715 | L49: 0.2554 | M49: 0.2446 | N49: 0.2388 | O49: 0.2358 | P49: 0.2327 | Q49: 0.2283 | R49: 0.222 | S49: 0.2138 | T49: 0.2047 | U49: 0.1947 | V49: 0.1839 | W49: 0.1731 | X49: 0.1638 | Y49: 0.1576
A50: 1983-03-03 | B50: 24 | C50: 11 | E50: 198303 | F50: C | G50: 1 | V50: 0.1807 | W50: 0.1665 | X50: 0.158 | Y50: 0.1531 | Z50: 0.1518 | AA50: 0.155 | AB50: 0.1646 | AC50: 0.1834
A51: 1983-03-04 | B51: 25 | C51: 10 | E51: 198303 | F51: P | G51: 1 | J51: 0.3005 | K51: 0.2818 | L51: 0.2676 | M51: 0.259 | N51: 0.2548 | O51: 0.2516 | P51: 0.2464 | Q51: 0.2378 | R51: 0.2258 | S51: 0.2124 | T51: 0.2004 | U51: 0.1907 | V51: 0.1833 | W51: 0.177 | X51: 0.1708 | Y51: 0.1642
A52: 1983-03-04 | B52: 25 | C52: 10 | E52: 198303 | F52: C | G52: 1 | V52: 0.1808 | W52: 0.1739 | X52: 0.17 | Y52: 0.168 | Z52: 0.1682 | AA52: 0.172 | AB52: 0.1826
A53: 1983-03-07 | B53: 26 | C53: 72 | E53: 198306 | F53: P | G53: 0 | T53: 0.2193 | U53: 0.2174 | V53: 0.214 | W53: 0.2083 | X53: 0.2078 | Y53: 0.2001
A54: 1983-03-07 | B54: 26 | C54: 72 | E54: 198306 | F54: C | G54: 0 | V54: 0.1994 | W54: 0.1949 | X54: 0.1911 | Y54: 0.18 | Z54: 0.1767
A55: 1983-03-08 | B55: 27 | C55: 71 | E55: 198306 | F55: P | G55: 0 | T55: 0.2113 | U55: 0.2063 | V55: 0.2057 | W55: 0.2026 | X55: 0.1923 | Y55: 0.1814 | Z55: 0.1828
A56: 1983-03-08 | B56: 27 | C56: 71 | E56: 198306 | F56: C | G56: 0 | V56: 0.2152 | W56: 0.2 | X56: 0.1855 | Y56: 0.1802 | Z56: 0.1837 | AA56: 0.1851
A57: 1983-03-09 | B57: 28 | C57: 70 | E57: 198306 | F57: P | G57: 0 | T57: 0.2197 | U57: 0.2094 | V57: 0.202 | W57: 0.1997 | X57: 0.1956 | Y57: 0.1961
A58: 1983-03-09 | B58: 28 | C58: 70 | E58: 198306 | F58: C | G58: 0 | V58: 0.2097 | W58: 0.2044 | X58: 0.1916 | Y58: 0.1854 | Z58: 0.1824
A59: 1983-03-10 | B59: 29 | C59: 69 | E59: 198306 | F59: P | G59: 0 | T59: 0.2232 | U59: 0.2062 | V59: 0.2016 | W59: 0.2007 | X59: 0.1978
A60: 1983-03-10 | B60: 29 | C60: 69 | E60: 198306 | F60: C | G60: 0 | V60: 0.1967 | W60: 0.1938 | X60: 0.1984 | Y60: 0.1971 | Z60: 0.1969 | AA60: 0.1918
A61: 1983-03-11 | B61: 30 | C61: 68 | E61: 198306 | F61: P | G61: 0 | T61: 0.2173 | U61: 0.2041 | V61: 0.2074 | W61: 0.2046 | X61: 0.1919
A62: 1983-03-11 | B62: 30 | C62: 68 | E62: 198306 | F62: C | G62: 0 | V62: 0.1879 | W62: 0.186 | X62: 0.1936 | Y62: 0.1909 | Z62: 0.1838 | AA62: 0.1833
A63: 1983-03-14 | B63: 31 | C63: 67 | E63: 198306 | F63: P | G63: 0 | T63: 0.2179 | U63: 0.2087 | V63: 0.2044 | W63: 0.1978 | X63: 0.1911
A64: 1983-03-14 | B64: 31 | C64: 67 | E64: 198306 | F64: C | G64: 0 | V64: 0.2015 | W64: 0.1969 | X64: 0.1889 | Y64: 0.1814 | Z64: 0.1817 | AA64: 0.1797
A65: 1983-03-15 | B65: 32 | C65: 66 | E65: 198306 | F65: P | G65: 0 | T65: 0.2201 | U65: 0.2082 | V65: 0.2003 | W65: 0.1968 | X65: 0.1937
A66: 1983-03-15 | B66: 32 | C66: 66 | E66: 198306 | F66: C | G66: 0 | V66: 0.2035 | W66: 0.2022 | X66: 0.1922 | Y66: 0.1826 | Z66: 0.1806 | AA66: 0.1782
A67: 1983-03-16 | B67: 33 | C67: 65 | E67: 198306 | F67: P | G67: 0 | U67: 0.1876 | V67: 0.1877 | W67: 0.1908 | X67: 0.1889 | Y67: 0.1873
A68: 1983-03-16 | B68: 33 | C68: 65 | E68: 198306 | F68: C | G68: 0 | V68: 0.2012 | W68: 0.1984 | X68: 0.1983 | Y68: 0.1954 | Z68: 0.1899 | AA68: 0.1856 | AB68: 0.1893
A69: 1983-03-17 | B69: 34 | C69: 64 | E69: 198306 | F69: P | G69: =IF(E69=E68,G68,ABS(G68-1)) -> 0 | U69: 0.196 | V69: 0.1912 | W69: 0.1882 | X69: 0.1858 | Y69: 0.1852
A70: 1983-03-17 | B70: =IF(A70=A69,B69,B69+1) -> 34 | C70: 64 | E70: 198306 | F70: C | G70: 0 | V70: 0.1898 | W70: 0.1943 | X70: 0.1999 | Y70: 0.2003 | Z70: 0.1933 | AA70: 0.1854 | AB70: 0.1889
A71: 1983-03-18 | B71: 35 | C71: 63 | E71: 198306 | F71: P | G71: 0 | T71: 0.2104 | U71: 0.2069 | V71: 0.1961 | W71: 0.1884 | X71: 0.1857 | Y71: 0.1833
A72: 1983-03-18 | B72: 35 | C72: 63 | E72: 198306 | F72: C | G72: 0 | V72: 0.1909 | W72: 0.1888 | X72: 0.1857 | Y72: 0.1759 | Z72: 0.1706 | AA72: 0.1735 | AB72: 0.1799
A73: 1983-03-21 | B73: 36 | C73: 62 | E73: 198306 | F73: P | G73: 0 | S73: 0.1982 | T73: 0.1863 | U73: 0.1892 | V73: 0.1906 | W73: 0.1831 | X73: 0.1706
A74: 1983-03-21 | B74: 36 | C74: 62 | E74: 198306 | F74: C | G74: 0 | V74: 0.1735 | W74: 0.1748 | X74: 0.1757 | Y74: 0.172 | Z74: 0.1619 | AA74: 0.156
A75: 1983-03-22 | B75: 37 | C75: 61 | E75: 198306 | F75: P | G75: 0 | U75: 0.1885 | V75: 0.1888 | W75: 0.1857 | X75: 0.1795 | Y75: 0.1701
A76: 1983-03-22 | B76: 37 | C76: 61 | E76: 198306 | F76: C | G76: 0 | V76: 0.1944 | W76: 0.1805 | X76: 0.171 | Y76: 0.1647 | Z76: 0.1617 | AA76: 0.1602 | AB76: 0.1576
A77: 1983-03-23 | B77: 38 | C77: 60 | E77: 198306 | F77: P | G77: 0 | R77: 0.1951 | S77: 0.1901 | T77: 0.188 | U77: 0.1851 | V77: 0.1799 | W77: 0.1721 | X77: 0.1646 | Y77: 0.162
A78: 1983-03-23 | B78: 38 | C78: 60 | E78: 198306 | F78: C | G78: 0 | V78: 0.1759 | W78: 0.1681 | X78: 0.1626 | Y78: 0.1588 | Z78: 0.1557 | AA78: 0.1533
A79: 1983-03-24 | B79: 39 | C79: 59 | E79: 198306 | F79: P | G79: 0 | R79: 0.1953 | S79: 0.1892 | T79: 0.1894 | U79: 0.1881 | V79: 0.182 | W79: 0.1714 | X79: 0.1613 | Y79: 0.1598
A80: 1983-03-24 | B80: 39 | C80: 59 | E80: 198306 | F80: C | G80: 0 | V80: 0.1808 | W80: 0.1759 | X80: 0.1698 | Y80: 0.1622 | Z80: 0.156 | AA80: 0.1556
A81: 1983-03-25 | B81: 40 | C81: 58 | E81: 198306 | F81: P | G81: 0 | S81: 0.1894 | T81: 0.1853 | U81: 0.1826 | V81: 0.1798 | W81: 0.1755 | X81: 0.1689 | Y81: 0.1632 | Z81: 0.1621
A82: 1983-03-25 | B82: 40 | C82: 58 | E82: 198306 | F82: C | G82: 0 | V82: 0.1928 | W82: 0.1863 | X82: 0.1748 | Y82: 0.1677 | Z82: 0.1682 | AA82: 0.1694
A83: 1983-03-28 | B83: 41 | C83: 57 | E83: 198306 | F83: P | G83: 0 | S83: 0.1895 | T83: 0.187 | U83: 0.1845 | V83: 0.1809 | W83: 0.177 | X83: 0.1737 | Y83: 0.1708 | Z83: 0.1683
A84: 1983-03-28 | B84: 41 | C84: 57 | E84: 198306 | F84: C | G84: 0 | V84: 0.1844 | W84: 0.1806 | X84: 0.1729 | Y84: 0.1678 | Z84: 0.1678 | AA84: 0.1689
A85: 1983-03-29 | B85: 42 | C85: 56 | E85: 198306 | F85: P | G85: 0 | S85: 0.1811 | T85: 0.1783 | U85: 0.1809 | V85: 0.1816 | W85: 0.1786 | X85: 0.1733 | Y85: 0.1664 | Z85: 0.1574
A86: 1983-03-29 | B86: 42 | C86: 56 | E86: 198306 | F86: C | G86: 0 | V86: 0.1838 | W86: 0.1792 | X86: 0.1778 | Y86: 0.1765 | Z86: 0.1731 | AA86: 0.1697 | AB86: 0.1705
A87: 1983-03-30 | B87: 43 | C87: 55 | E87: 198306 | F87: P | G87: 0 | R87: 0.2005 | S87: 0.1936 | T87: 0.1971 | U87: 0.1975 | V87: 0.1904 | W87: 0.1799 | X87: 0.1735 | Y87: 0.1795
A88: 1983-03-30 | B88: 43 | C88: 55 | E88: 198306 | F88: C | G88: 0 | V88: 0.1803 | W88: 0.1769 | X88: 0.1722 | Y88: 0.1702 | Z88: 0.1649 | AA88: 0.1556
A89: 1983-03-31 | B89: 44 | C89: 54 | E89: 198306 | F89: P | G89: 0 | S89: 0.179 | T89: 0.1813 | U89: 0.1874 | V89: 0.1875 | W89: 0.181 | X89: 0.1744 | Y89: 0.1676 | Z89: 0.1561
A90: 1983-03-31 | B90: 44 | C90: 54 | E90: 198306 | F90: C | G90: 0 | V90: 0.1916 | W90: 0.1736 | X90: 0.1662 | Y90: 0.1657 | Z90: 0.1697 | AA90: 0.1734 | AB90: 0.1716
A91: 1983-04-04 | B91: 45 | C91: 53 | E91: 198306 | F91: P | G91: 0 | R91: 0.2036 | S91: 0.1917 | T91: 0.1922 | U91: 0.1915 | V91: 0.1843 | W91: 0.1762 | X91: 0.1732 | Y91: 0.1743 | Z91: 0.1757
A92: 1983-04-04 | B92: 45 | C92: 53 | E92: 198306 | F92: C | G92: 0 | V92: 0.1768 | W92: 0.174 | X92: 0.1669 | Y92: 0.1624 | Z92: 0.1628 | AA92: 0.1626
A93: 1983-04-05 | B93: 46 | C93: 52 | E93: 198306 | F93: P | G93: 0 | S93: 0.1898 | T93: 0.186 | U93: 0.1873 | V93: 0.1852 | W93: 0.1803 | X93: 0.1807 | Y93: 0.1836 | Z93: 0.1786
A94: 1983-04-05 | B94: 46 | C94: 52 | E94: 198306 | F94: C | G94: 0 | V94: 0.1725 | W94: 0.1681 | X94: 0.1711 | Y94: 0.1749 | Z94: 0.1716 | AA94: 0.1644 | AB94: 0.1612
A95: 1983-04-06 | B95: 47 | C95: 51 | E95: 198306 | F95: P | G95: 0 | S95: 0.1941 | T95: 0.1879 | U95: 0.1831 | V95: 0.1781 | W95: 0.1742 | X95: 0.176 | Y95: 0.1818 | Z95: 0.1828
A96: 1983-04-06 | B96: 47 | C96: 51 | E96: 198306 | F96: C | G96: 0 | V96: 0.1716 | W96: 0.1727 | X96: 0.1731 | Y96: 0.1719 | Z96: 0.1671 | AA96: 0.1599 | AB96: 0.154
A97: 1983-04-07 | B97: 48 | C97: 50 | E97: 198306 | F97: P | G97: 0 | S97: 0.1917 | T97: 0.1866 | U97: 0.1804 | V97: 0.1756 | W97: 0.1727 | X97: 0.1701 | Y97: 0.1677 | Z97: 0.1662
A98: 1983-04-07 | B98: 48 | C98: 50 | E98: 198306 | F98: C | G98: 0 | V98: 0.1798 | W98: 0.1761 | X98: 0.1718 | Y98: 0.1681 | Z98: 0.167 | AA98: 0.1663 | AB98: 0.1617
A99: 1983-04-08 | B99: 49 | C99: 49 | E99: 198306 | F99: P | G99: 0 | S99: 0.1905 | T99: 0.185 | U99: 0.1789 | V99: 0.1712 | W99: 0.164 | X99: 0.1618 | Y99: 0.164 | Z99: 0.1685
A100: 1983-04-08 | B100: 49 | C100: 49 | E100: 198306 | F100: C | G100: 0 | V100: 0.1797 | W100: 0.1764 | X100: 0.1725 | Y100: 0.169 | Z100: 0.168 | AA100: 0.1675 | AB100: 0.1635
A101: 1983-04-11 | B101: 50 | C101: 48 | E101: 198306 | F101: P | G101: 0 | Q101: 0.2037 | R101: 0.1952 | S101: 0.189 | T101: 0.1838 | U101: 0.1798 | V101: 0.1758 | W101: 0.1708 | X101: 0.1652 | Y101: 0.1595
A102: 1983-04-11 | B102: 50 | C102: 48 | E102: 198306 | F102: C | G102: 0 | V102: 0.1631 | W102: 0.1623 | X102: 0.1597 | Y102: 0.1541 | Z102: 0.1469 | AA102: 0.1403
A103: 1983-04-12 | B103: 51 | C103: 47 | E103: 198306 | F103: P | G103: 0 | Q103: 0.1991 | R103: 0.1944 | S103: 0.1912 | T103: 0.1867 | U103: 0.1799 | V103: 0.1719 | W103: 0.1644 | X103: 0.1603 | Y103: 0.1621
A104: 1983-04-12 | B104: 51 | C104: 47 | E104: 198306 | F104: C | G104: 0 | V104: 0.1625 | W104: 0.1606 | X104: 0.1559 | Y104: 0.1492 | Z104: 0.1437 | AA104: 0.1441
A105: 1983-04-13 | B105: 52 | C105: 46 | E105: 198306 | F105: P | G105: 0 | P105: 0.2033 | Q105: 0.1963 | R105: 0.191 | S105: 0.1863 | T105: 0.1826 | U105: 0.1784 | V105: 0.1715 | W105: 0.1624 | X105: 0.1533 | Y105: 0.1452
A106: 1983-04-13 | B106: 52 | C106: 46 | E106: 198306 | F106: C | G106: 0 | V106: 0.17 | W106: 0.1623 | X106: 0.1544 | Y106: 0.1468 | Z106: 0.1421 | AA106: 0.1444
A107: 1983-04-14 | B107: 53 | C107: 45 | E107: 198306 | F107: P | G107: 0 | O107: 0.2138 | P107: 0.2163 | Q107: 0.2108 | R107: 0.2019 | S107: 0.1948 | T107: 0.1899 | U107: 0.1828 | V107: 0.1728 | W107: 0.1632 | X107: 0.1554
A108: 1983-04-14 | B108: 53 | C108: 45 | E108: 198306 | F108: C | G108: 0 | V108: 0.1671 | W108: 0.1593 | X108: 0.1534 | Y108: 0.1496 | Z108: 0.1489
A109: 1983-04-15 | B109: 54 | C109: 44 | E109: 198306 | F109: P | G109: 0 | P109: 0.214 | Q109: 0.2051 | R109: 0.1935 | S109: 0.1864 | T109: 0.1853 | U109: 0.184 | V109: 0.1787 | W109: 0.1683 | X109: 0.1545 | Y109: 0.1447 | Z109: 0.1406
A110: 1983-04-15 | B110: 54 | C110: 44 | E110: 198306 | F110: C | G110: 0 | V110: 0.1797 | W110: 0.1726 | X110: 0.1635 | Y110: 0.1557 | Z110: 0.1528
A111: 1983-04-18 | B111: 55 | C111: 43 | E111: 198306 | F111: P | G111: 0 | O111: 0.2176 | P111: 0.2121 | Q111: 0.2015 | R111: 0.1902 | S111: 0.1854 | T111: 0.1857 | U111: 0.1845 | V111: 0.1794 | W111: 0.1692 | X111: 0.1576 | Y111: 0.1517 | Z111: 0.1482
A112: 1983-04-18 | B112: 55 | C112: 43 | E112: 198306 | F112: C | G112: 0 | V112: 0.1806 | W112: 0.1729 | X112: 0.166 | Y112: 0.161 | Z112: 0.1592
A113: 1983-04-20 | B113: 56 | C113: 41 | E113: 198306 | F113: P | G113: 0 | O113: 0.2158 | P113: 0.211 | Q113: 0.2086 | R113: 0.2063 | S113: 0.2031 | T113: 0.198 | U113: 0.1902 | V113: 0.1801 | W113: 0.1688 | X113: 0.1607 | Y113: 0.1605
A114: 1983-04-20 | B114: 56 | C114: 41 | E114: 198306 | F114: C | G114: 0 | V114: 0.1737 | W114: 0.1649 | X114: 0.1588 | Y114: 0.1544
A115: 1983-04-21 | B115: 57 | C115: 40 | E115: 198306 | F115: P | G115: 0 | O115: 0.2252 | P115: 0.2219 | Q115: 0.2128 | R115: 0.2032 | S115: 0.198 | T115: 0.1957 | U115: 0.1935 | V115: 0.1888 | W115: 0.1801 | X115: 0.171 | Y115: 0.1663
A116: 1983-04-21 | B116: 57 | C116: 40 | E116: 198306 | F116: C | G116: 0 | V116: 0.1823 | W116: 0.1737 | X116: 0.165 | Y116: 0.1585 | Z116: 0.1532 | AA116: 0.1478
A117: 1983-04-22 | B117: 58 | C117: 39 | E117: 198306 | F117: P | G117: 0 | O117: 0.2225 | P117: 0.221 | Q117: 0.2156 | R117: 0.2059 | S117: 0.1947 | T117: 0.1871 | U117: 0.1851 | V117: 0.1821 | W117: 0.1729 | X117: 0.1621 | Y117: 0.1554 | Z117: 0.1546
A118: 1983-04-22 | B118: 58 | C118: 39 | E118: 198306 | F118: C | G118: 0 | V118: 0.187 | W118: 0.176 | X118: 0.1658 | Y118: 0.1619 | Z118: 0.1614 | AA118: 0.1599
A119: 1983-04-25 | B119: 59 | C119: 38 | E119: 198306 | F119: P | G119: 0 | P119: 0.2155 | Q119: 0.2093 | R119: 0.2013 | S119: 0.1938 | T119: 0.1884 | U119: 0.1869 | V119: 0.1875 | W119: 0.1835 | X119: 0.1731 | Y119: 0.1621 | Z119: 0.1532
A120: 1983-04-25 | B120: 59 | C120: 38 | E120: 198306 | F120: C | G120: 0 | V120: 0.1838 | W120: 0.1754 | X120: 0.1638 | Y120: 0.1569 | Z120: 0.1586 | AA120: 0.1642 | AB120: 0.1692
A121: 1983-04-26 | B121: 60 | C121: 37 | E121: 198306 | F121: P | G121: 0 | N121: 0.2235 | O121: 0.221 | P121: 0.2165 | Q121: 0.2081 | R121: 0.1971 | S121: 0.19 | T121: 0.1881 | U121: 0.1847 | V121: 0.1759 | W121: 0.1664 | X121: 0.1609 | Y121: 0.1589 | Z121: 0.1594
A122: 1983-04-26 | B122: 60 | C122: 37 | E122: 198306 | F122: C | G122: 0 | V122: 0.1669 | W122: 0.1606 | X122: 0.1556 | Y122: 0.1518 | Z122: 0.1505 | AA122: 0.1546
A123: 1983-04-27 | B123: 61 | C123: 36 | E123: 198306 | F123: P | G123: 0 | N123: 0.2254 | O123: 0.224 | P123: 0.2211 | Q123: 0.2141 | R123: 0.2036 | S123: 0.1955 | T123: 0.1928 | U123: 0.1893 | V123: 0.1805 | W123: 0.1714 | X123: 0.1681 | Y123: 0.1677 | Z123: 0.1644
A124: 1983-04-27 | B124: 61 | C124: 36 | E124: 198306 | F124: C | G124: 0 | V124: 0.1672 | W124: 0.161 | X124: 0.156 | Y124: 0.1518 | Z124: 0.15 | AA124: 0.1533
A125: 1983-04-28 | B125: 62 | C125: 35 | E125: 198306 | F125: P | G125: 0 | M125: 0.2236 | N125: 0.2224 | O125: 0.2201 | P125: 0.2154 | Q125: 0.2078 | R125: 0.2003 | S125: 0.1955 | T125: 0.1912 | U125: 0.184 | V125: 0.1739 | W125: 0.1633 | X125: 0.1561 | Y125: 0.1603 | Z125: 0.1805
A126: 1983-04-28 | B126: 62 | C126: 35 | E126: 198306 | F126: C | G126: 0 | V126: 0.1722 | W126: 0.1634 | X126: 0.1574 | Y126: 0.1537 | Z126: 0.1533
A127: 1983-04-29 | B127: 63 | C127: 34 | E127: 198306 | F127: P | G127: 0 | L127: 0.2335 | M127: 0.2253 | N127: 0.2142 | O127: 0.2036 | P127: 0.1987 | Q127: 0.1978 | R127: 0.1958 | S127: 0.1909 | T127: 0.1844 | U127: 0.1769 | V127: 0.1696 | W127: 0.1631 | X127: 0.1573 | Y127: 0.1527 | Z127: 0.1528
A128: 1983-04-29 | B128: 63 | C128: 34 | E128: 198306 | F128: C | G128: 0 | W128: 0.1626 | X128: 0.1562 | Y128: 0.1554 | Z128: 0.161
A129: 1983-05-02 | B129: 64 | C129: 33 | E129: 198306 | F129: P | G129: 0 | M129: 0.2254 | N129: 0.2161 | O129: 0.2095 | P129: 0.2041 | Q129: 0.1998 | R129: 0.1956 | S129: 0.19 | T129: 0.1842 | U129: 0.1804 | V129: 0.1784 | W129: 0.1764 | X129: 0.173 | Y129: 0.1675 | Z129: 0.1589
A130: 1983-05-02 | B130: 64 | C130: 33 | E130: 198306 | F130: C | G130: 0 | V130: 0.1792 | W130: 0.1713 | X130: 0.1608 | Y130: 0.1544 | Z130: 0.1554
A131: 1983-05-03 | B131: 65 | C131: 32 | E131: 198306 | F131: P | G131: 0 | M131: 0.2156 | N131: 0.1968 | O131: 0.1798 | P131: 0.1756 | Q131: 0.1816 | R131: 0.1859 | S131: 0.1849 | T131: 0.1788 | U131: 0.1684 | V131: 0.1587 | W131: 0.1574 | X131: 0.1631 | Y131: 0.1664 | Z131: 0.1624
A132: 1983-05-03 | B132: 65 | C132: 32 | E132: 198306 | F132: C | G132: 0 | V132: 0.1698 | W132: 0.1663 | X132: 0.1647 | Y132: 0.1629 | Z132: 0.1601
A133: 1983-05-04 | B133: 66 | C133: 31 | E133: 198306 | F133: P | G133: =IF(E133=E132,G132,ABS(G132-1)) -> 0 | K133: 0.2387 | L133: 0.222 | M133: 0.2099 | N133: 0.2027 | O133: 0.1979 | P133: 0.1936 | Q133: 0.1899 | R133: 0.1871 | S133: 0.1844 | T133: 0.181 | U133: 0.1763 | V133: 0.1689 | W133: 0.1586 | X133: 0.1501 | Y133: 0.1486 | Z133: 0.1547
A134: 1983-05-04 | B134: =IF(A134=A133,B133,B133+1) -> 66 | C134: 31 | E134: 198306 | F134: C | G134: 0 | W134: 0.1605 | X134: 0.156 | Y134: 0.1533 | Z134: 0.1526
A135: 1983-05-05 | B135: 67 | C135: 30 | E135: 198306 | F135: P | G135: 0 | J135: 0.2498 | K135: 0.2328 | L135: 0.2172 | M135: 0.2038 | N135: 0.1946 | O135: 0.1895 | P135: 0.1865 | Q135: 0.1842 | R135: 0.1816 | S135: 0.1787 | T135: 0.1752 | U135: 0.1703 | V135: 0.1628 | W135: 0.1541 | X135: 0.148 | Y135: 0.1472 | Z135: 0.1475
A136: 1983-05-05 | B136: 67 | C136: 30 | E136: 198306 | F136: C | G136: 0 | V136: 0.1632 | W136: 0.1536 | X136: 0.148 | Y136: 0.1452 | Z136: 0.1453
A137: 1983-05-06 | B137: 68 | C137: 29 | E137: 198306 | F137: P | G137: 0 | H137: 0.262 | I137: 0.2475 | J137: 0.2359 | K137: 0.2269 | L137: 0.2182 | M137: 0.2087 | N137: 0.2001 | O137: 0.1942 | P137: 0.1908 | Q137: 0.1887 | R137: 0.1871 | S137: 0.1842 | T137: 0.1783 | U137: 0.1689 | V137: 0.1586 | W137: 0.1502 | X137: 0.1429 | Y137: 0.1322
A138: 1983-05-06 | B138: 68 | C138: 29 | E138: 198306 | F138: C | G138: 0 | V138: 0.1511 | W138: 0.1411 | X138: 0.1323 | Y138: 0.1257 | Z138: 0.1234 | AA138: 0.1282
A139: 1983-05-09 | B139: 69 | C139: 28 | E139: 198306 | F139: P | G139: 0 | H139: 0.2708 | I139: 0.2549 | J139: 0.2415 | K139: 0.2311 | L139: 0.2221 | M139: 0.213 | N139: 0.2039 | O139: 0.1962 | P139: 0.1904 | Q139: 0.1857 | R139: 0.1814 | S139: 0.1767 | T139: 0.1712 | U139: 0.1646 | V139: 0.1578 | W139: 0.1522 | X139: 0.1478 | Y139: 0.1405
A140: 1983-05-09 | B140: 69 | C140: 28 | E140: 198306 | F140: C | G140: 0 | V140: 0.1505 | W140: 0.1433 | X140: 0.1365 | Y140: 0.1318 | Z140: 0.1324 | AA140: 0.1394 | AB140: 0.149
A141: 1983-05-10 | B141: 70 | C141: 27 | E141: 198306 | F141: P | G141: 0 | H141: 0.2779 | I141: 0.2631 | J141: 0.2503 | K141: 0.2378 | L141: 0.225 | M141: 0.2116 | N141: 0.199 | O141: 0.1909 | P141: 0.1874 | Q141: 0.1844 | R141: 0.179 | S141: 0.1714 | T141: 0.1644 | U141: 0.1594 | V141: 0.1558 | W141: 0.1527 | X141: 0.1489 | Y141: 0.141
A142: 1983-05-10 | B142: 70 | C142: 27 | E142: 198306 | F142: C | G142: 0 | V142: 0.157 | W142: 0.1508 | X142: 0.1434 | Y142: 0.1374 | Z142: 0.1364 | AA142: 0.1415
A143: 1983-05-11 | B143: 71 | C143: 26 | E143: 198306 | F143: P | G143: 0 | I143: 0.2713 | J143: 0.2544 | K143: 0.2394 | L143: 0.2271 | M143: 0.2182 | N143: 0.2119 | O143: 0.2066 | P143: 0.2009 | Q143: 0.1943 | R143: 0.1865 | S143: 0.1774 | T143: 0.1688 | U143: 0.1629 | V143: 0.16 | W143: 0.1585 | X143: 0.1572 | Y143: 0.1542
A144: 1983-05-11 | B144: 71 | C144: 26 | E144: 198306 | F144: C | G144: 0 | V144: 0.151 | W144: 0.1472 | X144: 0.1458 | Y144: 0.1453 | Z144: 0.1446 | AA144: 0.1422 | AB144: 0.1342
A145: 1983-05-12 | B145: 72 | C145: 25 | E145: 198306 | F145: P | G145: 0 | I145: 0.2705 | J145: 0.254 | K145: 0.2401 | L145: 0.2291 | M145: 0.2189 | N145: 0.2076 | O145: 0.1967 | P145: 0.1891 | Q145: 0.1849 | R145: 0.1807 | S145: 0.1743 | T145: 0.1661 | U145: 0.1587 | V145: 0.1534 | W145: 0.1502 | X145: 0.1494 | Y145: 0.1509 | Z145: 0.151
A146: 1983-05-12 | B146: 72 | C146: 25 | E146: 198306 | F146: C | G146: 0 | V146: 0.1558 | W146: 0.1533 | X146: 0.1517 | Y146: 0.1504 | Z146: 0.1486 | AA146: 0.1452 | AB146: 0.1395 | AC146: 0.131
A147: 1983-05-13 | B147: 73 | C147: 24 | E147: 198306 | F147: P | G147: 0 | H147: 0.2852 | I147: 0.2683 | J147: 0.2534 | K147: 0.2415 | L147: 0.2316 | M147: 0.2224 | N147: 0.2132 | O147: 0.2042 | P147: 0.1952 | Q147: 0.1866 | R147: 0.1791 | S147: 0.1725 | T147: 0.1664 | U147: 0.1603 | V147: 0.1543 | W147: 0.1499 | X147: 0.1482 | Y147: 0.1481 | Z147: 0.1446
A148: 1983-05-13 | B148: 73 | C148: 24 | E148: 198306 | F148: C | G148: 0 | V148: 0.1562 | W148: 0.1527 | X148: 0.1504 | Y148: 0.1482 | Z148: 0.1452 | AA148: 0.1405 | AB148: 0.1336
A149: 1983-05-16 | B149: 74 | C149: 23 | E149: 198306 | F149: P | G149: 0 | H149: 0.2786 | I149: 0.2616 | J149: 0.2449 | K149: 0.2282 | L149: 0.2129 | M149: 0.2011 | N149: 0.193 | O149: 0.1888 | P149: 0.1871 | Q149: 0.1862 | R149: 0.1827 | S149: 0.1753 | T149: 0.1649 | U149: 0.1559 | V149: 0.1505 | W149: 0.1485 | X149: 0.1478 | Y149: 0.1477 | Z149: 0.1463
A150: 1983-05-16 | B150: 74 | C150: 23 | E150: 198306 | F150: C | G150: 0 | V150: 0.1461 | W150: 0.1443 | X150: 0.143 | Y150: 0.1418 | Z150: 0.1406 | AA150: 0.1388 | AB150: 0.1364 | AC150: 0.1348
A151: 1983-05-17 | B151: 75 | C151: 22 | E151: 198306 | F151: P | G151: 0 | H151: 0.2616 | I151: 0.2459 | J151: 0.2305 | K151: 0.2166 | L151: 0.2054 | M151: 0.1968 | N151: 0.19 | O151: 0.1838 | P151: 0.1776 | Q151: 0.1714 | R151: 0.1653 | S151: 0.159 | T151: 0.1533 | U151: 0.1484 | V151: 0.1444 | W151: 0.1411 | X151: 0.1388 | Y151: 0.1383 | Z151: 0.1422
A152: 1983-05-17 | B152: 75 | C152: 22 | E152: 198306 | F152: C | G152: 0 | V152: 0.1323 | W152: 0.1326 | X152: 0.133 | Y152: 0.1334 | Z152: 0.1337 | AA152: 0.1335 | AB152: 0.1328 | AC152: 0.1324 | AD152: 0.1357
A153: 1983-05-18 | B153: 76 | C153: 21 | E153: 198306 | F153: P | G153: 0 | H153: 0.2655 | I153: 0.2497 | J153: 0.2339 | K153: 0.2186 | L153: 0.2049 | M153: 0.1934 | N153: 0.1843 | O153: 0.1773 | P153: 0.1717 | Q153: 0.1665 | R153: 0.161 | S153: 0.1547 | T153: 0.1479 | U153: 0.1426 | V153: 0.1401 | W153: 0.1404 | X153: 0.1402 | Y153: 0.1357
A154: 1983-05-18 | B154: 76 | C154: 21 | E154: 198306 | F154: C | G154: 0 | W154: 0.1405 | X154: 0.1379 | Y154: 0.1362 | Z154: 0.1357 | AA154: 0.1362 | AB154: 0.1375 | AC154: 0.1395 | AD154: 0.1435 | AE154: 0.1527
A155: 1983-05-19 | B155: 77 | C155: 20 | E155: 198306 | F155: P | G155: 0 | H155: 0.2644 | I155: 0.2487 | J155: 0.233 | K155: 0.2178 | L155: 0.2046 | M155: 0.1944 | N155: 0.1868 | O155: 0.1816 | P155: 0.178 | Q155: 0.1747 | R155: 0.1705 | S155: 0.1644 | T155: 0.1561 | U155: 0.1479 | V155: 0.1421 | W155: 0.1402 | X155: 0.1409 | Y155: 0.1401
A156: 1983-05-19 | B156: 77 | C156: 20 | E156: 198306 | F156: C | G156: 0 | W156: 0.1376 | X156: 0.1364 | Y156: 0.1353 | Z156: 0.1347 | AA156: 0.1351 | AB156: 0.1364 | AC156: 0.1382 | AD156: 0.14 | AE156: 0.1426 | AF156: 0.1484
A157: 1983-05-20 | B157: 78 | C157: 19 | E157: 198306 | F157: P | G157: 0 | H157: 0.2647 | I157: 0.2494 | J157: 0.2344 | K157: 0.2206 | L157: 0.2091 | M157: 0.2 | N157: 0.1922 | O157: 0.1839 | P157: 0.1741 | Q157: 0.1629 | R157: 0.1532 | S157: 0.1464 | T157: 0.1422 | U157: 0.1399 | V157: 0.139 | W157: 0.1397 | X157: 0.1411 | Y157: 0.1403 | Z157: 0.1339
A158: 1983-05-20 | B158: 78 | C158: 19 | E158: 198306 | F158: C | G158: 0 | W158: 0.1366 | X158: 0.1346 | Y158: 0.1332 | Z158: 0.1328 | AA158: 0.1342 | AB158: 0.1377 | AC158: 0.1428 | AD158: 0.1481 | AE158: 0.1528 | AF158: 0.1558
A159: 1983-05-23 | B159: 79 | C159: 18 | E159: 198306 | F159: P | G159: 0 | I159: 0.2553 | J159: 0.2397 | K159: 0.225 | L159: 0.2116 | M159: 0.1998 | N159: 0.1896 | O159: 0.1808 | P159: 0.173 | Q159: 0.1666 | R159: 0.1609 | S159: 0.1558 | T159: 0.1517 | U159: 0.149 | V159: 0.1477 | W159: 0.1463 | X159: 0.1435 | Y159: 0.1379 | Z159: 0.13
A160: 1983-05-23 | B160: 79 | C160: 18 | E160: 198306 | F160: C | G160: 0 | V160: 0.1435 | W160: 0.1404 | X160: 0.1381 | Y160: 0.1363 | Z160: 0.1346 | AA160: 0.1328 | AB160: 0.1306 | AC160: 0.1287 | AD160: 0.129 | AE160: 0.1364
A161: 1983-05-24 | B161: 80 | C161: 17 | E161: 198306 | F161: P | G161: 0 | H161: 0.2591 | I161: 0.2438 | J161: 0.2286 | K161: 0.2147 | L161: 0.2038 | M161: 0.1964 | N161: 0.191 | O161: 0.1851 | P161: 0.1776 | Q161: 0.1681 | R161: 0.1583 | S161: 0.1499 | T161: 0.1431 | U161: 0.138 | V161: 0.1354 | W161: 0.1358 | X161: 0.14 | Y161: 0.1462 | Z161: 0.1517
A162: 1983-05-24 | B162: 80 | C162: 17 | E162: 198306 | F162: C | G162: 0 | X162: 0.1327 | Y162: 0.1333 | Z162: 0.1323 | AA162: 0.1302 | AB162: 0.1281 | AC162: 0.1283 | AD162: 0.1371
A163: 1983-05-25 | B163: 81 | C163: 16 | E163: 198306 | F163: P | G163: 0 | I163: 0.2404 | J163: 0.2264 | K163: 0.2143 | L163: 0.2045 | M163: 0.1966 | N163: 0.1892 | O163: 0.1818 | P163: 0.1737 | Q163: 0.1654 | R163: 0.1574 | S163: 0.1497 | T163: 0.1424 | U163: 0.1369 | V163: 0.134 | W163: 0.1341 | X163: 0.1361 | Y163: 0.137 | Z163: 0.1337
A164: 1983-05-25 | B164: 81 | C164: 16 | E164: 198306 | F164: C | G164: 0 | W164: 0.1348 | X164: 0.1352 | Y164: 0.1342 | Z164: 0.1318 | AA164: 0.1282 | AB164: 0.1239 | AC164: 0.1209
A165: 1983-05-26 | B165: 82 | C165: 15 | E165: 198306 | F165: P | G165: 0 | H165: 0.2773 | I165: 0.261 | J165: 0.2448 | K165: 0.2286 | L165: 0.2124 | M165: 0.1963 | N165: 0.1813 | O165: 0.1702 | P165: 0.1632 | Q165: 0.159 | R165: 0.1565 | S165: 0.1548 | T165: 0.1531 | U165: 0.1512 | V165: 0.1487 | W165: 0.1458 | X165: 0.1424 | Y165: 0.1389 | Z165: 0.1366
A166: 1983-05-26 | B166: 82 | C166: 15 | E166: 198306 | F166: C | G166: 0 | X166: 0.142 | Y166: 0.1406 | Z166: 0.1379 | AA166: 0.1343 | AB166: 0.1306 | AC166: 0.1288 | AD166: 0.1352
A167: 1983-05-27 | B167: 83 | C167: 14 | E167: 198306 | F167: P | G167: 0 | H167: 0.2405 | I167: 0.2273 | J167: 0.215 | K167: 0.2037 | L167: 0.1936 | M167: 0.1856 | N167: 0.1796 | O167: 0.175 | P167: 0.1709 | Q167: 0.1663 | R167: 0.1604 | S167: 0.1527 | T167: 0.1433 | U167: 0.1339 | V167: 0.1267 | W167: 0.1225 | X167: 0.122 | Y167: 0.1247 | Z167: 0.1284
A168: 1983-05-27 | B168: 83 | C168: 14 | E168: 198306 | F168: C | G168: 0 | X168: 0.1251 | Y168: 0.1293 | Z168: 0.1309 | AA168: 0.1306 | AB168: 0.1285 | AC168: 0.1251 | AD168: 0.1206 | AE168: 0.1173
A169: 1983-05-31 | B169: 84 | C169: 13 | E169: 198306 | F169: P | G169: 0 | H169: 0.2578 | I169: 0.2429 | J169: 0.228 | K169: 0.2133 | L169: 0.1994 | M169: 0.1866 | N169: 0.1751 | O169: 0.1653 | P169: 0.1587 | Q169: 0.1552 | R169: 0.1533 | S169: 0.1518 | T169: 0.149 | U169: 0.144 | V169: 0.1362 | W169: 0.1255 | X169: 0.1153 | Y169: 0.11 | Z169: 0.1169
A170: 1983-05-31 | B170: 84 | C170: 13 | E170: 198306 | F170: C | G170: 0 | W170: 0.1355 | X170: 0.1324 | Y170: 0.1297 | Z170: 0.1274 | AA170: 0.1263 | AB170: 0.127 | AC170: 0.1297 | AD170: 0.1348 | AE170: 0.1411 | AF170: 0.1476
A171: 1983-06-01 | B171: 85 | C171: 12 | E171: 198306 | F171: P | G171: 0 | H171: 0.2422 | I171: 0.2286 | J171: 0.2157 | K171: 0.2038 | L171: 0.1932 | M171: 0.1837 | N171: 0.176 | O171: 0.17 | P171: 0.1652 | Q171: 0.1609 | R171: 0.1564 | S171: 0.1505 | T171: 0.1426 | U171: 0.1324 | V171: 0.1197 | W171: 0.1077 | X171: 0.1001 | Y171: 0.1007
A172: 1983-06-01 | B172: 85 | C172: 12 | E172: 198306 | F172: C | G172: 0 | V172: 0.1365 | W172: 0.1356 | X172: 0.1316 | Y172: 0.1263 | Z172: 0.1212 | AA172: 0.118 | AB172: 0.1166 | AC172: 0.1172 | AD172: 0.1204 | AE172: 0.1252 | AF172: 0.1311
A173: 1983-06-02 | B173: 86 | C173: 11 | E173: 198306 | F173: P | G173: 0 | K173: 0.2058 | L173: 0.1969 | M173: 0.1869 | N173: 0.1761 | O173: 0.1645 | P173: 0.1529 | Q173: 0.1433 | R173: 0.1363 | S173: 0.1315 | T173: 0.1279 | U173: 0.125 | V173: 0.1227 | W173: 0.1212 | X173: 0.1208
A174: 1983-06-02 | B174: 86 | C174: 11 | E174: 198306 | F174: C | G174: 0 | Y174: 0.1183 | Z174: 0.1197 | AA174: 0.1209 | AB174: 0.1219 | AC174: 0.1229 | AD174: 0.124 | AE174: 0.1259 | AF174: 0.13
A175: 1983-06-03 | B175: 87 | C175: 10 | E175: 198306 | F175: P | G175: 0 | H175: 0.2133 | I175: 0.2014 | J175: 0.1894 | K175: 0.1775 | L175: 0.1655 | M175: 0.1535 | N175: 0.1423 | O175: 0.1341 | P175: 0.1292 | Q175: 0.1268 | R175: 0.1256 | S175: 0.1246 | T175: 0.1234 | U175: 0.1214 | V175: 0.1183 | W175: 0.114 | X175: 0.1079
A176: 1983-06-03 | B176: 87 | C176: 10 | E176: 198306 | F176: C | G176: 0 | Y176: 0.1078 | Z176: 0.1168 | AA176: 0.1234 | AB176: 0.1281 | AC176: 0.1314 | AD176: 0.1335 | AE176: 0.135 | AF176: 0.1363
A177: 1983-06-06 | B177: 88 | C177: 72 | E177: 198309 | F177: P | G177: 1 | P177: 0.1951 | Q177: 0.1854 | R177: 0.1728 | S177: 0.1643 | T177: 0.1622 | U177: 0.1574 | V177: 0.1537 | W177: 0.1568 | X177: 0.1569 | Y177: 0.1482 | Z177: 0.1299
A178: 1983-06-06 | B178: 88 | C178: 72 | E178: 198309 | F178: C | G178: 1 | V178: 0.149 | W178: 0.1437 | X178: 0.1411 | Y178: 0.1416 | Z178: 0.1377
A179: 1983-06-07 | B179: 89 | C179: 71 | E179: 198309 | F179: P | G179: 1 | Q179: 0.173 | R179: 0.1595 | S179: 0.1447 | T179: 0.1391 | U179: 0.1441 | V179: 0.1449 | W179: 0.1413 | X179: 0.1405 | Y179: 0.1431 | Z179: 0.1468
A180: 1983-06-07 | B180: 89 | C180: 71 | E180: 198309 | F180: C | G180: 1 | V180: 0.1518 | W180: 0.1551 | X180: 0.1504 | Y180: 0.1477 | Z180: 0.1517 | AA180: 0.1531
A181: 1983-06-08 | B181: 90 | C181: 70 | E181: 198309 | F181: P | G181: 1 | R181: 0.1564 | S181: 0.1526 | T181: 0.1495 | U181: 0.142 | V181: 0.1395 | W181: 0.1465 | X181: 0.1507 | Y181: 0.146 | Z181: 0.1347
A182: 1983-06-08 | B182: 90 | C182: 70 | E182: 198309 | F182: C | G182: 1 | V182: 0.1415 | W182: 0.1428 | X182: 0.1441 | Y182: 0.143 | Z182: 0.1475 | AA182: 0.1534 | AB182: 0.1531
A183: 1983-06-09 | B183: 91 | C183: 69 | E183: 198309 | F183: P | G183: 1 | Q183: 0.1753 | R183: 0.1708 | S183: 0.1629 | T183: 0.1554 | U183: 0.152 | V183: 0.1523 | W183: 0.1518 | X183: 0.1455 | Y183: 0.1401 | Z183: 0.1406
A184: 1983-06-09 | B184: 91 | C184: 69 | E184: 198309 | F184: C | G184: 1 | V184: 0.1467 | W184: 0.1452 | X184: 0.1464 | Y184: 0.1467 | Z184: 0.1446 | AA184: 0.143
A185: 1983-06-10 | B185: 92 | C185: 68 | E185: 198309 | F185: P | G185: 1 | Q185: 0.1793 | R185: 0.1718 | S185: 0.168 | T185: 0.1602 | U185: 0.1526 | V185: 0.1556 | W185: 0.1625 | X185: 0.1621 | Y185: 0.1559 | Z185: 0.1514
A186: 1983-06-10 | B186: 92 | C186: 68 | E186: 198309 | F186: C | G186: 1 | V186: 0.1567 | W186: 0.1562 | X186: 0.1487 | Y186: 0.1453 | Z186: 0.1478 | AA186: 0.1458
A187: 1983-06-13 | B187: 93 | C187: 67 | E187: 198309 | F187: P | G187: 1 | P187: 0.1937 | Q187: 0.1832 | R187: 0.175 | S187: 0.1699 | T187: 0.1662 | U187: 0.1607 | V187: 0.1562 | W187: 0.1551 | X187: 0.1535 | Y187: 0.1494 | Z187: 0.1418
A188: 1983-06-13 | B188: 93 | C188: 67 | E188: 198309 | F188: C | G188: 1 | V188: 0.1423 | W188: 0.1367 | X188: 0.1363 | Y188: 0.1411 | Z188: 0.1466
A189: 1983-06-14 | B189: 94 | C189: 66 | E189: 198309 | F189: P | G189: 1 | P189: 0.1929 | Q189: 0.1816 | R189: 0.1687 | S189: 0.1582 | T189: 0.1516 | U189: 0.1482 | V189: 0.1456 | W189: 0.1427 | X189: 0.1411 | Y189: 0.1388 | Z189: 0.1306
A190: 1983-06-14 | B190: 94 | C190: 66 | E190: 198309 | F190: C | G190: 1 | V190: 0.1387 | W190: 0.1437 | X190: 0.1477 | Y190: 0.1469 | Z190: 0.1447
A191: 1983-06-15 | B191: 95 | C191: 65 | E191: 198309 | F191: P | G191: 1 | O191: 0.2086 | P191: 0.1917 | Q191: 0.1747 | R191: 0.1634 | S191: 0.1612 | T191: 0.1673 | U191: 0.1729 | V191: 0.171 | W191: 0.1617 | X191: 0.1497 | Y191: 0.145
A192: 1983-06-15 | B192: 95 | C192: 65 | E192: 198309 | F192: C | G192: 1 | V192: 0.1427 | W192: 0.1415 | X192: 0.144 | Y192: 0.1403
A193: 1983-06-16 | B193: 96 | C193: 64 | E193: 198309 | F193: P | G193: 1 | N193: 0.1896 | O193: 0.1786 | P193: 0.1671 | Q193: 0.1634 | R193: 0.1682 | S193: 0.1713 | T193: 0.1695 | U193: 0.1627 | V193: 0.156 | W193: 0.1528 | X193: 0.1475 | Y193: 0.1353
A194: 1983-06-16 | B194: 96 | C194: 64 | E194: 198309 | F194: C | G194: 1 | V194: 0.1302 | W194: 0.1354 | X194: 0.1394 | Y194: 0.1357
A195: 1983-06-17 | B195: 97 | C195: 63 | E195: 198309 | F195: P | G195: 1 | M195: 0.1985 | N195: 0.19 | O195: 0.1827 | P195: 0.1782 | Q195: 0.1722 | R195: 0.1645 | S195: 0.1625 | T195: 0.1623 | U195: 0.1571 | V195: 0.151 | W195: 0.148 | X195: 0.147 | Y195: 0.1444
A196: 1983-06-17 | B196: 97 | C196: 63 | E196: 198309 | F196: C | G196: 1 | V196: 0.1393 | W196: 0.1395 | X196: 0.1381 | Y196: 0.1343 | Z196: 0.1334
A197: 1983-06-20 | B197: 98 | C197: 62 | E197: 198309 | F197: P | G197: =IF(E197=E196,G196,ABS(G196-1)) -> 1 | M197: 0.2008 | N197: 0.1927 | O197: 0.1883 | P197: 0.1861 | Q197: 0.1831 | R197: 0.1758 | S197: 0.1697 | T197: 0.1677 | U197: 0.1624 | V197: 0.1553 | W197: 0.1531 | X197: 0.1516 | Y197: 0.1444
A198: 1983-06-20 | B198: =IF(A198=A197,B197,B197+1) -> 98 | C198: 62 | E198: 198309 | F198: C | G198: 1 | V198: 0.1477 | W198: 0.1508 | X198: 0.1484 | Y198: 0.1395 | Z198: 0.1311
A199: 1983-06-21 | B199: 99 | C199: 61 | E199: 198309 | F199: P | G199: 1 | L199: 0.2122 | M199: 0.204 | N199: 0.2014 | O199: 0.1986 | P199: 0.1911 | Q199: 0.18 | R199: 0.1711 | S199: 0.1705 | T199: 0.1697 | U199: 0.1639 | V199: 0.1588 | W199: 0.154 | X199: 0.1449
A200: 1983-06-21 | B200: 99 | C200: 61 | E200: 198309 | F200: C | G200: 1 | V200: 0.1575 | W200: 0.155 | X200: 0.1501 | Y200: 0.1441 | Z200: 0.1386
... 2050 more rows

Sheet JD estimates (hidden)
A2: Date | B2: mat | C2: T | D2: Xmin | E2: Xmax | F2: sigATM | G2: sigBS | H2: sigJD | I2: lambda | J2: avgk | K2: delta | L2: NOBS
A3: 1983-01-28 | B3: 198303 | C3: 34 | D3: 0.9632 | E3: 1.0664 | F3: 0.2113 | G3: 0.21371 | H3: 0.20179 | I3: 0.057097 | J3: -0.26755 | K3: 0.44978 | L3: 7
A4: 1983-01-31 | B4: 198303 | C4: 33 | D4: 0.9511 | E4: 1.053 | F4: 0.20745 | G4: 0.21123 | H4: 0.18433 | I4: 0.059119 | J4: -0.40869 | K4: 1 | L4: 8
A5: 1983-02-01 | B5: 198303 | C5: 32 | D5: 0.9424 | E5: 1.082 | F5: 0.2111 | G5: 0.20876 | H5: 0.026685 | I5: 26.775 | J5: -0.0081065 | K5: 0.040607 | L5: 8
A6: 1983-02-02 | B6: 198303 | C6: 31 | D6: 0.9372 | E6: 1.076 | F6: 0.20315 | G6: 0.20063 | H6: 0.0050454 | I6: 17.033 | J6: -0.01664 | K6: 0.048411 | L6: 8
A7: 1983-02-03 | B7: 198303 | C7: 30 | D7: 0.9317 | E7: 1.0697 | F7: 0.20505 | G7: 0.19766 | H7: 0.04503 | I7: 7.341 | J7: -0.071686 | K7: 2.0379e-06 | L7: 9
A8: 1983-02-04 | B8: 198303 | C8: 29 | D8: 0.9097 | E8: 1.0445 | F8: 0.18995 | G8: 0.18887 | H8: 0.17742 | I8: 0.0028293 | J8: -0.999 | K8: 0.091965 | L8: 8
A9: 1983-02-07 | B9: 198303 | C9: 28 | D9: 0.9088 | E9: 1.0434 | F9: 0.17115 | G9: 0.1774 | H9: 0.0053356 | I9: 16.696 | J9: -0.0052422 | K9: 0.045816 | L9: 7
A10: 1983-02-08 | B10: 198303 | C10: 27 | D10: 0.9237 | E10: 1.0606 | F10: 0.17235 | G10: 0.17647 | H10: 0.012799 | I10: 12.495 | J10: -0.011025 | K10: 0.051795 | L10: 8
A11: 1983-02-09 | B11: 198303 | C11: 26 | D11: 0.9237 | E11: 1.0606 | F11: 0.1651 | G11: 0.16707 | H11: 0.013412 | I11: 23.585 | J11: -0.0052791 | K11: 0.035061 | L11: 8
A12: 1983-02-10 | B12: 198303 | C12: 25 | D12: 0.9 | E12: 1.0333 | F12: 0.1791 | G12: 0.18551 | H12: 0.099243 | I12: 3.5633 | J12: -0.080695 | K12: 1.0731e-06 | L12: 7
A13: 1983-02-11 | B13: 198303 | C13: 24 | D13: 0.9073 | E13: 1.0417 | F13: 0.1668 | G13: 0.16881 | H13: 0.025018 | I13: 16.325 | J13: -0.016562 | K13: 0.040166 | L13: 8
A14: 1983-02-14 | B14: 198303 | C14: 23 | D14: 0.8943 | E14: 1.0268 | F14: 0.1588 | G14: 0.16773 | H14: 0.071782 | I14: 7.3979 | J14: -0.0089782 | K14: 0.061453 | L14: 8
A15: 1983-02-15 | B15: 198303 | C15: 22 | D15: 0.9039 | E15: 1.0378 | F15: 0.16265 | G15: 0.16935 | H15: 0.10015 | I15: 3.7911 | J15: -0.032592 | K15: 0.075183 | L15: 8
A16: 1983-02-16 | B16: 198303 | C16: 21 | D16: 0.9106 | E16: 1.0455 | F16: 0.17625 | G16: 0.18329 | H16: 0.027115 | I16: 19.111 | J16: -0.0077744 | K16: 0.04341 | L16: 8
A17: 1983-02-17 | B17: 198303 | C17: 20 | D17: 0.9057 | E17: 1.0399 | F17: 0.17385 | G17: 0.18336 | H17: 0.037577 | I17: 16.008 | J17: -0.0072857 | K17: 0.047677 | L17: 8
A18: 1983-02-18 | B18: 198303 | C18: 19 | D18: 0.9045 | E18: 1.0385 | F18: 0.17655 | G18: 0.18426 | H18: 0.048225 | I18: 17.175 | J18: -0.0083598 | K18: 0.045092 | L18: 8
A19: 1983-02-22 | B19: 198303 | C19: 18 | D19: 0.9231 | E19: 1.0598 | F19: 0.1778 | G19: 0.18351 | H19: 0.016329 | I19: 16.584 | J19: -0.010553 | K19: 0.046548 | L19: 8
A20: 1983-02-23 | B20: 198303 | C20: 17 | D20: 0.9085 | E20: 1.0431 | F20: 0.1554 | G20: 0.16569 | H20: 0.075463 | I20: 8.1031 | J20: -0.0095967 | K20: 0.057947 | L20: 7
A21: 1983-02-24 | B21: 198303 | C21: 16 | D21: 0.8899 | E21: 1.0218 | F21: 0.1658 | G21: 0.16036 | H21: 0.12407 | I21: 1.8639 | J21: -0.032216 | K21: 0.090451 | L21: 7
A22: 1983-02-25 | B22: 198303 | C22: 15 | D22: 0.894 | E22: 1.0265 | F22: 0.1508 | G22: 0.1566 | H22: 0.04551 | I22: 9.0908 | J22: -0.0058493 | K22: 0.05821 | L22: 7
A23: 1983-02-28 | B23: 198303 | C23: 14 | D23: 0.9048 | E23: 1.0389 | F23: 0.15535 | G23: 0.16689 | H23: 0.031161 | I23: 17.379 | J23: -0.0085152 | K23: 0.042242 | L23: 7
A24: 1983-03-01 | B24: 198303 | C24: 13 | D24: 0.8852 | E24: 1.0492 | F24: 0.15405 | G24: 0.1671 | H24: 0.010639 | I24: 12.77 | J24: 0.0030389 | K24: 0.051777 | L24: 8
A25: 1983-03-02 | B25: 198303 | C25: 12 | D25: 0.885 | E25: 1.0488 | F25: 0.1504 | G25: 0.15984 | H25: 0.011899 | I25: 10.957 | J25: -0.0012237 | K25: 0.054442 | L25: 8
A26: 1983-03-03 | B26: 198303 | C26: 11 | D26: 0.8809 | E26: 1.044 | F26: 0.1609 | G26: 0.17266 | H26: 0.045706 | I26: 18.636 | J26: -0.0077075 | K26: 0.04192 | L26: 8
A27: 1983-03-04 | B27: 198303 | C27: 10 | D27: 0.8786 | E27: 1.0413 | F27: 0.1704 | G27: 0.17907 | H27: 0.077892 | I27: 12.961 | J27: -0.0038452 | K27: 0.051005 | L27: 8
A28: 1983-03-07 | B28: 198306 | C28: 72 | D28: 0.8718 | E28: 1.0655 | F28: 0.19945 | G28: 0.19843 | H28: 0.17943 | I28: 0.018361 | J28: -0.81875 | K28: 0.48902 | L28: 12
A29: 1983-03-08 | B29: 198306 | C29: 71 | D29: 0.8867 | E29: 1.0837 | F29: 0.1889 | G29: 0.195 | H29: 0.0083145 | I29: 6.0134 | J29: -0.016536 | K29: 0.082594 | L29: 12
A30: 1983-03-09 | B30: 198306 | C30: 70 | D30: 0.8778 | E30: 1.0728 | F30: 0.1936 | G30: 0.19805 | H30: 0.0083494 | I30: 7.5717 | J30: -0.069786 | K30: 0.0022465 | L30: 12
A31: 1983-03-10 | B31: 198306 | C31: 69 | D31: 0.8905 | E31: 1.0884 | F31: 0.1981 | G31: 0.19951 | H31: 0.14643 | I31: 0.94912 | J31: -0.04264 | K31: 0.15638 | L31: 11
A32: 1983-03-11 | B32: 198306 | C32: 68 | D32: 0.889 | E32: 1.0866 | F32: 0.19275 | G32: 0.19726 | H32: 0.16814 | I32: 0.035387 | J32: -0.43584 | K32: 1 | L32: 11
A33: 1983-03-14 | B33: 198306 | C33: 67 | D33: 0.8867 | E33: 1.0837 | F33: 0.19 | G33: 0.19472 | H33: 0.11492 | I33: 2.5373 | J33: -0.041631 | K33: 0.097235 | L33: 11
A34: 1983-03-15 | B34: 198306 | C34: 66 | D34: 0.8855 | E34: 1.0823 | F34: 0.19295 | G34: 0.19538 | H34: 0.13013 | I34: 2.3705 | J34: -0.055584 | K34: 0.082169 | L34: 11
A35: 1983-03-16 | B35: 198306 | C35: 65 | D35: 0.9048 | E35: 1.1059 | F35: 0.1936 | G35: 0.19298 | H35: 0.0050235 | I35: 31.744 | J35: -0.0048584 | K35: 0.034332 | L35: 11
A36: 1983-03-17 | B36: 198306 | C36: 64 | D36: 0.9039 | E36: 1.1048 | F36: 0.19285 | G36: 0.19171 | H36: 0.15769 | I36: 3.8317 | J36: -0.0096664 | K36: 0.056734 | L36: 11
A37: 1983-03-18 | B37: 198306 | C37: 63 | D37: 0.8979 | E37: 1.0974 | F37: 0.1857 | G37: 0.18646 | H37: 0.024463 | I37: 9.7753 | J37: -0.016124 | K37: 0.059054 | L37: 11
A38: 1983-03-21 | B38: 198306 | C38: 62 | D38: 0.8864 | E38: 1.0834 | F38: 0.17315 | G38: 0.1762 | H38: 0.0067193 | I38: 16.018 | J38: -0.043425 | K38: 7.1294e-05 | L38: 11
A39: 1983-03-22 | B39: 198306 | C39: 61 | D39: 0.9265 | E39: 1.092 | F39: 0.17525 | G39: 0.17842 | H39: 0.090897 | I39: 2.8862 | J39: -0.041855 | K39: 0.089115 | L39: 10
A40: 1983-03-23 | B40: 198306 | C40: 60 | D40: 0.8727 | E40: 1.0666 | F40: 0.1636 | G40: 0.16886 | H40: 0.089043 | I40: 4.7137 | J40: -0.026894 | K40: 0.063608 | L40: 11
A41: 1983-03-24 | B41: 198306 | C41: 59 | D41: 0.8718 | E41: 1.0655 | F41: 0.16555 | G41: 0.17084 | H41: 0.062631 | I41: 7.0953 | J41: -0.018135 | K41: 0.059373 | L41: 11
A42: 1983-03-25 | B42: 198306 | C42: 58 | D42: 0.8815 | E42: 1.0774 | F42: 0.17185 | G42: 0.17466 | H42: 0.017178 | I42: 10.171 | J42: -0.011808 | K42: 0.055439 | L42: 11
A43: 1983-03-28 | B43: 198306 | C43: 57 | D43: 0.8815 | E43: 1.0774 | F43: 0.1733 | G43: 0.17497 | H43: 0.0055281 | I43: 14.452 | J43: -0.0096678 | K43: 0.046322 | L43: 11
A44: 1983-03-29 | B44: 198306 | C44: 56 | D44: 0.8864 | E44: 1.0834 | F44: 0.17555 | G44: 0.17419 | H44: 0.0058865 | I44: 18.667 | J44: -0.011069 | K44: 0.039695 | L44: 11
A45: 1983-03-30 | B45: 198306 | C45: 55 | D45: 0.8735 | E45: 1.0676 | F45: 0.17285 | G45: 0.17787 | H45: 0.010482 | I45: 10.295 | J45: -0.054157 | K45: 5.7267e-05 | L45: 11
A46: 1983-03-31 | B46: 198306 | C46: 54 | D46: 0.8887 | E46: 1.0862 | F46: 0.1703 | G46: 0.17304 | H46: 0.005 | I46: 12.177 | J46: -0.016435 | K46: 0.048667 | L46: 11
A47: 1983-04-04 | B47: 198306 | C47: 53 | D47: 0.8812 | E47: 1.077 | F47: 0.17005 | G47: 0.17324 | H47: 0.1587 | I47: 0.035688 | J47: -0.46456 | K47: 0.36756 | L47: 11
A48: 1983-04-05 | B48: 198306 | C48: 52 | D48: 0.8896 | E48: 1.0873 | F48: 0.1759 | G48: 0.17575 | H48: 0.16461 | I48: 0.033031 | J48: -0.43179 | K48: 0.25948 | L48: 11
A49: 1983-04-06 | B49: 198306 | C49: 51 | D49: 0.892 | E49: 1.0902 | F49: 0.17455 | G49: 0.1739 | H49: 0.16386 | I49: 0.014564 | J49: -0.63908 | K49: 0.34263 | L49: 12
A50: 1983-04-07 | B50: 198306 | C50: 50 | D50: 0.8893 | E50: 1.087 | F50: 0.17095 | G50: 0.17173 | H50: 0.14026 | I50: 1.6426 | J50: -0.072781 | K50: 0.033126 | L50: 11
A51: 1983-04-08 | B51: 198306 | C51: 49 | D51: 0.889 | E51: 1.0866 | F51: 0.16715 | G51: 0.17093 | H51: 0.13714 | I51: 1.7542 | J51: -0.027723 | K51: 0.079791 | L51: 11
A52: 1983-04-11 | B52: 198306 | C52: 48 | D52: 0.8704 | E52: 1.0638 | F52: 0.16245 | G52: 0.1618 | H52: 0.0088742 | I52: 13.1 | J52: -0.039811 | K52: 0.019129 | L52: 11
A53: 1983-04-12 | B53: 198306 | C53: 47 | D53: 0.8676 | E53: 1.0604 | F53: 0.1581 | G53: 0.16192 | H53: 0.13661 | I53: 0.55039 | J53: -0.10569 | K53: 0.081506 | L53: 10
A54: 1983-04-13 | B54: 198306 | C54: 46 | D54: 0.8634 | E54: 1.0553 | F54: 0.15385 | G54: 0.15822 | H54: 0.029038 | I54: 7.6138 | J54: -0.015705 | K54: 0.057693 | L54: 10
A55: 1983-04-14 | B55: 198306 | C55: 45 | D55: 0.8523 | E55: 1.0417 | F55: 0.1544 | G55: 0.16295 | H55: 0.061729 | I55: 4.7801 | J55: -0.016406 | K55: 0.072785 | L55: 10
A56: 1983-04-15 | B56: 198306 | C56: 44 | D56: 0.8534 | E56: 1.043 | F56: 0.159 | G56: 0.16339 | H56: 0.015943 | I56: 8.5203 | J56: -0.017439 | K56: 0.056012 | L56: 11
A57: 1983-04-18 | B57: 198306 | C57: 43 | D57: 0.8488 | E57: 1.0374 | F57: 0.1618 | G57: 0.16776 | H57: 0.018152 | I57: 9.4379 | J57: -0.013696 | K57: 0.055313 | L57: 11
A58: 1983-04-20 | B58: 198306 | C58: 41 | D58: 0.8427 | E58: 1.03 | F58: 0.15975 | G58: 0.16861 | H58: 0.044607 | I58: 6.5347 | J58: -0.00893 | K58: 0.069091 | L58: 10
A59: 1983-04-21 | B59: 198306 | C59: 40 | D59: 0.8451 | E59: 1.0642 | F59: 0.168 | G59: 0.17254 | H59: 0.10476 | I59: 3.7093 | J59: -0.063701 | K59: 0.034077 | L59: 12
A60: 1983-04-22 | B60: 198306 | C60: 39 | D60: 0.8448 | E60: 1.0638 | F60: 0.16395 | G60: 0.17073 | H60: 0.035329 | I60: 9.6478 | J60: -0.013124 | K60: 0.055278 | L60: 13
A61: 1983-04-25 | B61: 198306 | C61: 38 | D61: 0.8536 | E61: 1.0749 | F61: 0.16845 | G61: 0.17097 | H61: 0.017497 | I61: 11.842 | J61: -0.014334 | K61: 0.049695 | L61: 12
A62: 1983-04-26 | B62: 198306 | C62: 37 | D62: 0.8326 | E62: 1.0484 | F62: 0.15825 | G62: 0.16383 | H62: 0.077189 | I62: 6.0075 | J62: -0.014461 | K62: 0.062092 | L62: 12
A63: 1983-04-27 | B63: 198306 | C63: 36 | D63: 0.8338 | E63: 1.05 | F63: 0.16205 | G63: 0.16566 | H63: 0.13055 | I63: 1.1607 | J63: -0.088564 | K63: 0.053723 | L63: 12
A64: 1983-04-28 | B64: 198306 | C64: 35 | D64: 0.8267 | E64: 1.041 | F64: 0.15675 | G64: 0.1715 | H64: 0.01009 | I64: 7.1455 | J64: -0.00069892 | K64: 0.070505 | L64: 12
A65: 1983-04-29 | B65: 198306 | C65: 34 | D65: 0.8219 | E65: 1.035 | F65: 0.15675 | G65: 0.16419 | H65: 0.029307 | I65: 11.153 | J65: -0.0059441 | K65: 0.051362 | L65: 11
A66: 1983-05-02 | B66: 198306 | C66: 33 | D66: 0.828 | E66: 1.0426 | F66: 0.1669 | G66: 0.168 | H66: 0.10414 | I66: 3.8173 | J66: -0.067192 | K66: 4.6842e-06 | L66: 12
A67: 1983-05-03 | B67: 198306 | C67: 32 | D67: 0.8272 | E67: 1.0417 | F67: 0.1639 | G67: 0.16498 | H67: 0.1158 | I67: 7.3687 | J67: -0.014373 | K67: 0.042733 | L67: 12
A68: 1983-05-04 | B68: 198306 | C68: 31 | D68: 0.8222 | E68: 1.0353 | F68: 0.15305 | G68: 0.16046 | H68: 0.0099891 | I68: 14.08 | J68: -0.0060627 | K68: 0.044833 | L68: 11
A69: 1983-05-05 | B69: 198306 | C69: 30 | D69: 0.8189 | E69: 1.0312 | F69: 0.148 | G69: 0.15451 | H69: 0.012424 | I69: 13.032 | J69: -0.0083125 | K69: 0.04436 | L69: 11
A70: 1983-05-06 | B70: 198306 | C70: 29 | D70: 0.806 | E70: 1.0448 | F70: 0.1376 | G70: 0.14548 | H70: 0.035989 | I70: 6.5631 | J70: -0.014314 | K70: 0.059062 | L70: 12
A71: 1983-05-09 | B71: 198306 | C71: 28 | D71: 0.8079 | E71: 1.0473 | F71: 0.14215 | G71: 0.14721 | H71: 0.025871 | I71: 10.074 | J71: -0.0085421 | K71: 0.04839 | L71: 12
A72: 1983-05-10 | B72: 198306 | C72: 27 | D72: 0.8079 | E72: 1.0473 | F72: 0.14615 | G72: 0.14859 | H72: 0.012487 | I72: 15.118 | J72: -0.0078453 | K72: 0.03934 | L72: 12
A73: 1983-05-11 | B73: 198306 | C73: 26 | D73: 0.8133 | E73: 1.0542 | F73: 0.1515 | G73: 0.15151 | H73: 0.12523 | I73: 1.2234 | J73: -0.072059 | K73: 0.046205 | L73: 12
A74: 1983-05-12 | B74: 198306 | C74: 25 | D74: 0.8174 | E74: 1.0596 | F74: 0.15055 | G74: 0.15191 | H74: 0.13469 | I74: 0.72662 | J74: -0.079688 | K74: 0.05054 | L74: 12
A75: 1983-05-13 | B75: 198306 | C75: 24 | D75: 0.814 | E75: 1.0552 | F75: 0.1493 | G75: 0.15044 | H75: 0.12282 | I75: 1.7288 | J75: -0.059878 | K75: 0.040224 | L75: 12
A76: 1983-05-16 | B76: 198306 | C76: 23 | D76: 0.8219 | E76: 1.0654 | F76: 0.1454 | G76: 0.14607 | H76: 0.12912 | I76: 0.46171 | J76: -0.11464 | K76: 0.00047476 | L76: 12
A77: 1983-05-17 | B77: 198306 | C77: 22 | D77: 0.8204 | E77: 1.0635 | F77: 0.1359 | G77: 0.1411 | H77: 0.13492 | I77: 4.3118e-07 | J77: -0.999 | K77: 0.5901 | L77: 12
A78: 1983-05-18 | B78: 198306 | C78: 21 | D78: 0.828 | E78: 1.0733 | F78: 0.13905 | G78: 0.13957 | H78: 0.095894 | I78: 5.837 | J78: -0.0077467 | K78: 0.045229 | L78: 11
A79: 1983-05-19 | B79: 198306 | C79: 20 | D79: 0.8326 | E79: 1.0792 | F79: 0.13865 | G79: 0.13946 | H79: 0.1024 | I79: 3.904 | J79: -0.0142 | K79: 0.052247 | L79: 11
A80: 1983-05-20 | B80: 198306 | C80: 19 | D80: 0.8336 | E80: 1.0806 | F80: 0.13785 | G80: 0.13734 | H80: 0.12333 | I80: 0.53508 | J80: -0.021838 | K80: 0.10891 | L80: 11
A81: 1983-05-23 | B81: 198306 | C81: 18 | D81: 0.8539 | E81: 1.0674 | F81: 0.1408 | G81: 0.14073 | H81: 0.1224 | I81: 1.8461 | J81: -0.042312 | K81: 0.038427 | L81: 11
A82: 1983-05-24 | B82: 198306 | C82: 17 | D82: 0.8426 | E82: 1.0533 | F82: 0.13635 | G82: 0.13828 | H82: 0.13287 | I82: 4.2568e-06 | J82: -0.99593 | K82: 0.52633 | L82: 10
A83: 1983-05-25 | B83: 198306 | C83: 16 | D83: 0.8688 | E83: 1.0485 | F83: 0.13565 | G83: 0.13374 | H83: 0.12469 | I83: 0.32935 | J83: -0.093592 | K83: 0.061024 | L83: 9
A84: 1983-05-26 | B84: 198306 | C84: 15 | D84: 0.8426 | E84: 1.0533 | F84: 0.1422 | G84: 0.14186 | H84: 0.046404 | I84: 57.985 | J84: -0.0049215 | K84: 0.017379 | L84: 10
A85: 1983-05-27 | B85: 198306 | C85: 14 | D85: 0.8756 | E85: 1.0568 | F85: 0.12355 | G85: 0.12704 | H85: 0.011252 | I85: 20.209 | J85: -0.0046153 | K85: 0.029878 | L85: 9
A86: 1983-05-31 | B86: 198306 | C86: 13 | D86: 0.8631 | E86: 1.0789 | F86: 0.12385 | G86: 0.13235 | H86: 0.012971 | I86: 30.217 | J86: -0.0039378 | K86: 0.024651 | L86: 10
A87: 1983-06-01 | B87: 198306 | C87: 12 | D87: 0.8898 | E87: 1.0739 | F87: 0.11585 | G87: 0.12459 | H87: 0.096287 | I87: 3.7735 | J87: -0.017987 | K87: 0.043715 | L87: 9
A88: 1983-06-02 | B88: 198306 | C88: 11 | D88: 0.9121 | E88: 1.0642 | F88: 0.1208 | G88: 0.12129 | H88: 0.11046 | I88: 0.60609 | J88: -0.024053 | K88: 0.091278 | L88: 7
A89: 1983-06-03 | B89: 198306 | C89: 10 | D89: 0.911 | E89: 1.0629 | F89: 0.1079 | G89: 0.10652 | H89: 0.062061 | I89: 9.0291 | J89: 0.0013035 | K89: 0.0344 | L89: 7
A90: 1983-06-06 | B90: 198309 | C90: 72 | D90: 0.8401 | E90: 1.0501 | F90: 0.149 | G90: 0.14498 | H90: 0.0094053 | I90: 6.1122 | J90: -0.057309 | K90: 5.2075e-07 | L90: 13
A91: 1983-06-07 | B91: 198309 | C91: 71 | D91: 0.8605 | E91: 1.0756 | F91: 0.14545 | G91: 0.1463 | H91: 0.005 | I91: 14298 | J91: -0.0012136 | K91: 0.00014741 | L91: 13
A92: 1983-06-08 | B92: 198309 | C92: 70 | D92: 0.8669 | E92: 1.0836 | F92: 0.1474 | G92: 0.14653 | H92: 0.090702 | I92: 3.1055 | J92: -0.0031964 | K92: 0.069344 | L92: 13
A93: 1983-06-09 | B93: 198309 | C93: 69 | D93: 0.8607 | E93: 1.0759 | F93: 0.14595 | G93: 0.14612 | H93: 0.10716 | I93: 3.1172 | J93: -0.021009 | K93: 0.05525 | L93: 13
A94: 1983-06-10 | B94: 198309 | C94: 68 | D94: 0.8573 | E94: 1.0716 | F94: 0.1554 | G94: 0.15447 | H94: 0.14538 | I94: 0.0020367 | J94: -0.67076 | K94: 0.62787 | L94: 13
A95: 1983-06-13 | B95: 198309 | C95: 67 | D95: 0.8413 | E95: 1.0517 | F95: 0.1449 | G95: 0.14767 | H95: 0.13258 | I95: 0.13392 | J95: -0.17083 | K95: 0.13463 | L95: 13
A96: 1983-06-14 | B96: 198309 | C96: 66 | D96: 0.8421 | E96: 1.0526 | F96: 0.1444 | G96: 0.14366 | H96: 0.11435 | I96: 0.81225 | J96: -0.021848 | K96: 0.10792 | L96: 13
A97: 1983-06-15 | B97: 198309 | C97: 65 | D97: 0.8272 | E97: 1.034 | F97: 0.14685 | G97: 0.15172 | H97: 0.10556 | I97: 1.9817 | J97: -0.06562 | K97: 0.04182 | L97: 12
A98: 1983-06-16 | B98: 198309 | C98: 64 | D98: 0.818 | E98: 1.0225 | F98: 0.14345 | G98: 0.14319 | H98: 0.010256 | I98: 2.5029 | J98: -0.083129 | K98: 0.010696 | L98: 12
A99: 1983-06-17 | B99: 198309 | C99: 63 | D99: 0.7874 | E99: 1.0499 | F99: 0.14255 | G99: 0.14464 | H99: 0.10044 | I99: 2.1583 | J99: -0.024363 | K99: 0.071414 | L99: 14
A100: 1983-06-20 | B100: 198309 | C100: 62 | D100: 0.7909 | E100: 1.0545 | F100: 0.15 | G100: 0.14867 | H100: 0.0093446 | I100: 9.5918 | J100: -0.012957 | K100: 0.047621 | L100: 14
A101: 1983-06-21 | B101: 198309 | C101: 61 | D101: 0.7819 | E101: 1.0426 | F101: 0.1475 | G101: 0.14977 | H101: 0.011094 | I101: 7.3983 | J101: -0.013874 | K101: 0.055401 | L101: 13
A102: 1983-06-22 | B102: 198309 | C102: 60 | D102: 0.786 | E102: 1.048 | F102: 0.14795 | G102: 0.15408 | H102: 0.065527 | I102: 5.5751 | J102: -0.013876 | K102: 0.060149 | L102: 14
A103: 1983-06-23 | B103: 198309 | C103: 59 | D103: 0.7849 | E103: 1.0465 | F103: 0.1544 | G103: 0.15738 | H103: 0.016653 | I103: 8.0293 | J103: -0.014342 | K103: 0.055301 | L103: 14
A104: 1983-06-24 | B104: 198309 | C104: 58 | D104: 0.7886 | E104: 1.0514 | F104: 0.15975 | G104: 0.16129 | H104: 0.009737 | I104: 9.295 | J104: -0.010154 | K104: 0.053917 | L104: 14
A105: 1983-06-27 | B105: 198309 | C105: 57 | D105: 0.7962 | E105: 1.0616 | F105: 0.15395 | G105: 0.15725 | H105: 0.038462 | I105: 8.9916 | J105: -0.012566 | K105: 0.051256 | L105: 14
A106: 1983-06-28 | B106: 198309 | C106: 56 | D106: 0.8062 | E106: 1.0749 | F106: 0.1579 | G106: 0.16 | H106: 0.012062 | I106: 25.281 | J106: -0.011878 | K106: 0.029884 | L106: 14
A107: 1983-06-29 | B107: 198309 | C107: 55 | D107: 0.7993 | E107: 1.0657 | F107: 0.1549 | G107: 0.15483 | H107: 0.01117 | I107: 12.642 | J107: -0.01291 | K107: 0.042784 | L107: 14
A108: 1983-06-30 | B108: 198309 | C108: 54 | D108: 0.7934 | E108: 1.0579 | F108: 0.15535 | G108: 0.15595 | H108: 0.1292 | I108: 0.91264 | J108: -0.078659 | K108: 0.05541 | L108: 14
A109: 1983-07-01 | B109: 198309 | C109: 53 | D109: 0.793 | E109: 1.0573 | F109: 0.15645 | G109: 0.15953 | H109: 0.053014 | I109: 7.7562 | J109: -0.016254 | K109: 0.054117 | L109: 15
A110: 1983-07-05 | B110: 198309 | C110: 52 | D110: 0.8057 | E110: 1.0743 | F110: 0.16525 | G110: 0.16398 | H110: 0.023469 | I110: 12.017 | J110: -0.046522 | K110: 3.4848e-07 | L110: 15
A111: 1983-07-06 | B111: 198309 | C111: 51 | D111: 0.7951 | E111: 1.0601 | F111: 0.1613 | G111: 0.17017 | H111: 0.15933 | I111: 0.00011018 | J111: -0.90936 | K111: 1 | L111: 15
A112: 1983-07-07 | B112: 198309 | C112: 50 | D112: 0.8033 | E112: 1.0711 | F112: 0.1707 | G112: 0.166 | H112: 0.012335 | I112: 12.786 | J112: -0.019055 | K112: 0.043844 | L112: 15
A113: 1983-07-08 | B113: 198309 | C113: 49 | D113: 0.8021 | E113: 1.0695 | F113: 0.1679 | G113: 0.16651 | H113: 0.01191 | I113: 13.396 | J113: -0.017879 | K113: 0.043292 | L113: 15
A114: 1983-07-11 | B114: 198309 | C114: 48 | D114: 0.7993 | E114: 1.0657 | F114: 0.16515 | G114: 0.16462 | H114: 0.012575 | I114: 12.344 | J114: -0.024071 | K114: 0.041558 | L114: 15
A115: 1983-07-12 | B115: 198309 | C115: 47 | D115: 0.8123 | E115: 1.083 | F115: 0.1723 | G115: 0.17006 | H115: 0.0054344 | I115: 42.139 | J115: -0.025655 | K115: 0.0045589 | L115: 15
A116: 1983-07-13 | B116: 198309 | C116: 46 | D116: 0.8094 | E116: 1.0791 | F116: 0.16675 | G116: 0.16662 | H116: 0.057042 | I116: 17.824 | J116: -0.036879 | K116: 1.2914e-05 | L116: 14
A117: 1983-07-14 | B117: 198309 | C117: 45 | D117: 0.8079 | E117: 1.0772 | F117: 0.17105 | G117: 0.16924 | H117: 0.01535 | I117: 23.252 | J117: -0.034652 | K117: 3.2505e-07 | L117: 14
A118: 1983-07-15 | B118: 198309 | C118: 44 | D118: 0.8174 | E118: 1.0899 | F118: 0.17235 | G118: 0.16819 | H118: 0.013253 | I118: 106.78 | J118: -0.016175 | K118: 1.3474e-07 | L118: 15
A119: 1983-07-18 | B119: 198309 | C119: 43 | D119: 0.816 | E119: 1.0879 | F119: 0.16435 | G119: 0.16591 | H119: 0.011587 | I119: 30.933 | J119: -0.0045171 | K119: 0.029915 | L119: 15
A120: 1983-07-19 | B120: 198309 | C120: 42 | D120: 0.8115 | E120: 1.0821 | F120: 0.16445 | G120: 0.16556 | H120: 0.14971 | I120: 0.65073 | J120: -0.078658 | K120: 0.054709 | L120: 14
A121: 1983-07-20 | B121: 198309 | C121: 41 | D121: 0.7925 | E121: 1.0566 | F121: 0.15835 | G121: 0.16264 | H121: 0.1425 | I121: 0.32533 | J121: -0.14831 | K121: 1.8252e-05 | L121: 15
A122: 1983-07-21 | B122: 198309 | C122: 40 | D122: 0.7895 | E122: 1.0526 | F122: 0.15455 | G122: 0.15716 | H122: 0.13761 | I122: 0.63134 | J122: -0.071894 | K122: 0.084193 | L122: 14
A123: 1983-07-22 | B123: 198309 | C123: 39 | D123: 0.7939 | E123: 1.0585 | F123: 0.15755 | G123: 0.15658 | H123: 0.011575 | I123: 24.711 | J123: -0.014078 | K123: 0.028729 | L123: 15
A124: 1983-07-25 | B124: 198309 | C124: 38 | D124: 0.7888 | E124: 1.0517 | F124: 0.15435 | G124: 0.15397 | H124: 0.011735 | I124: 25.646 | J124: -0.012284 | K124: 0.028402 | L124: 14
A125: 1983-07-26 | B125: 198309 | C125: 37 | D125: 0.7876 | E125: 1.0502 | F125: 0.1495 | G125: 0.14703 | H125: 0.010915 | I125: 27.924 | J125: -0.0098907 | K125: 0.026513 | L125: 14
A126: 1983-07-27 | B126: 198309 | C126: 36 | D126: 0.8012 | E126: 1.0682 | F126: 0.15395 | G126: 0.15329 | H126: 0.012637 | I126: 64.708 | J126: -0.0060327 | K126: 0.01817 | L126: 14
A127: 1983-07-28 | B127: 198309 | C127: 35 | D127: 0.815 | E127: 1.0866 | F127: 0.15135 | G127: 0.15326 | H127: 0.010811 | I127: 74.243 | J127: -0.0063375 | K127: 0.016774 | L127: 14
A128: 1983-07-29 | B128: 198309 | C128: 34 | D128: 0.8247 | E128: 1.0996 | F128: 0.15885 | G128: 0.16266 | H128: 0.0079246 | I128: 28.475 | J128: -0.00076915 | K128: 0.031085 | L128: 14
A129: 1983-08-01 | B129: 198309 | C129: 33 | D129: 0.8277 | E129: 1.1036 | F129: 0.1696 | G129: 0.16597 | H129: 0.005 | I129: 7748.1 | J129: 0.001883 | K129: 9.2566e-05 | L129: 14
A130: 1983-08-02 | B130: 198309 | C130: 32 | D130: 0.828 | E130: 1.104 | F130: 0.1699 | G130: 0.16739 | H130: 0.0097091 | I130: 39.248 | J130: -0.0085709 | K130: 0.025723 | L130: 14
A131: 1983-08-03 | B131: 198309 | C131: 31 | D131: 0.8214 | E131: 1.0952 | F131: 0.17 | G131: 0.17318 | H131: 0.15736 | I131: 0.74344 | J131: -0.074005 | K131: 0.053937 | L131: 14
A132: 1983-08-04 | B132: 198309 | C132: 30 | D132: 0.8362 | E132: 1.1149 | F132: 0.1735 | G132: 0.17403 | H132: 0.0088805 | I132: 25.934 | J132: -0.0044753 | K132: 0.034797 | L132: 14
A133: 1983-08-05 | B133: 198309 | C133: 29 | D133: 0.8295 | E133: 1.106 | F133: 0.1727 | G133: 0.17752 | H133: 0.0065096 | I133: 33.764 | J133: -0.0038594 | K133: 0.030986 | L133: 14
A134: 1983-08-08 | B134: 198309 | C134: 28 | D134: 0.8409 | E134: 1.1211 | F134: 0.1853 | G134: 0.17688 | H134: 0.014096 | I134: 85.262 | J134: -0.019081 | K134: 1.4595e-06 | L134: 14
A135: 1983-08-09 | B135: 198309 | C135: 27 | D135: 0.8362 | E135: 1.1149 | F135: 0.17865 | G135: 0.1792 | H135: 0.010283 | I135: 26.667 | J135: -0.0065939 | K135: 0.035133 | L135: 14
A136: 1983-08-10 | B136: 198309 | C136: 26 | D136: 0.8303 | E136: 1.107 | F136: 0.1718 | G136: 0.18022 | H136: 0.011779 | I136: 17.648 | J136: -0.0065347 | K136: 0.044397 | L136: 14
A137: 1983-08-11 | B137: 198309 | C137: 25 | D137: 0.8303 | E137: 1.107 | F137: 0.1759 | G137: 0.17415 | H137: 0.011571 | I137: 37.749 | J137: -0.01045 | K137: 0.026915 | L137: 14
A138: 1983-08-12 | B138: 198309 | C138: 24 | D138: 0.8262 | E138: 1.1016 | F138: 0.17605 | G138: 0.17827 | H138: 0.16502 | I138: 0.46978 | J138: -0.092274 | K138: 0.067617 | L138: 14
A139: 1983-08-15 | B139: 198309 | C139: 23 | D139: 0.8212 | E139: 1.0949 | F139: 0.15905 | G139: 0.16557 | H139: 0.019708 | I139: 19.928 | J139: -0.0082404 | K139: 0.037677 | L139: 13
A140: 1983-08-16 | B140: 198309 | C140: 22 | D140: 0.8224 | E140: 1.0966 | F140: 0.15425 | G140: 0.1604 | H140: 0.013592 | I140: 24.174 | J140: -0.0063988 | K140: 0.033256 | L140: 13
A141: 1983-08-17 | B141: 198309 | C141: 21 | D141: 0.815 | E141: 1.0866 | F141: 0.15615 | G141: 0.16044 | H141: 0.080271 | I141: 19.863 | J141: -0.0082574 | K141: 0.031249 | L141: 13
A142: 1983-08-18 | B142: 198309 | C142: 20 | D142: 0.8249 | E142: 1.0999 | F142: 0.1591 | G142: 0.16061 | H142: 0.0088918 | I142: 50.755 | J142: -0.0026464 | K142: 0.02286 | L142: 13
A143: 1983-08-19 | B143: 198309 | C143: 19 | D143: 0.8189 | E143: 1.0919 | F143: 0.151 | G143: 0.15856 | H143: 0.020131 | I143: 18.179 | J143: -0.0095012 | K143: 0.037755 | L143: 13
A144: 1983-08-22 | B144: 198309 | C144: 18 | D144: 0.8214 | E144: 1.0952 | F144: 0.15465 | G144: 0.15445 | H144: 0.14883 | I144: 0.012072 | J144: -0.090323 | K144: 0.50507 | L144: 13
A145: 1983-08-23 | B145: 198309 | C145: 17 | D145: 0.8282 | E145: 1.1043 | F145: 0.15165 | G145: 0.15669 | H145: 0.15128 | I145: 0.070966 | J145: -0.056589 | K145: 0.22864 | L145: 12
A146: 1983-08-24 | B146: 198309 | C146: 16 | D146: 0.8367 | E146: 1.1156 | F146: 0.14195 | G146: 0.15554 | H146: 0.14877 | I146: 0.13512 | J146: -0.049274 | K146: 0.18065 | L146: 12
A147: 1983-08-25 | B147: 198309 | C147: 15 | D147: 0.8357 | E147: 1.1142 | F147: 0.15125 | G147: 0.15631 | H147: 0.0090256 | I147: 54.222 | J147: 0.0019608 | K147: 0.021623 | L147: 12
A148: 1983-08-26 | B148: 198309 | C148: 14 | D148: 0.861 | E148: 1.107 | F148: 0.1415 | G148: 0.14739 | H148: 0.13432 | I148: 0.8249 | J148: -0.036463 | K148: 0.076535 | L148: 11
A149: 1983-08-29 | B149: 198309 | C149: 13 | D149: 0.8578 | E149: 1.0723 | F149: 0.13025 | G149: 0.14115 | H149: 0.013155 | I149: 44.596 | J149: -0.004514 | K149: 0.02144 | L149: 10
A150: 1983-08-30 | B150: 198309 | C150: 12 | D150: 0.8888 | E150: 1.0726 | F150: 0.12455 | G150: 0.13318 | H150: 0.043681 | I150: 32.012 | J150: -0.003267 | K150: 0.023063 | L150: 9
A151: 1983-08-31 | B151: 198309 | C151: 11 | D151: 0.8791 | E151: 1.0609 | F151: 0.1302 | G151: 0.12929 | H151: 0.12407 | I151: 2.057e-05 | J151: -0.86201 | K151: 1 | L151: 8
A152: 1983-09-01 | B152: 198309 | C152: 10 | D152: 0.8801 | E152: 1.0622 | F152: 0.1313 | G152: 0.12937 | H152: 0.12277 | I152: 0.23564 | J152: -0.065279 | K152: 0.12061 | L152: 8
A153: 1983-09-02 | B153: 198309 | C153: 9 | D153: 0.9072 | E153: 1.0584 | F153: 0.129 | G153: 0.12816 | H153: 0.011434 | I153: 93.171 | J153: -2.7437e-05 | K153: 0.013675 | L153: 7
A154: 1983-09-06 | B154: 198312 | C154: 72 | D154: 0.855 | E154: 1.0613 | F154: 0.148 | G154: 0.15601 | H154: 0.063129 | I154: 3.1275 | J154: -0.028357 | K154: 0.080623 | L154: 11
A155: 1983-09-07 | B155: 198312 | C155: 71 | D155: 0.8524 | E155: 1.0582 | F155: 0.1435 | G155: 0.15589 | H155: 0.083315 | I155: 2.7846 | J155: -0.031032 | K155: 0.076942 | L155: 11
A156: 1983-09-08 | B156: 198312 | C156: 70 | D156: 0.8537 | E156: 1.0598 | F156: 0.1491 | G156: 0.15341 | H156: 0.12816 | I156: 0.25137 | J156: -0.17358 | K156: 1.7411e-05 | L156: 11
A157: 1983-09-09 | B157: 198312 | C157: 69 | D157: 0.8603 | E157: 1.0679 | F157: 0.1566 | G157: 0.15871 | H157: 0.13071 | I157: 0.94696 | J157: -0.01971 | K157: 0.1001 | L157: 11
A158: 1983-09-12 | B158: 198312 | C158: 68 | D158: 0.8703 | E158: 1.0804 | F158: 0.16015 | G158: 0.15739 | H158: 0.0083093 | I158: 174.13 | J158: -0.011871 | K158: 5.0218e-08 | L158: 13
A159: 1983-09-13 | B159: 198312 | C159: 67 | D159: 0.8685 | E159: 1.0782 | F159: 0.1585 | G159: 0.15517 | H159: 0.0051138 | I159: 120.54 | J159: -0.014033 | K159: 0.00084656 | L159: 13
A160: 1983-09-14 | B160: 198312 | C160: 66 | D160: 0.8657 | E160: 1.0746 | F160: 0.1537 | G160: 0.15492 | H160: 0.0068642 | I160: 17.65 | J160: -0.009343 | K160: 0.036267 | L160: 13
A161: 1983-09-15 | B161: 198312 | C161: 65 | D161: 0.8706 | E161: 1.0808 | F161: 0.15265 | G161: 0.15036 | H161: 0.0050905 | I161: 18.516 | J161: -0.0086622 | K161: 0.034458 | L161: 13
A162: 1983-09-16 | B162: 198312 | C162: 64 | D162: 0.8582 | E162: 1.0654 | F162: 0.14195 | G162: 0.1447 | H162: 0.12108 | I162: 0.95556 | J162: -0.0664 | K162: 0.053714 | L162: 12
A163: 1983-09-19 | B163: 198312 | C163: 63 | D163: 0.8522 | E163: 1.0873 | F163: 0.1412 | G163: 0.1431 | H163: 0.037657 | I163: 13.805 | J163: -0.0090051 | K163: 0.036855 | L163: 13
A164: 1983-09-20 | B164: 198312 | C164: 62 | D164: 0.8467 | E164: 1.0803 | F164: 0.13515 | G164: 0.13767 | H164: 0.052507 | I164: 7.1457 | J164: -0.016125 | K164: 0.046742 | L164: 12
A165: 1983-09-21 | B165: 198312 | C165: 61 | D165: 0.8492 | E165: 1.0835 | F165: 0.14095 | G165: 0.14031 | H165: 0.0087706 | I165: 13.342 | J165: -0.037779 | K165: 0.0023042 | L165: 13
A166: 1983-09-22 | B166: 198312 | C166: 60 | D166: 0.8445 | E166: 1.0775 | F166: 0.1374 | G166: 0.13694 | H166: 0.0085193 | I166: 12.432 | J166: -0.035899 | K166: 0.01385 | L166: 12
A167: 1983-09-23 | B167: 198312 | C167: 59 | D167: 0.846 | E167: 1.0793 | F167: 0.1412 | G167: 0.13917 | H167: 0.0097411 | I167: 10.597 | J167: -0.041787 | K167: 0.0059092 | L167: 12
A168: 1983-09-26 | B168: 198312 | C168: 58 | D168: 0.8455 | E168: 1.0787 | F168: 0.1408 | G168: 0.13658 | H168: 0.0082385 | I168: 17.808 | J168: -0.031953 | K168: 5.3434e-05 | L168: 12
A169: 1983-09-28 | B169: 198312 | C169: 56 | D169: 0.8529 | E169: 1.0882 | F169: 0.1353 | G169: 0.13508 | H169: 0.0079602 | I169: 19.855 | J169: -0.013011 | K169: 0.027912 | L169: 14
A170: 1983-09-29 | B170: 198312 | C170: 55 | D170: 0.856 | E170: 1.0921 | F170: 0.131 | G170: 0.13298 | H170: 0.11633 | I170: 0.90829 | J170: -0.037953 | K170: 0.063321 | L170: 14
A171: 1983-09-30 | B171: 198312 | C171: 54 | D171: 0.8618 | E171: 1.0996 | F171: 0.12465 | G171: 0.12877 | H171: 0.045386 | I171: 7.6559 | J171: -0.0025542 | K171: 0.045444 | L171: 13
A172: 1983-10-03 | B172: 198312 | C172: 53 | D172: 0.8608 | E172: 1.0982 | F172: 0.12765 | G172: 0.13088 | H172: 0.0061428 | I172: 14.359 | J172: -0.0032851 | K172: 0.035353 | L172: 13
A173: 1983-10-04 | B173: 198312 | C173: 52 | D173: 0.8605 | E173: 1.0979 | F173: 0.12735 | G173: 0.12789 | H173: 0.012381 | I173: 21.47 | J173: -0.0055956 | K173: 0.027415 | L173: 13
A174: 1983-10-05 | B174: 198312 | C174: 51 | D174: 0.8524 | E174: 1.0876 | F174: 0.1248 | G174: 0.12558 | H174: 0.11712 | I174: 0.12961 | J174: -0.14126 | K174: 6.6264e-05 | L174: 12
A175: 1983-10-06 | B175: 198312 | C175: 50 | D175: 0.8433 | E175: 1.0759 | F175: 0.1166 | G175: 0.11991 | H175: 0.10904 | I175: 0.15838 | J175: -0.1422 | K175: 0.002051 | L175: 13
A176: 1983-10-07 | B176: 198312 | C176: 49 | D176: 0.8425 | E176: 1.075 | F176: 0.1227 | G176: 0.12242 | H176: 0.0052012 | I176: 25.292 | J176: -0.023352 | K176: 0.0068018 | L176: 13
A177: 1983-10-10 | B177: 198312 | C177: 48 | D177: 0.8331 | E177: 1.0629 | F177: 0.11545 | G177: 0.11691 | H177: 0.018472 | I177: 6.8291 | J177: -0.044103 | K177: 4.9571e-05 | L177: 12
A178: 1983-10-11 | B178: 198312 | C178: 47 | D178: 0.845 | E178: 1.0781 | F178: 0.12355 | G178: 0.12383 | H178: 0.10057 | I178: 1.2033 | J178: -0.059603 | K178: 0.037978 | L178: 13
A179: 1983-10-12 | B179: 198312 | C179: 46 | D179: 0.8477 | E179: 1.0816 | F179: 0.12055 | G179: 0.12246 | H179: 0.007855 | I179: 12.951 | J179: -0.0071827 | K179: 0.034482 | L179: 13
A180: 1983-10-13 | B180: 198312 | C180: 45 | D180: 0.8433 | E180: 1.0759 | F180: 0.12395 | G180: 0.12476 | H180: 0.10865 | I180: 0.69358 | J180: -0.068281 | K180: 0.042618 | L180: 13
A181: 1983-10-14 | B181: 198312 | C181: 44 | D181: 0.8447 | E181: 1.0778 | F181: 0.12305 | G181: 0.12468 | H181: 0.1144 | I181: 0.19544 | J181: -0.12498 | K181: 2.5506e-05 | L181: 13
A182: 1983-10-17 | B182: 198312 | C182: 43 | D182: 0.8406 | E182: 1.0725 | F182: 0.12345 | G182: 0.12481 | H182: 0.12053 | I182: 0.050424 | J182: -0.14899 | K182: 0.11114 | L182: 13
A183: 1983-10-18 | B183: 198312 | C183: 42 | D183: 0.8532 | E183: 1.0886 | F183: 0.1218 | G183: 0.1264 | H183: 0.0064099 | I183: 17.763 | J183: -0.001901 | K183: 0.030787 | L183: 12
A184: 1983-10-19 | B184: 198312 | C184: 41 | D184: 0.8605 | E184: 1.0979 | F184: 0.12555 | G184: 0.12521 | H184: 0.10868 | I184: 1.0836 | J184: -0.0091103 | K184: 0.065893 | L184: 12
A185: 1983-10-20 | B185: 198312 | C185: 40 | D185: 0.8585 | E185: 1.0953 | F185: 0.12655 | G185: 0.12688 | H185: 0.0052508 | I185: 35.299 | J185: -0.0027182 | K185: 0.021518 | L185: 12
A186: 1983-10-21 | B186: 198312 | C186: 39 | D186: 0.8646 | E186: 1.1032 | F186: 0.125 | G186: 0.12712 | H186: 0.013794 | I186: 18.057 | J186: 0.0015604 | K186: 0.030443 | L186: 13
A187: 1983-10-24 | B187: 198312 | C187: 38 | D187: 0.8616 | E187: 1.0992 | F187: 0.1307 | G187: 0.13162 | H187: 0.017566 | I187: 36.041 | J187: -0.0038603 | K187: 0.021712 | L187: 13
A188: 1983-10-25 | B188: 198312 | C188: 37 | D188: 0.8626 | E188: 1.1005 | F188: 0.13115 | G188: 0.13239 | H188: 0.0059182 | I188: 43.587 | J188: -0.0027323 | K188: 0.020104 | L188: 13
A189: 1983-10-26 | B189: 198312 | C189: 36 | D189: 0.869 | E189: 1.1088 | F189: 0.12965 | G189: 0.13019 | H189: 0.1282 | I189: 0.0062171 | J189: -0.36398 | K189: 0.0073927 | L189: 13
A190: 1983-10-27 | B190: 198312 | C190: 35 | D190: 0.8675 | E190: 1.1068 | F190: 0.13095 | G190: 0.13236 | H190: 0.13 | I190: 0.0041857 | J190: -0.47035 | K190: 0.019938 | L190: 13
A191: 1983-10-28 | B191: 198312 | C191: 34 | D191: 0.8769 | E191: 1.1188 | F191: 0.13775 | G191: 0.13706 | H191: 0.13604 | I191: 1.8237e-06 | J191: -0.70471 | K191: 0.018892 | L191: 12
A192: 1983-10-31 | B192: 198312 | C192: 33 | D192: 0.8764 | E192: 1.1182 | F192: 0.1423 | G192: 0.13604 | H192: 0.01305 | I192: 147.76 | J192: -0.011106 | K192: 0.00059403 | L192: 12
A193: 1983-11-01 | B193: 198312 | C193: 32 | D193: 0.8756 | E193: 1.1171 | F193: 0.1381 | G193: 0.13563 | H193: 0.011493 | I193: 192.67 | J193: -0.0097182 | K193: 2.5094e-05 | L193: 12
A194: 1983-11-02 | B194: 198312 | C194: 31 | D194: 0.8698 | E194: 1.1098 | F194: 0.1355 | G194: 0.13531 | H194: 0.0060457 | I194: 293.15 | J194: -0.0032787 | K194: 0.007195 | L194: 12
A195: 1983-11-03 | B195: 198312 | C195: 30 | D195: 0.8785 | E195: 1.1209 | F195: 0.1389 | G195: 0.13489 | H195: 0.09857 | I195: 97177 | J195: 0.00012502 | K195: 0.00026763 | L195: 12
A196: 1983-11-04 | B196: 198312 | C196: 29 | D196: 0.8831 | E196: 1.1267 | F196: 0.1362 | G196: 0.13477 | H196: 0.012691 | I196: 137.87 | J196: -0.011424 | K196: 1.6371e-07 | L196: 12
A197: 1983-11-07 | B197: 198312 | C197: 28 | D197: 0.8871 | E197: 1.1318 | F197: 0.1315 | G197: 0.13133 | H197: 0.005 | I197: 2058.7 | J197: -0.0028877 | K197: 0.00016673 | L197: 12
A198: 1983-11-08 | B198: 198312 | C198: 27 | D198: 0.8855 | E198: 1.1298 | F198: 0.1239 | G198: 0.1287 | H198: 0.0091671 | I198: 60.104 | J198: -0.0021516 | K198: 0.016646 | L198: 12
A199: 1983-11-09 | B199: 198312 | C199: 26 | D199: 0.8738 | E199: 1.1148 | F199: 0.1283 | G199: 0.12904 | H199: 0.1183 | I199: 1.1273 | J199: -0.041247 | K199: 0.031535 | L199: 12
A200: 1983-11-10 | B200: 198312 | C200: 25 | D200: 0.8724 | E200: 1.1131 | F200: 0.1223 | G200: 0.1254 | H200: 0.088968 | I200: 7.6024 | J200: -0.007224 | K200: 0.032878 | L200: 12
A201: 1983-11-11 | B201: 198312 | C201: 24 | D201: 0.8639 | E201: 1.1022 | F201: 0.1116 | G201: 0.12404 | H201: 0.12048 | I201: 0.0058512 | J201: -0.2205 | K201: 0.36965 | L201: 11
... 4299 more rows
